Publisher Label,Publisher URI,"Directorate code","Directorate","Service code","Service","Revenue or capital code","Revenue capital","Cost centre","Cost centre description","Bvsub Category","Bvsub description","Bvsum code","Bvsum description","Account code","Account description","Transaction No","Period","Transaction Date","Amount","Classification code","Classification description","Supplier ID","Supplier description","Company registration number","Company registration number Uri","VAT registration number"
"London Borough of Redbridge","http://opendatacommunities.org/doc/london-borough-council/redbridge","1BCENTRALPUB","Central Services to the Public","1CEMERGPLAN","Emergency Planning","REV","Revenue","R9361","Local Land Charges","04-SUPPLIES","Supplies And Services","04B","Catering","5602","Refreshments","80041324","202210",25/11/2021 00:00:00,17.01,"84070","Water Suppliers - Bottled","REDACTED DATA","EDEN SPRINGS (UK) LTD (NATURE SPRING)","4063744","http://opencorporates.com/companies/gb/4063744","232160411"
"London Borough of Redbridge","http://opendatacommunities.org/doc/london-borough-council/redbridge","1BCENTRALPUB","Central Services to the Public","1CEMERGPLAN","Emergency Planning","REV","Revenue","R9361","Local Land Charges","04-SUPPLIES","Supplies And Services","04H","Grants and subscriptions","5954","Professional Fees","60478765","202210",11/01/2022 00:00:00,179,"21950","Conveyancing Services","REDACTED DATA","Infotrack Ltd","9474590","http://opencorporates.com/companies/gb/9474590","228 5306 12"
"London Borough of Redbridge","http://opendatacommunities.org/doc/london-borough-council/redbridge","1BCENTRALPUB","Central Services to the Public","1CLOCALTAXCO","Local Tax Collection","REV","Revenue","R5760","Local Tax Collection","04-SUPPLIES","Supplies And Services","04D","Printing, stationery and general office expenses","5706","Printing","60478658","202210",31/12/2021 00:00:00,416.03,"49180","Mailing Houses","REDACTED DATA","OPUS TRUST MARKETING LIMITED","3829462","http://opencorporates.com/companies/gb/3829462","232730729"
"London Borough of Redbridge","http://opendatacommunities.org/doc/london-borough-council/redbridge","1BCENTRALPUB","Central Services to the Public","1CLOCALTAXCO","Local Tax Collection","REV","Revenue","R5760","Local Tax Collection","04-SUPPLIES","Supplies And Services","04D","Printing, stationery and general office expenses","5706","Printing","60478651","202210",31/12/2021 00:00:00,406.67,"49180","Mailing Houses","REDACTED DATA","OPUS TRUST MARKETING LIMITED","3829462","http://opencorporates.com/companies/gb/3829462","232730729"
"London Borough of Redbridge","http://opendatacommunities.org/doc/london-borough-council/redbridge","1BCENTRALPUB","Central Services to the Public","1CLOCALTAXCO","Local Tax Collection","REV","Revenue","R5760","Local Tax Collection","04-SUPPLIES","Supplies And Services","04H","Grants and subscriptions","5954","Professional Fees","60478417","202210",06/01/2022 00:00:00,386.27,"20703","Computer Systems and Software","REDACTED DATA","CIVICA  UK LTD","1628868","http://opencorporates.com/companies/gb/1628868","391171065"
"London Borough of Redbridge","http://opendatacommunities.org/doc/london-borough-council/redbridge","1BCENTRALPUB","Central Services to the Public","1CLOCALTAXCO","Local Tax Collection","REV","Revenue","R5760","Local Tax Collection","04-SUPPLIES","Supplies And Services","04H","Grants and subscriptions","5954","Professional Fees","60478357","202210",06/01/2022 00:00:00,123,"45170","Information Services","REDACTED DATA","LoCTA Ltd","12277411","http://opencorporates.com/companies/gb/12277411","337 5006 15"
"London Borough of Redbridge","http://opendatacommunities.org/doc/london-borough-council/redbridge","1BCENTRALPUB","Central Services to the Public","1CLOCALTAXCO","Local Tax Collection","REV","Revenue","R5760","Local Tax Collection","04-SUPPLIES","Supplies And Services","04H","Grants and subscriptions","5954","Professional Fees","60478383","202210",31/12/2021 00:00:00,5,"20520","Company Registration Agents","REDACTED DATA","COMPANIES HOUSE","",,""
"London Borough of Redbridge","http://opendatacommunities.org/doc/london-borough-council/redbridge","1BCENTRALPUB","Central Services to the Public","1CLOCALTAXCO","Local Tax Collection","REV","Revenue","R9005","Registrar Service","04-SUPPLIES","Supplies And Services","04B","Catering","5602","Refreshments","80041404","202210",25/01/2022 00:00:00,4.32,"84070","Water Suppliers - Bottled","REDACTED DATA","EDEN SPRINGS (UK) LTD (NATURE SPRING)","4063744","http://opencorporates.com/companies/gb/4063744","232160411"
"London Borough of Redbridge","http://opendatacommunities.org/doc/london-borough-council/redbridge","1BCENTRALPUB","Central Services to the Public","1CTRADSURDEF","Trading Account Surpluses & Deficits","REV","Revenue","R3971","Local London Director","04-SUPPLIES","Supplies And Services","04D","Printing, stationery and general office expenses","5708","Advertising Publicity and Promotions","60480074","202210",27/01/2022 00:00:00,9995,"64700","Research Organisations","REDACTED DATA","Localis Research Limited","4287449","http://opencorporates.com/companies/gb/4287449","783056026"
"London Borough of Redbridge","http://opendatacommunities.org/doc/london-borough-council/redbridge","1BCENTRALPUB","Central Services to the Public","1CTRADSURDEF","Trading Account Surpluses & Deficits","REV","Revenue","R3976","Local London Work and Health Programme (ESF)","04-SUPPLIES","Supplies And Services","04H","Grants and subscriptions","5955","Fees","60479571","202210",13/01/2022 00:00:00,320,"49840","Market Research","REDACTED DATA","SURVEYMONKEY EUROPE SARL","",,""
"London Borough of Redbridge","http://opendatacommunities.org/doc/london-borough-council/redbridge","1BCENTRALPUB","Central Services to the Public","1CTRADSURDEF","Trading Account Surpluses & Deficits","REV","Revenue","R5754","Income","04-SUPPLIES","Supplies And Services","04H","Grants and subscriptions","5954","Professional Fees","60478998","202210",14/02/2022 00:00:00,16.5,"48582","Loans and Debt - Management","REDACTED DATA","MOORCROFT DEBT RECOVERY LTD","1703704","http://opencorporates.com/companies/gb/1703704","453109273"
"London Borough of Redbridge","http://opendatacommunities.org/doc/london-borough-council/redbridge","1BOTHEROPI&E","Other Operating Income & Expenditure","1CELECTIONS","Elections","REV","Revenue","R9362","Electoral Registration","01-EMPLOYEES","Employees","01B","Indirect employee expenses","2403","External Training","60479232","202210",15/12/2021 00:00:00,139,"52570","National Associations","REDACTED DATA","ASSOCIATION OF ELECTORAL ADMINISTRATORS","2406897","http://opencorporates.com/companies/gb/2406897","580583816"
"London Borough of Redbridge","http://opendatacommunities.org/doc/london-borough-council/redbridge","1BOTHEROPI&E","Other Operating Income & Expenditure","1CELECTIONS","Elections","REV","Revenue","R9362","Electoral Registration","04-SUPPLIES","Supplies And Services","04B","Catering","5602","Refreshments","80041403","202210",25/01/2022 00:00:00,2.16,"84070","Water Suppliers - Bottled","REDACTED DATA","EDEN SPRINGS (UK) LTD (NATURE SPRING)","4063744","http://opencorporates.com/companies/gb/4063744","232160411"
"London Borough of Redbridge","http://opendatacommunities.org/doc/london-borough-council/redbridge","1BOTHEROPI&E","Other Operating Income & Expenditure","1CTRADSURDEF","Trading Account Surpluses & Deficits","REV","Revenue","R9001","Customer Contact Centre","04-SUPPLIES","Supplies And Services","04A","Equipment, furniture and materials","5502","Equipment Purchase","60479253","202210",18/01/2022 00:00:00,160,"25800","Disability Equipment - Mnfrs and Suppliers","REDACTED DATA","HANDS FREE COMPUTING LTD","3415976","http://opencorporates.com/companies/gb/3415976","700602494"
"London Borough of Redbridge","http://opendatacommunities.org/doc/london-borough-council/redbridge","1BOTHEROPI&E","Other Operating Income & Expenditure","1CTRADSURDEF","Trading Account Surpluses & Deficits","REV","Revenue","R9001","Customer Contact Centre","04-SUPPLIES","Supplies And Services","04B","Catering","5602","Refreshments","80041328","202210",25/11/2021 00:00:00,1.03,"84070","Water Suppliers - Bottled","REDACTED DATA","EDEN SPRINGS (UK) LTD (NATURE SPRING)","4063744","http://opencorporates.com/companies/gb/4063744","232160411"
"London Borough of Redbridge","http://opendatacommunities.org/doc/london-borough-council/redbridge","1BOTHEROPI&E","Other Operating Income & Expenditure","1CTRADSURDEF","Trading Account Surpluses & Deficits","REV","Revenue","R9053","Tree Management","04-SUPPLIES","Supplies And Services","04C","Clothes, uniform and laundry","5651","Protective Clothing","60479609","202210",21/01/2022 00:00:00,497.71,"62000","Protective Clothing - Industrial","REDACTED DATA","BK SAFETY AND WORKWEAR LIMITED","5815362","http://opencorporates.com/companies/gb/5815362","802540175"
"London Borough of Redbridge","http://opendatacommunities.org/doc/london-borough-council/redbridge","1BOTHEROPI&E","Other Operating Income & Expenditure","1CTRADSURDEF","Trading Account Surpluses & Deficits","REV","Revenue","R9148","Tree Holding Account","02-PREMISES","Premises","02I","Grounds maintenance costs","4753","Trees / Recreational","60478737","202210",29/12/2021 00:00:00,220,"43760","Horticultural Equipment and Supplies","REDACTED DATA","Plantscape Limited","4276186","http://opencorporates.com/companies/gb/4276186","897398145"
"London Borough of Redbridge","http://opendatacommunities.org/doc/london-borough-council/redbridge","1BOTHEROPI&E","Other Operating Income & Expenditure","1CTRADSURDEF","Trading Account Surpluses & Deficits","REV","Revenue","R9252","Programme Services","04-SUPPLIES","Supplies And Services","04F","Communications and computing","5852","Computer Equipment - Repairs & Maintenance","60480018","202210",27/01/2022 00:00:00,1009.61,"76510","Telecommunication Services","REDACTED DATA","NOMINET UK","3203859","http://opencorporates.com/companies/gb/3203859","172 8499 66"
"London Borough of Redbridge","http://opendatacommunities.org/doc/london-borough-council/redbridge","1BOTHEROPI&E","Other Operating Income & Expenditure","1CTRADSURDEF","Trading Account Surpluses & Deficits","REV","Revenue","R9254","Infrastructure","04-SUPPLIES","Supplies And Services","04F","Communications and computing","5854","Exchange Line Rental","3678047","202210",29/12/2021 00:00:00,7,"76510","Telecommunication Services","REDACTED DATA","VIRGIN MEDIA PAYMENTS LTD(MAIN ACCT)","1785381","http://opencorporates.com/companies/gb/1785381","591819014"
"London Borough of Redbridge","http://opendatacommunities.org/doc/london-borough-council/redbridge","1BOTHEROPI&E","Other Operating Income & Expenditure","1CTRADSURDEF","Trading Account Surpluses & Deficits","REV","Revenue","R9254","Infrastructure","04-SUPPLIES","Supplies And Services","04F","Communications and computing","5854","Exchange Line Rental","3678048","202210",29/12/2021 00:00:00,7,"76510","Telecommunication Services","REDACTED DATA","VIRGIN MEDIA PAYMENTS LTD(MAIN ACCT)","1785381","http://opencorporates.com/companies/gb/1785381","591819014"
"London Borough of Redbridge","http://opendatacommunities.org/doc/london-borough-council/redbridge","1BOTHEROPI&E","Other Operating Income & Expenditure","1CTRADSURDEF","Trading Account Surpluses & Deficits","REV","Revenue","R9254","Infrastructure","04-SUPPLIES","Supplies And Services","04F","Communications and computing","5854","Exchange Line Rental","3678049","202210",29/12/2021 00:00:00,7,"76510","Telecommunication Services","REDACTED DATA","VIRGIN MEDIA PAYMENTS LTD(MAIN ACCT)","1785381","http://opencorporates.com/companies/gb/1785381","591819014"
"London Borough of Redbridge","http://opendatacommunities.org/doc/london-borough-council/redbridge","1BOTHEROPI&E","Other Operating Income & Expenditure","1CTRADSURDEF","Trading Account Surpluses & Deficits","REV","Revenue","R9254","Infrastructure","04-SUPPLIES","Supplies And Services","04F","Communications and computing","5854","Exchange Line Rental","3678054","202210",29/12/2021 00:00:00,7,"76510","Telecommunication Services","REDACTED DATA","VIRGIN MEDIA PAYMENTS LTD(MAIN ACCT)","1785381","http://opencorporates.com/companies/gb/1785381","591819014"
"London Borough of Redbridge","http://opendatacommunities.org/doc/london-borough-council/redbridge","1BOTHEROPI&E","Other Operating Income & Expenditure","1CTRADSURDEF","Trading Account Surpluses & Deficits","REV","Revenue","R9254","Infrastructure","04-SUPPLIES","Supplies And Services","04F","Communications and computing","5854","Exchange Line Rental","3678042","202210",02/01/2022 00:00:00,27.8,"76510","Telecommunication Services","REDACTED DATA","VIRGIN MEDIA PAYMENTS LTD(MAIN ACCT)","1785381","http://opencorporates.com/companies/gb/1785381","591819014"
"London Borough of Redbridge","http://opendatacommunities.org/doc/london-borough-council/redbridge","1BOTHEROPI&E","Other Operating Income & Expenditure","1CTRADSURDEF","Trading Account Surpluses & Deficits","REV","Revenue","R9254","Infrastructure","04-SUPPLIES","Supplies And Services","04F","Communications and computing","5854","Exchange Line Rental","3678043","202210",02/01/2022 00:00:00,50.76,"76510","Telecommunication Services","REDACTED DATA","VIRGIN MEDIA PAYMENTS LTD(MAIN ACCT)","1785381","http://opencorporates.com/companies/gb/1785381","591819014"
"London Borough of Redbridge","http://opendatacommunities.org/doc/london-borough-council/redbridge","1BOTHEROPI&E","Other Operating Income & Expenditure","1CTRADSURDEF","Trading Account Surpluses & Deficits","REV","Revenue","R9254","Infrastructure","04-SUPPLIES","Supplies And Services","04F","Communications and computing","5854","Exchange Line Rental","3678050","202210",29/12/2021 00:00:00,7,"76510","Telecommunication Services","REDACTED DATA","VIRGIN MEDIA PAYMENTS LTD(MAIN ACCT)","1785381","http://opencorporates.com/companies/gb/1785381","591819014"
"London Borough of Redbridge","http://opendatacommunities.org/doc/london-borough-council/redbridge","1BOTHEROPI&E","Other Operating Income & Expenditure","1CTRADSURDEF","Trading Account Surpluses & Deficits","REV","Revenue","R9254","Infrastructure","04-SUPPLIES","Supplies And Services","04F","Communications and computing","5854","Exchange Line Rental","3678051","202210",29/12/2021 00:00:00,7,"76510","Telecommunication Services","REDACTED DATA","VIRGIN MEDIA PAYMENTS LTD(MAIN ACCT)","1785381","http://opencorporates.com/companies/gb/1785381","591819014"
"London Borough of Redbridge","http://opendatacommunities.org/doc/london-borough-council/redbridge","1BOTHEROPI&E","Other Operating Income & Expenditure","1CTRADSURDEF","Trading Account Surpluses & Deficits","REV","Revenue","R9254","Infrastructure","04-SUPPLIES","Supplies And Services","04F","Communications and computing","5854","Exchange Line Rental","3678052","202210",29/12/2021 00:00:00,7,"76510","Telecommunication Services","REDACTED DATA","VIRGIN MEDIA PAYMENTS LTD(MAIN ACCT)","1785381","http://opencorporates.com/companies/gb/1785381","591819014"
"London Borough of Redbridge","http://opendatacommunities.org/doc/london-borough-council/redbridge","1BOTHEROPI&E","Other Operating Income & Expenditure","1CTRADSURDEF","Trading Account Surpluses & Deficits","REV","Revenue","R9254","Infrastructure","04-SUPPLIES","Supplies And Services","04F","Communications and computing","5854","Exchange Line Rental","3678053","202210",29/12/2021 00:00:00,7,"76510","Telecommunication Services","REDACTED DATA","VIRGIN MEDIA PAYMENTS LTD(MAIN ACCT)","1785381","http://opencorporates.com/companies/gb/1785381","591819014"
"London Borough of Redbridge","http://opendatacommunities.org/doc/london-borough-council/redbridge","1BOTHEROPI&E","Other Operating Income & Expenditure","1CTRADSURDEF","Trading Account Surpluses & Deficits","REV","Revenue","R9254","Infrastructure","04-SUPPLIES","Supplies And Services","04F","Communications and computing","5868","IT Support Contract","60479920","202210",25/01/2022 00:00:00,1315.45,"20703","Computer Systems and Software","REDACTED DATA","TRUSTMARQUE SOLUTIONS LTD","2183240","http://opencorporates.com/companies/gb/2183240","618184140"
"London Borough of Redbridge","http://opendatacommunities.org/doc/london-borough-council/redbridge","1BOTHEROPI&E","Other Operating Income & Expenditure","1CTRADSURDEF","Trading Account Surpluses & Deficits","REV","Revenue","R9255","Support","04-SUPPLIES","Supplies And Services","04D","Printing, stationery and general office expenses","5706","Printing","60478590","202210",06/01/2022 00:00:00,77.15,"57614","Photocopiers","REDACTED DATA","CANON UK LTD","1264300","http://opencorporates.com/companies/gb/1264300","523797128"
"London Borough of Redbridge","http://opendatacommunities.org/doc/london-borough-council/redbridge","1BOTHEROPI&E","Other Operating Income & Expenditure","1CTRADSURDEF","Trading Account Surpluses & Deficits","REV","Revenue","R9255","Support","04-SUPPLIES","Supplies And Services","04F","Communications and computing","5858","Phones","60479127","202210",10/01/2022 00:00:00,133,"76510","Telecommunication Services","REDACTED DATA","VIRGIN MEDIA PAYMENTS LTD(MAIN ACCT)","1785381","http://opencorporates.com/companies/gb/1785381","591819014"
"London Borough of Redbridge","http://opendatacommunities.org/doc/london-borough-council/redbridge","1BOTHEROPI&E","Other Operating Income & Expenditure","1CTRADSURDEF","Trading Account Surpluses & Deficits","REV","Revenue","R9278","IT - Vision RCL Costs","04-SUPPLIES","Supplies And Services","04F","Communications and computing","5854","Exchange Line Rental","3678039","202210",02/01/2022 00:00:00,43.35,"76510","Telecommunication Services","REDACTED DATA","VIRGIN MEDIA PAYMENTS LTD(MAIN ACCT)","1785381","http://opencorporates.com/companies/gb/1785381","591819014"
"London Borough of Redbridge","http://opendatacommunities.org/doc/london-borough-council/redbridge","1BOTHEROPI&E","Other Operating Income & Expenditure","1CTRADSURDEF","Trading Account Surpluses & Deficits","REV","Revenue","R9278","IT - Vision RCL Costs","04-SUPPLIES","Supplies And Services","04F","Communications and computing","5854","Exchange Line Rental","3678046","202210",02/01/2022 00:00:00,40,"76510","Telecommunication Services","REDACTED DATA","VIRGIN MEDIA PAYMENTS LTD(MAIN ACCT)","1785381","http://opencorporates.com/companies/gb/1785381","591819014"
"London Borough of Redbridge","http://opendatacommunities.org/doc/london-borough-council/redbridge","1BOTHEROPI&E","Other Operating Income & Expenditure","1CTRADSURDEF","Trading Account Surpluses & Deficits","REV","Revenue","R9278","IT - Vision RCL Costs","04-SUPPLIES","Supplies And Services","04F","Communications and computing","5854","Exchange Line Rental","3678040","202210",02/01/2022 00:00:00,41.21,"76510","Telecommunication Services","REDACTED DATA","VIRGIN MEDIA PAYMENTS LTD(MAIN ACCT)","1785381","http://opencorporates.com/companies/gb/1785381","591819014"
"London Borough of Redbridge","http://opendatacommunities.org/doc/london-borough-council/redbridge","1BOTHEROPI&E","Other Operating Income & Expenditure","1CTRADSURDEF","Trading Account Surpluses & Deficits","REV","Revenue","R9278","IT - Vision RCL Costs","04-SUPPLIES","Supplies And Services","04F","Communications and computing","5854","Exchange Line Rental","3678035","202210",02/01/2022 00:00:00,25.08,"76510","Telecommunication Services","REDACTED DATA","VIRGIN MEDIA PAYMENTS LTD(MAIN ACCT)","1785381","http://opencorporates.com/companies/gb/1785381","591819014"
"London Borough of Redbridge","http://opendatacommunities.org/doc/london-borough-council/redbridge","1BOTHEROPI&E","Other Operating Income & Expenditure","1CTRADSURDEF","Trading Account Surpluses & Deficits","REV","Revenue","R9278","IT - Vision RCL Costs","04-SUPPLIES","Supplies And Services","04F","Communications and computing","5856","Leased Line Rentals","60479128","202210",10/01/2022 00:00:00,13,"76510","Telecommunication Services","REDACTED DATA","VIRGIN MEDIA PAYMENTS LTD(MAIN ACCT)","1785381","http://opencorporates.com/companies/gb/1785381","591819014"
"London Borough of Redbridge","http://opendatacommunities.org/doc/london-borough-council/redbridge","1BOTHEROPI&E","Other Operating Income & Expenditure","1CTRADSURDEF","Trading Account Surpluses & Deficits","REV","Revenue","R9352","Legal Supplies & Services","01-EMPLOYEES","Employees","01B","Indirect employee expenses","2403","External Training","60477367","202210",20/12/2021 00:00:00,120,"79980","Training Services","REDACTED DATA","Bethan Evans","1470659537","http://opencorporates.com/companies/gb/1470659537",""
"London Borough of Redbridge","http://opendatacommunities.org/doc/london-borough-council/redbridge","1BOTHEROPI&E","Other Operating Income & Expenditure","1CTRADSURDEF","Trading Account Surpluses & Deficits","REV","Revenue","R9352","Legal Supplies & Services","04-SUPPLIES","Supplies And Services","04B","Catering","5602","Refreshments","80041319","202210",25/12/2021 00:00:00,2.16,"84070","Water Suppliers - Bottled","REDACTED DATA","EDEN SPRINGS (UK) LTD (NATURE SPRING)","4063744","http://opencorporates.com/companies/gb/4063744","232160411"
"London Borough of Redbridge","http://opendatacommunities.org/doc/london-borough-council/redbridge","1BOTHEROPI&E","Other Operating Income & Expenditure","1CTRADSURDEF","Trading Account Surpluses & Deficits","REV","Revenue","R9352","Legal Supplies & Services","04-SUPPLIES","Supplies And Services","04D","Printing, stationery and general office expenses","5705","Postage","60478119","202210",31/12/2021 00:00:00,25.65,"22620","Courier and Messenger Services","REDACTED DATA","ANGELS COURIER SERVICE LTD","2949091","http://opencorporates.com/companies/gb/2949091","648831896"
"London Borough of Redbridge","http://opendatacommunities.org/doc/london-borough-council/redbridge","1BOTHEROPI&E","Other Operating Income & Expenditure","1CTRADSURDEF","Trading Account Surpluses & Deficits","REV","Revenue","R9352","Legal Supplies & Services","04-SUPPLIES","Supplies And Services","04D","Printing, stationery and general office expenses","5705","Postage","60479258","202210",15/01/2022 00:00:00,25.65,"22620","Courier and Messenger Services","REDACTED DATA","ANGELS COURIER SERVICE LTD","2949091","http://opencorporates.com/companies/gb/2949091","648831896"
"London Borough of Redbridge","http://opendatacommunities.org/doc/london-borough-council/redbridge","1BOTHEROPI&E","Other Operating Income & Expenditure","1CTRADSURDEF","Trading Account Surpluses & Deficits","REV","Revenue","R9354","Legal Disbursements","04-SUPPLIES","Supplies And Services","04H","Grants and subscriptions","5954","Professional Fees","60478802","202210",10/01/2022 00:00:00,80.4,"12564","Paternity Testing (Dna)","REDACTED DATA","DNA LEGAL LTD","5976135","http://opencorporates.com/companies/gb/5976135","308211050"
"London Borough of Redbridge","http://opendatacommunities.org/doc/london-borough-council/redbridge","6BADULTSOCIA","Adult Social Care","6CLONGT65","Long-Term Support 65+ Years","REV","Revenue","R4438","Older People - Cranbrook & Loxford","05-THIRD","Third Party Payments","05A","Independent units within the council","6502","Agency Homecare","91286517","202210",17/01/2022 00:00:00,391.01,"43419","Home Care Services","REDACTED DATA","THREE SISTERS CARE","7606018","http://opencorporates.com/companies/gb/7606018",""
"London Borough of Redbridge","http://opendatacommunities.org/doc/london-borough-council/redbridge","6BADULTSOCIA","Adult Social Care","6CLONGT65","Long-Term Support 65+ Years","REV","Revenue","R4438","Older People - Cranbrook & Loxford","05-THIRD","Third Party Payments","05A","Independent units within the council","6502","Agency Homecare","91286518","202210",17/01/2022 00:00:00,446.91,"43419","Home Care Services","REDACTED DATA","THREE SISTERS CARE","7606018","http://opencorporates.com/companies/gb/7606018",""
"London Borough of Redbridge","http://opendatacommunities.org/doc/london-borough-council/redbridge","6BADULTSOCIA","Adult Social Care","6CLONGT65","Long-Term Support 65+ Years","REV","Revenue","R4438","Older People - Cranbrook & Loxford","05-THIRD","Third Party Payments","05A","Independent units within the council","6502","Agency Homecare","91286519","202210",17/01/2022 00:00:00,234.2,"43419","Home Care Services","REDACTED DATA","THREE SISTERS CARE","7606018","http://opencorporates.com/companies/gb/7606018",""
"London Borough of Redbridge","http://opendatacommunities.org/doc/london-borough-council/redbridge","6BADULTSOCIA","Adult Social Care","6CLONGT65","Long-Term Support 65+ Years","REV","Revenue","R4438","Older People - Cranbrook & Loxford","05-THIRD","Third Party Payments","05A","Independent units within the council","6502","Agency Homecare","91286584","202210",26/01/2022 00:00:00,387.04,"43419","Home Care Services","REDACTED DATA","THREE SISTERS CARE","7606018","http://opencorporates.com/companies/gb/7606018",""
"London Borough of Redbridge","http://opendatacommunities.org/doc/london-borough-council/redbridge","6BADULTSOCIA","Adult Social Care","6CLONGT65","Long-Term Support 65+ Years","REV","Revenue","R4438","Older People - Cranbrook & Loxford","05-THIRD","Third Party Payments","05A","Independent units within the council","6502","Agency Homecare","91286416","202210",17/01/2022 00:00:00,242.24,"43419","Home Care Services","REDACTED DATA","THREE SISTERS CARE","7606018","http://opencorporates.com/companies/gb/7606018",""
"London Borough of Redbridge","http://opendatacommunities.org/doc/london-borough-council/redbridge","6BADULTSOCIA","Adult Social Care","6CLONGT65","Long-Term Support 65+ Years","REV","Revenue","R4438","Older People - Cranbrook & Loxford","05-THIRD","Third Party Payments","05A","Independent units within the council","6502","Agency Homecare","91286417","202210",17/01/2022 00:00:00,186.04,"43419","Home Care Services","REDACTED DATA","THREE SISTERS CARE","7606018","http://opencorporates.com/companies/gb/7606018",""
"London Borough of Redbridge","http://opendatacommunities.org/doc/london-borough-council/redbridge","6BADULTSOCIA","Adult Social Care","6CLONGT65","Long-Term Support 65+ Years","REV","Revenue","R4438","Older People - Cranbrook & Loxford","05-THIRD","Third Party Payments","05A","Independent units within the council","6502","Agency Homecare","91286561","202210",17/01/2022 00:00:00,128.42,"43419","Home Care Services","REDACTED DATA","THREE SISTERS CARE","7606018","http://opencorporates.com/companies/gb/7606018",""
"London Borough of Redbridge","http://opendatacommunities.org/doc/london-borough-council/redbridge","6BADULTSOCIA","Adult Social Care","6CLONGT65","Long-Term Support 65+ Years","REV","Revenue","R4438","Older People - Cranbrook & Loxford","05-THIRD","Third Party Payments","05A","Independent units within the council","6502","Agency Homecare","91286484","202210",17/01/2022 00:00:00,128.12,"43419","Home Care Services","REDACTED DATA","THREE SISTERS CARE","7606018","http://opencorporates.com/companies/gb/7606018",""
"London Borough of Redbridge","http://opendatacommunities.org/doc/london-borough-council/redbridge","6BADULTSOCIA","Adult Social Care","6CLONGT65","Long-Term Support 65+ Years","REV","Revenue","R4438","Older People - Cranbrook & Loxford","05-THIRD","Third Party Payments","05A","Independent units within the council","6502","Agency Homecare","91286486","202210",17/01/2022 00:00:00,226.75,"43419","Home Care Services","REDACTED DATA","THREE SISTERS CARE","7606018","http://opencorporates.com/companies/gb/7606018",""
"London Borough of Redbridge","http://opendatacommunities.org/doc/london-borough-council/redbridge","6BADULTSOCIA","Adult Social Care","6CLONGT65","Long-Term Support 65+ Years","REV","Revenue","R4438","Older People - Cranbrook & Loxford","05-THIRD","Third Party Payments","05A","Independent units within the council","6502","Agency Homecare","91286478","202210",17/01/2022 00:00:00,222.17,"43419","Home Care Services","REDACTED DATA","THREE SISTERS CARE","7606018","http://opencorporates.com/companies/gb/7606018",""
"London Borough of Redbridge","http://opendatacommunities.org/doc/london-borough-council/redbridge","6BADULTSOCIA","Adult Social Care","6CLONGT65","Long-Term Support 65+ Years","REV","Revenue","R4438","Older People - Cranbrook & Loxford","05-THIRD","Third Party Payments","05A","Independent units within the council","6502","Agency Homecare","91286479","202210",17/01/2022 00:00:00,220.45,"43419","Home Care Services","REDACTED DATA","THREE SISTERS CARE","7606018","http://opencorporates.com/companies/gb/7606018",""
"London Borough of Redbridge","http://opendatacommunities.org/doc/london-borough-council/redbridge","1BOTHEROPI&E","Other Operating Income & Expenditure","1CTRADSURDEF","Trading Account Surpluses & Deficits","REV","Revenue","R9354","Legal Disbursements","04-SUPPLIES","Supplies And Services","04H","Grants and subscriptions","5954","Professional Fees","60479664","202210",04/11/2021 00:00:00,360,"6700","Barristers","REDACTED DATA","Old Square Chambers","",,"978538257"
"London Borough of Redbridge","http://opendatacommunities.org/doc/london-borough-council/redbridge","1BOTHEROPI&E","Other Operating Income & Expenditure","1CTRADSURDEF","Trading Account Surpluses & Deficits","REV","Revenue","R9354","Legal Disbursements","04-SUPPLIES","Supplies And Services","04H","Grants and subscriptions","5954","Professional Fees","60479192","202210",31/12/2021 00:00:00,272,"47830","Legal Services","REDACTED DATA","SHARPE PRITCHARD LLP","OC378650","http://opencorporates.com/companies/gb/OC378650","233214995"
"London Borough of Redbridge","http://opendatacommunities.org/doc/london-borough-council/redbridge","1BOTHEROPI&E","Other Operating Income & Expenditure","1CTRADSURDEF","Trading Account Surpluses & Deficits","REV","Revenue","R9354","Legal Disbursements","04-SUPPLIES","Supplies And Services","04H","Grants and subscriptions","5954","Professional Fees","60479780","202210",04/01/2022 00:00:00,100,"24510","Delivery Services","REDACTED DATA","ILN Limited","7782662","http://opencorporates.com/companies/gb/7782662","124 1131 73"
"London Borough of Redbridge","http://opendatacommunities.org/doc/london-borough-council/redbridge","1BOTHEROPI&E","Other Operating Income & Expenditure","1CTRADSURDEF","Trading Account Surpluses & Deficits","REV","Revenue","R9354","Legal Disbursements","04-SUPPLIES","Supplies And Services","04H","Grants and subscriptions","5954","Professional Fees","60479781","202210",29/12/2021 00:00:00,125,"24510","Delivery Services","REDACTED DATA","ILN Limited","7782662","http://opencorporates.com/companies/gb/7782662","124 1131 73"
"London Borough of Redbridge","http://opendatacommunities.org/doc/london-borough-council/redbridge","1BOTHEROPI&E","Other Operating Income & Expenditure","1CTRADSURDEF","Trading Account Surpluses & Deficits","REV","Revenue","R9354","Legal Disbursements","04-SUPPLIES","Supplies And Services","04H","Grants and subscriptions","5954","Professional Fees","60479782","202210",10/01/2022 00:00:00,100,"24510","Delivery Services","REDACTED DATA","ILN Limited","7782662","http://opencorporates.com/companies/gb/7782662","124 1131 73"
"London Borough of Redbridge","http://opendatacommunities.org/doc/london-borough-council/redbridge","1BOTHEROPI&E","Other Operating Income & Expenditure","1CTRADSURDEF","Trading Account Surpluses & Deficits","REV","Revenue","R9458","Accounts Payable","04-SUPPLIES","Supplies And Services","04H","Grants and subscriptions","5956","Subscriptions","70122289","202210",22/12/2021 00:00:00,204.75,"62450","Publishers","REDACTED DATA","LNRS Data Services Ltd","151537","http://opencorporates.com/companies/gb/151537","730 8595 20"
"London Borough of Redbridge","http://opendatacommunities.org/doc/london-borough-council/redbridge","1BOTHEROPI&E","Other Operating Income & Expenditure","1CTRADSURDEF","Trading Account Surpluses & Deficits","REV","Revenue","R9460","Pay and Contracts","04-SUPPLIES","Supplies And Services","04D","Printing, stationery and general office expenses","5705","Postage","60478650","202210",31/12/2021 00:00:00,271.46,"49180","Mailing Houses","REDACTED DATA","OPUS TRUST MARKETING LIMITED","3829462","http://opencorporates.com/companies/gb/3829462","232730729"
"London Borough of Redbridge","http://opendatacommunities.org/doc/london-borough-council/redbridge","1BOTHEROPI&E","Other Operating Income & Expenditure","1CTRADSURDEF","Trading Account Surpluses & Deficits","REV","Revenue","R9551","CLM Maintenance","02-PREMISES","Premises","02A","Repairs, alteration and maintenance of buildings","3026","Minor Maintenance","3677247","202210",31/12/2021 00:00:00,78,"30580","Electricians and Electrical Contractors","REDACTED DATA","EVANS & SHEA LTD","9365711","http://opencorporates.com/companies/gb/9365711","212776513"
"London Borough of Redbridge","http://opendatacommunities.org/doc/london-borough-council/redbridge","1BOTHEROPI&E","Other Operating Income & Expenditure","1CTRADSURDEF","Trading Account Surpluses & Deficits","REV","Revenue","R9551","CLM Maintenance","02-PREMISES","Premises","02A","Repairs, alteration and maintenance of buildings","3026","Minor Maintenance","3677247","202210",31/12/2021 00:00:00,39,"30580","Electricians and Electrical Contractors","REDACTED DATA","EVANS & SHEA LTD","9365711","http://opencorporates.com/companies/gb/9365711","212776513"
"London Borough of Redbridge","http://opendatacommunities.org/doc/london-borough-council/redbridge","1BOTHEROPI&E","Other Operating Income & Expenditure","1CTRADSURDEF","Trading Account Surpluses & Deficits","REV","Revenue","R9551","CLM Maintenance","02-PREMISES","Premises","02A","Repairs, alteration and maintenance of buildings","3026","Minor Maintenance","3680047","202210",18/11/2021 00:00:00,37.99,"26625","Do It Yourself Wholesalers","REDACTED DATA","SCREWFIX DIRECT LIMITED T/A TRADE UK","3006378","http://opencorporates.com/companies/gb/3006378","232555575"
"London Borough of Redbridge","http://opendatacommunities.org/doc/london-borough-council/redbridge","1BOTHEROPI&E","Other Operating Income & Expenditure","1CTRADSURDEF","Trading Account Surpluses & Deficits","REV","Revenue","R9551","CLM Maintenance","02-PREMISES","Premises","02A","Repairs, alteration and maintenance of buildings","3026","Minor Maintenance","3680048","202210",11/01/2022 00:00:00,15.99,"26625","Do It Yourself Wholesalers","REDACTED DATA","SCREWFIX DIRECT LIMITED T/A TRADE UK","3006378","http://opencorporates.com/companies/gb/3006378","232555575"
"London Borough of Redbridge","http://opendatacommunities.org/doc/london-borough-council/redbridge","1BOTHEROPI&E","Other Operating Income & Expenditure","1CTRADSURDEF","Trading Account Surpluses & Deficits","REV","Revenue","R9551","CLM Maintenance","02-PREMISES","Premises","02A","Repairs, alteration and maintenance of buildings","3026","Minor Maintenance","3680045","202210",13/01/2022 00:00:00,35.95,"26625","Do It Yourself Wholesalers","REDACTED DATA","SCREWFIX DIRECT LIMITED T/A TRADE UK","3006378","http://opencorporates.com/companies/gb/3006378","232555575"
"London Borough of Redbridge","http://opendatacommunities.org/doc/london-borough-council/redbridge","1BOTHEROPI&E","Other Operating Income & Expenditure","1CTRADSURDEF","Trading Account Surpluses & Deficits","REV","Revenue","R9551","CLM Maintenance","02-PREMISES","Premises","02A","Repairs, alteration and maintenance of buildings","3026","Minor Maintenance","3680046","202210",18/11/2021 00:00:00,6.66,"26625","Do It Yourself Wholesalers","REDACTED DATA","SCREWFIX DIRECT LIMITED T/A TRADE UK","3006378","http://opencorporates.com/companies/gb/3006378","232555575"
"London Borough of Redbridge","http://opendatacommunities.org/doc/london-borough-council/redbridge","1BOTHEROPI&E","Other Operating Income & Expenditure","1CTRADSURDEF","Trading Account Surpluses & Deficits","REV","Revenue","R9551","CLM Maintenance","02-PREMISES","Premises","02A","Repairs, alteration and maintenance of buildings","3026","Minor Maintenance","3680051","202210",19/01/2022 00:00:00,6,"26625","Do It Yourself Wholesalers","REDACTED DATA","SCREWFIX DIRECT LIMITED T/A TRADE UK","3006378","http://opencorporates.com/companies/gb/3006378","232555575"
"London Borough of Redbridge","http://opendatacommunities.org/doc/london-borough-council/redbridge","1BOTHEROPI&E","Other Operating Income & Expenditure","1CTRADSURDEF","Trading Account Surpluses & Deficits","REV","Revenue","R9551","CLM Maintenance","02-PREMISES","Premises","02A","Repairs, alteration and maintenance of buildings","3026","Minor Maintenance","3680052","202210",19/01/2022 00:00:00,4.67,"26625","Do It Yourself Wholesalers","REDACTED DATA","SCREWFIX DIRECT LIMITED T/A TRADE UK","3006378","http://opencorporates.com/companies/gb/3006378","232555575"
"London Borough of Redbridge","http://opendatacommunities.org/doc/london-borough-council/redbridge","1BOTHEROPI&E","Other Operating Income & Expenditure","1CTRADSURDEF","Trading Account Surpluses & Deficits","REV","Revenue","R9551","CLM Maintenance","02-PREMISES","Premises","02A","Repairs, alteration and maintenance of buildings","3026","Minor Maintenance","3680037","202210",06/01/2022 00:00:00,16.27,"26625","Do It Yourself Wholesalers","REDACTED DATA","SCREWFIX DIRECT LIMITED T/A TRADE UK","3006378","http://opencorporates.com/companies/gb/3006378","232555575"
"London Borough of Redbridge","http://opendatacommunities.org/doc/london-borough-council/redbridge","1BOTHEROPI&E","Other Operating Income & Expenditure","1CTRADSURDEF","Trading Account Surpluses & Deficits","REV","Revenue","R9551","CLM Maintenance","02-PREMISES","Premises","02A","Repairs, alteration and maintenance of buildings","3026","Minor Maintenance","3680038","202210",07/01/2022 00:00:00,34.67,"26625","Do It Yourself Wholesalers","REDACTED DATA","SCREWFIX DIRECT LIMITED T/A TRADE UK","3006378","http://opencorporates.com/companies/gb/3006378","232555575"
"London Borough of Redbridge","http://opendatacommunities.org/doc/london-borough-council/redbridge","1BOTHEROPI&E","Other Operating Income & Expenditure","1CTRADSURDEF","Trading Account Surpluses & Deficits","REV","Revenue","R9551","CLM Maintenance","02-PREMISES","Premises","02A","Repairs, alteration and maintenance of buildings","3026","Minor Maintenance","3679999","202210",29/12/2021 00:00:00,122,"11040","Builders","REDACTED DATA","M & G CONSTRUCTION LTD.","1918880","http://opencorporates.com/companies/gb/1918880","406392853"
"London Borough of Redbridge","http://opendatacommunities.org/doc/london-borough-council/redbridge","1BOTHEROPI&E","Other Operating Income & Expenditure","1CTRADSURDEF","Trading Account Surpluses & Deficits","REV","Revenue","R9551","CLM Maintenance","02-PREMISES","Premises","02A","Repairs, alteration and maintenance of buildings","3026","Minor Maintenance","3680001","202210",29/12/2021 00:00:00,112,"11040","Builders","REDACTED DATA","M & G CONSTRUCTION LTD.","1918880","http://opencorporates.com/companies/gb/1918880","406392853"
"London Borough of Redbridge","http://opendatacommunities.org/doc/london-borough-council/redbridge","1BOTHEROPI&E","Other Operating Income & Expenditure","1CTRADSURDEF","Trading Account Surpluses & Deficits","REV","Revenue","R9551","CLM Maintenance","02-PREMISES","Premises","02A","Repairs, alteration and maintenance of buildings","3026","Minor Maintenance","3680002","202210",29/12/2021 00:00:00,210,"11040","Builders","REDACTED DATA","M & G CONSTRUCTION LTD.","1918880","http://opencorporates.com/companies/gb/1918880","406392853"
"London Borough of Redbridge","http://opendatacommunities.org/doc/london-borough-council/redbridge","1BOTHEROPI&E","Other Operating Income & Expenditure","1CTRADSURDEF","Trading Account Surpluses & Deficits","REV","Revenue","R9551","CLM Maintenance","02-PREMISES","Premises","02A","Repairs, alteration and maintenance of buildings","3026","Minor Maintenance","3680030","202210",04/01/2022 00:00:00,224,"11040","Builders","REDACTED DATA","M & G CONSTRUCTION LTD.","1918880","http://opencorporates.com/companies/gb/1918880","406392853"
"London Borough of Redbridge","http://opendatacommunities.org/doc/london-borough-council/redbridge","1BOTHEROPI&E","Other Operating Income & Expenditure","1CTRADSURDEF","Trading Account Surpluses & Deficits","REV","Revenue","R9551","CLM Maintenance","02-PREMISES","Premises","02A","Repairs, alteration and maintenance of buildings","3026","Minor Maintenance","3678391","202210",19/11/2021 00:00:00,100,"4970","Asbestos Surveys and Removals","REDACTED DATA","LIFE ENVIRONMENTAL SERVICES LTD","3053057","http://opencorporates.com/companies/gb/3053057","656342920"
"London Borough of Redbridge","http://opendatacommunities.org/doc/london-borough-council/redbridge","1BOTHEROPI&E","Other Operating Income & Expenditure","1CTRADSURDEF","Trading Account Surpluses & Deficits","REV","Revenue","R9551","CLM Maintenance","02-PREMISES","Premises","02A","Repairs, alteration and maintenance of buildings","3026","Minor Maintenance","3678390","202210",19/11/2021 00:00:00,100,"4970","Asbestos Surveys and Removals","REDACTED DATA","LIFE ENVIRONMENTAL SERVICES LTD","3053057","http://opencorporates.com/companies/gb/3053057","656342920"
"London Borough of Redbridge","http://opendatacommunities.org/doc/london-borough-council/redbridge","1BOTHEROPI&E","Other Operating Income & Expenditure","1CTRADSURDEF","Trading Account Surpluses & Deficits","REV","Revenue","R9551","CLM Maintenance","02-PREMISES","Premises","02A","Repairs, alteration and maintenance of buildings","3026","Minor Maintenance","3677243","202210",23/12/2021 00:00:00,406,"1230","Access Equipment","REDACTED DATA","INTROLAND LTD","1569740","http://opencorporates.com/companies/gb/1569740","358393419"
"London Borough of Redbridge","http://opendatacommunities.org/doc/london-borough-council/redbridge","1BOTHEROPI&E","Other Operating Income & Expenditure","1CTRADSURDEF","Trading Account Surpluses & Deficits","REV","Revenue","R9551","CLM Maintenance","02-PREMISES","Premises","02A","Repairs, alteration and maintenance of buildings","3026","Minor Maintenance","3680018","202210",05/01/2022 00:00:00,143,"11040","Builders","REDACTED DATA","M & G CONSTRUCTION LTD.","1918880","http://opencorporates.com/companies/gb/1918880","406392853"
"London Borough of Redbridge","http://opendatacommunities.org/doc/london-borough-council/redbridge","1BOTHEROPI&E","Other Operating Income & Expenditure","1CTRADSURDEF","Trading Account Surpluses & Deficits","REV","Revenue","R9551","CLM Maintenance","02-PREMISES","Premises","02A","Repairs, alteration and maintenance of buildings","3026","Minor Maintenance","3679981","202210",29/12/2021 00:00:00,153,"11040","Builders","REDACTED DATA","M & G CONSTRUCTION LTD.","1918880","http://opencorporates.com/companies/gb/1918880","406392853"
"London Borough of Redbridge","http://opendatacommunities.org/doc/london-borough-council/redbridge","1BOTHEROPI&E","Other Operating Income & Expenditure","1CTRADSURDEF","Trading Account Surpluses & Deficits","REV","Revenue","R9551","CLM Maintenance","02-PREMISES","Premises","02A","Repairs, alteration and maintenance of buildings","3026","Minor Maintenance","3679982","202210",29/12/2021 00:00:00,140,"11040","Builders","REDACTED DATA","M & G CONSTRUCTION LTD.","1918880","http://opencorporates.com/companies/gb/1918880","406392853"
"London Borough of Redbridge","http://opendatacommunities.org/doc/london-borough-council/redbridge","1BOTHEROPI&E","Other Operating Income & Expenditure","1CTRADSURDEF","Trading Account Surpluses & Deficits","REV","Revenue","R9551","CLM Maintenance","02-PREMISES","Premises","02A","Repairs, alteration and maintenance of buildings","3026","Minor Maintenance","3679983","202210",29/12/2021 00:00:00,155.5,"11040","Builders","REDACTED DATA","M & G CONSTRUCTION LTD.","1918880","http://opencorporates.com/companies/gb/1918880","406392853"
"London Borough of Redbridge","http://opendatacommunities.org/doc/london-borough-council/redbridge","1BOTHEROPI&E","Other Operating Income & Expenditure","1CTRADSURDEF","Trading Account Surpluses & Deficits","REV","Revenue","R9551","CLM Maintenance","02-PREMISES","Premises","02A","Repairs, alteration and maintenance of buildings","3026","Minor Maintenance","3679984","202210",29/12/2021 00:00:00,140,"11040","Builders","REDACTED DATA","M & G CONSTRUCTION LTD.","1918880","http://opencorporates.com/companies/gb/1918880","406392853"
"London Borough of Redbridge","http://opendatacommunities.org/doc/london-borough-council/redbridge","1BOTHEROPI&E","Other Operating Income & Expenditure","1CTRADSURDEF","Trading Account Surpluses & Deficits","REV","Revenue","R9551","CLM Maintenance","02-PREMISES","Premises","02A","Repairs, alteration and maintenance of buildings","3026","Minor Maintenance","3679985","202210",29/12/2021 00:00:00,70,"11040","Builders","REDACTED DATA","M & G CONSTRUCTION LTD.","1918880","http://opencorporates.com/companies/gb/1918880","406392853"
"London Borough of Redbridge","http://opendatacommunities.org/doc/london-borough-council/redbridge","1BOTHEROPI&E","Other Operating Income & Expenditure","1CTRADSURDEF","Trading Account Surpluses & Deficits","REV","Revenue","R9551","CLM Maintenance","02-PREMISES","Premises","02A","Repairs, alteration and maintenance of buildings","3026","Minor Maintenance","3679987","202210",29/12/2021 00:00:00,140,"11040","Builders","REDACTED DATA","M & G CONSTRUCTION LTD.","1918880","http://opencorporates.com/companies/gb/1918880","406392853"
"London Borough of Redbridge","http://opendatacommunities.org/doc/london-borough-council/redbridge","1BOTHEROPI&E","Other Operating Income & Expenditure","1CTRADSURDEF","Trading Account Surpluses & Deficits","REV","Revenue","R9551","CLM Maintenance","02-PREMISES","Premises","02A","Repairs, alteration and maintenance of buildings","3026","Minor Maintenance","3680004","202210",29/12/2021 00:00:00,387.91,"11040","Builders","REDACTED DATA","M & G CONSTRUCTION LTD.","1918880","http://opencorporates.com/companies/gb/1918880","406392853"
"London Borough of Redbridge","http://opendatacommunities.org/doc/london-borough-council/redbridge","1BOTHEROPI&E","Other Operating Income & Expenditure","1CTRADSURDEF","Trading Account Surpluses & Deficits","REV","Revenue","R9551","CLM Maintenance","02-PREMISES","Premises","02A","Repairs, alteration and maintenance of buildings","3026","Minor Maintenance","3680011","202210",29/12/2021 00:00:00,174,"11040","Builders","REDACTED DATA","M & G CONSTRUCTION LTD.","1918880","http://opencorporates.com/companies/gb/1918880","406392853"
"London Borough of Redbridge","http://opendatacommunities.org/doc/london-borough-council/redbridge","1BOTHEROPI&E","Other Operating Income & Expenditure","1CTRADSURDEF","Trading Account Surpluses & Deficits","REV","Revenue","R9551","CLM Maintenance","02-PREMISES","Premises","02A","Repairs, alteration and maintenance of buildings","3026","Minor Maintenance","3680003","202210",29/12/2021 00:00:00,89,"11040","Builders","REDACTED DATA","M & G CONSTRUCTION LTD.","1918880","http://opencorporates.com/companies/gb/1918880","406392853"
"London Borough of Redbridge","http://opendatacommunities.org/doc/london-borough-council/redbridge","1BOTHEROPI&E","Other Operating Income & Expenditure","1CTRADSURDEF","Trading Account Surpluses & Deficits","REV","Revenue","R9551","CLM Maintenance","02-PREMISES","Premises","02A","Repairs, alteration and maintenance of buildings","3026","Minor Maintenance","3679975","202210",29/12/2021 00:00:00,195,"11040","Builders","REDACTED DATA","M & G CONSTRUCTION LTD.","1918880","http://opencorporates.com/companies/gb/1918880","406392853"
"London Borough of Redbridge","http://opendatacommunities.org/doc/london-borough-council/redbridge","1BOTHEROPI&E","Other Operating Income & Expenditure","1CTRADSURDEF","Trading Account Surpluses & Deficits","REV","Revenue","R9551","CLM Maintenance","02-PREMISES","Premises","02A","Repairs, alteration and maintenance of buildings","3026","Minor Maintenance","3680012","202210",29/12/2021 00:00:00,299,"11040","Builders","REDACTED DATA","M & G CONSTRUCTION LTD.","1918880","http://opencorporates.com/companies/gb/1918880","406392853"
"London Borough of Redbridge","http://opendatacommunities.org/doc/london-borough-council/redbridge","1BOTHEROPI&E","Other Operating Income & Expenditure","1CTRADSURDEF","Trading Account Surpluses & Deficits","REV","Revenue","R9551","CLM Maintenance","02-PREMISES","Premises","02A","Repairs, alteration and maintenance of buildings","3026","Minor Maintenance","3679976","202210",29/12/2021 00:00:00,145,"11040","Builders","REDACTED DATA","M & G CONSTRUCTION LTD.","1918880","http://opencorporates.com/companies/gb/1918880","406392853"
"London Borough of Redbridge","http://opendatacommunities.org/doc/london-borough-council/redbridge","1BOTHEROPI&E","Other Operating Income & Expenditure","1CTRADSURDEF","Trading Account Surpluses & Deficits","REV","Revenue","R9551","CLM Maintenance","02-PREMISES","Premises","02A","Repairs, alteration and maintenance of buildings","3026","Minor Maintenance","3679969","202210",29/12/2021 00:00:00,188.75,"11040","Builders","REDACTED DATA","M & G CONSTRUCTION LTD.","1918880","http://opencorporates.com/companies/gb/1918880","406392853"
"London Borough of Redbridge","http://opendatacommunities.org/doc/london-borough-council/redbridge","1BOTHEROPI&E","Other Operating Income & Expenditure","1CTRADSURDEF","Trading Account Surpluses & Deficits","REV","Revenue","R9551","CLM Maintenance","02-PREMISES","Premises","02A","Repairs, alteration and maintenance of buildings","3026","Minor Maintenance","3680025","202210",04/01/2022 00:00:00,135,"11040","Builders","REDACTED DATA","M & G CONSTRUCTION LTD.","1918880","http://opencorporates.com/companies/gb/1918880","406392853"
"London Borough of Redbridge","http://opendatacommunities.org/doc/london-borough-council/redbridge","1BOTHEROPI&E","Other Operating Income & Expenditure","1CTRADSURDEF","Trading Account Surpluses & Deficits","REV","Revenue","R9551","CLM Maintenance","02-PREMISES","Premises","02A","Repairs, alteration and maintenance of buildings","3026","Minor Maintenance","3679991","202210",29/12/2021 00:00:00,140,"11040","Builders","REDACTED DATA","M & G CONSTRUCTION LTD.","1918880","http://opencorporates.com/companies/gb/1918880","406392853"
"London Borough of Redbridge","http://opendatacommunities.org/doc/london-borough-council/redbridge","1BOTHEROPI&E","Other Operating Income & Expenditure","1CTRADSURDEF","Trading Account Surpluses & Deficits","REV","Revenue","R9551","CLM Maintenance","02-PREMISES","Premises","02A","Repairs, alteration and maintenance of buildings","3026","Minor Maintenance","3680028","202210",04/01/2022 00:00:00,125,"11040","Builders","REDACTED DATA","M & G CONSTRUCTION LTD.","1918880","http://opencorporates.com/companies/gb/1918880","406392853"
"London Borough of Redbridge","http://opendatacommunities.org/doc/london-borough-council/redbridge","1BOTHEROPI&E","Other Operating Income & Expenditure","1CTRADSURDEF","Trading Account Surpluses & Deficits","REV","Revenue","R9551","CLM Maintenance","02-PREMISES","Premises","02A","Repairs, alteration and maintenance of buildings","3026","Minor Maintenance","3679967","202210",29/12/2021 00:00:00,129.6,"11040","Builders","REDACTED DATA","M & G CONSTRUCTION LTD.","1918880","http://opencorporates.com/companies/gb/1918880","406392853"
"London Borough of Redbridge","http://opendatacommunities.org/doc/london-borough-council/redbridge","1BOTHEROPI&E","Other Operating Income & Expenditure","1CTRADSURDEF","Trading Account Surpluses & Deficits","REV","Revenue","R9551","CLM Maintenance","02-PREMISES","Premises","02A","Repairs, alteration and maintenance of buildings","3026","Minor Maintenance","3680006","202210",29/12/2021 00:00:00,68,"11040","Builders","REDACTED DATA","M & G CONSTRUCTION LTD.","1918880","http://opencorporates.com/companies/gb/1918880","406392853"
"London Borough of Redbridge","http://opendatacommunities.org/doc/london-borough-council/redbridge","1BOTHEROPI&E","Other Operating Income & Expenditure","1CTRADSURDEF","Trading Account Surpluses & Deficits","REV","Revenue","R9551","CLM Maintenance","02-PREMISES","Premises","02A","Repairs, alteration and maintenance of buildings","3026","Minor Maintenance","3680041","202210",11/01/2022 00:00:00,278.47,"11040","Builders","REDACTED DATA","M & G CONSTRUCTION LTD.","1918880","http://opencorporates.com/companies/gb/1918880","406392853"
"London Borough of Redbridge","http://opendatacommunities.org/doc/london-borough-council/redbridge","1BOTHEROPI&E","Other Operating Income & Expenditure","1CTRADSURDEF","Trading Account Surpluses & Deficits","REV","Revenue","R9551","CLM Maintenance","02-PREMISES","Premises","02A","Repairs, alteration and maintenance of buildings","3026","Minor Maintenance","3679963","202210",29/12/2021 00:00:00,140,"11040","Builders","REDACTED DATA","M & G CONSTRUCTION LTD.","1918880","http://opencorporates.com/companies/gb/1918880","406392853"
"London Borough of Redbridge","http://opendatacommunities.org/doc/london-borough-council/redbridge","1BOTHEROPI&E","Other Operating Income & Expenditure","1CTRADSURDEF","Trading Account Surpluses & Deficits","REV","Revenue","R9551","CLM Maintenance","02-PREMISES","Premises","02A","Repairs, alteration and maintenance of buildings","3026","Minor Maintenance","3680043","202210",30/11/2021 00:00:00,390,"11040","Builders","REDACTED DATA","M & G CONSTRUCTION LTD.","1918880","http://opencorporates.com/companies/gb/1918880","406392853"
"London Borough of Redbridge","http://opendatacommunities.org/doc/london-borough-council/redbridge","1BOTHEROPI&E","Other Operating Income & Expenditure","1CTRADSURDEF","Trading Account Surpluses & Deficits","REV","Revenue","R9551","CLM Maintenance","02-PREMISES","Premises","02A","Repairs, alteration and maintenance of buildings","3026","Minor Maintenance","3679993","202210",29/12/2021 00:00:00,295,"11040","Builders","REDACTED DATA","M & G CONSTRUCTION LTD.","1918880","http://opencorporates.com/companies/gb/1918880","406392853"
"London Borough of Redbridge","http://opendatacommunities.org/doc/london-borough-council/redbridge","1BOTHEROPI&E","Other Operating Income & Expenditure","1CTRADSURDEF","Trading Account Surpluses & Deficits","REV","Revenue","R9551","CLM Maintenance","02-PREMISES","Premises","02A","Repairs, alteration and maintenance of buildings","3026","Minor Maintenance","3679980","202210",29/12/2021 00:00:00,132,"11040","Builders","REDACTED DATA","M & G CONSTRUCTION LTD.","1918880","http://opencorporates.com/companies/gb/1918880","406392853"
"London Borough of Redbridge","http://opendatacommunities.org/doc/london-borough-council/redbridge","1BOTHEROPI&E","Other Operating Income & Expenditure","1CTRADSURDEF","Trading Account Surpluses & Deficits","REV","Revenue","R9551","CLM Maintenance","02-PREMISES","Premises","02A","Repairs, alteration and maintenance of buildings","3026","Minor Maintenance","3679997","202210",29/12/2021 00:00:00,270,"11040","Builders","REDACTED DATA","M & G CONSTRUCTION LTD.","1918880","http://opencorporates.com/companies/gb/1918880","406392853"
"London Borough of Redbridge","http://opendatacommunities.org/doc/london-borough-council/redbridge","1BOTHEROPI&E","Other Operating Income & Expenditure","1CTRADSURDEF","Trading Account Surpluses & Deficits","REV","Revenue","R9551","CLM Maintenance","02-PREMISES","Premises","02A","Repairs, alteration and maintenance of buildings","3026","Minor Maintenance","3679961","202210",29/12/2021 00:00:00,154,"11040","Builders","REDACTED DATA","M & G CONSTRUCTION LTD.","1918880","http://opencorporates.com/companies/gb/1918880","406392853"
"London Borough of Redbridge","http://opendatacommunities.org/doc/london-borough-council/redbridge","1BOTHEROPI&E","Other Operating Income & Expenditure","1CTRADSURDEF","Trading Account Surpluses & Deficits","REV","Revenue","R9551","CLM Maintenance","02-PREMISES","Premises","02A","Repairs, alteration and maintenance of buildings","3026","Minor Maintenance","3679962","202210",29/12/2021 00:00:00,144,"11040","Builders","REDACTED DATA","M & G CONSTRUCTION LTD.","1918880","http://opencorporates.com/companies/gb/1918880","406392853"
"London Borough of Redbridge","http://opendatacommunities.org/doc/london-borough-council/redbridge","1BOTHEROPI&E","Other Operating Income & Expenditure","1CTRADSURDEF","Trading Account Surpluses & Deficits","REV","Revenue","R9551","CLM Maintenance","02-PREMISES","Premises","02A","Repairs, alteration and maintenance of buildings","3026","Minor Maintenance","3680008","202210",29/12/2021 00:00:00,185.92,"11040","Builders","REDACTED DATA","M & G CONSTRUCTION LTD.","1918880","http://opencorporates.com/companies/gb/1918880","406392853"
"London Borough of Redbridge","http://opendatacommunities.org/doc/london-borough-council/redbridge","1BOTHEROPI&E","Other Operating Income & Expenditure","1CTRADSURDEF","Trading Account Surpluses & Deficits","REV","Revenue","R9551","CLM Maintenance","02-PREMISES","Premises","02A","Repairs, alteration and maintenance of buildings","3026","Minor Maintenance","3680022","202210",04/01/2022 00:00:00,112,"11040","Builders","REDACTED DATA","M & G CONSTRUCTION LTD.","1918880","http://opencorporates.com/companies/gb/1918880","406392853"
"London Borough of Redbridge","http://opendatacommunities.org/doc/london-borough-council/redbridge","1BOTHEROPI&E","Other Operating Income & Expenditure","1CTRADSURDEF","Trading Account Surpluses & Deficits","REV","Revenue","R9551","CLM Maintenance","02-PREMISES","Premises","02A","Repairs, alteration and maintenance of buildings","3026","Minor Maintenance","3679996","202210",29/12/2021 00:00:00,132,"11040","Builders","REDACTED DATA","M & G CONSTRUCTION LTD.","1918880","http://opencorporates.com/companies/gb/1918880","406392853"
"London Borough of Redbridge","http://opendatacommunities.org/doc/london-borough-council/redbridge","1BOTHEROPI&E","Other Operating Income & Expenditure","1CTRADSURDEF","Trading Account Surpluses & Deficits","REV","Revenue","R9551","CLM Maintenance","02-PREMISES","Premises","02A","Repairs, alteration and maintenance of buildings","3026","Minor Maintenance","3679977","202210",29/12/2021 00:00:00,70,"11040","Builders","REDACTED DATA","M & G CONSTRUCTION LTD.","1918880","http://opencorporates.com/companies/gb/1918880","406392853"
"London Borough of Redbridge","http://opendatacommunities.org/doc/london-borough-council/redbridge","1BOTHEROPI&E","Other Operating Income & Expenditure","1CTRADSURDEF","Trading Account Surpluses & Deficits","REV","Revenue","R9551","CLM Maintenance","02-PREMISES","Premises","02A","Repairs, alteration and maintenance of buildings","3026","Minor Maintenance","3677979","202210",04/01/2022 00:00:00,251.5,"16111","Catering Equipment","REDACTED DATA","J SCOTT & SONS  LTD","",,"354241082"
"London Borough of Redbridge","http://opendatacommunities.org/doc/london-borough-council/redbridge","1BOTHEROPI&E","Other Operating Income & Expenditure","1CTRADSURDEF","Trading Account Surpluses & Deficits","REV","Revenue","R9551","CLM Maintenance","02-PREMISES","Premises","02A","Repairs, alteration and maintenance of buildings","3026","Minor Maintenance","3677981","202210",04/01/2022 00:00:00,171.59,"16111","Catering Equipment","REDACTED DATA","J SCOTT & SONS  LTD","",,"354241082"
"London Borough of Redbridge","http://opendatacommunities.org/doc/london-borough-council/redbridge","1BOTHEROPI&E","Other Operating Income & Expenditure","1CTRADSURDEF","Trading Account Surpluses & Deficits","REV","Revenue","R9551","CLM Maintenance","02-PREMISES","Premises","02A","Repairs, alteration and maintenance of buildings","3026","Minor Maintenance","3678397","202210",04/01/2022 00:00:00,90,"16111","Catering Equipment","REDACTED DATA","J SCOTT & SONS  LTD","",,"354241082"
"London Borough of Redbridge","http://opendatacommunities.org/doc/london-borough-council/redbridge","1BOTHEROPI&E","Other Operating Income & Expenditure","1CTRADSURDEF","Trading Account Surpluses & Deficits","REV","Revenue","R9551","CLM Maintenance","02-PREMISES","Premises","02A","Repairs, alteration and maintenance of buildings","3026","Minor Maintenance","3677237","202210",04/01/2022 00:00:00,120,"69240","Security Services","REDACTED DATA","HALL & KAY FIRE SERVICES LTD T/A HALL & KAY FIRE ENGINEERING","5211559","http://opencorporates.com/companies/gb/5211559","199888505"
"London Borough of Redbridge","http://opendatacommunities.org/doc/london-borough-council/redbridge","1BOTHEROPI&E","Other Operating Income & Expenditure","1CTRADSURDEF","Trading Account Surpluses & Deficits","REV","Revenue","R9551","CLM Maintenance","02-PREMISES","Premises","02A","Repairs, alteration and maintenance of buildings","3026","Minor Maintenance","3677227","202210",29/12/2021 00:00:00,120,"69240","Security Services","REDACTED DATA","HALL & KAY FIRE SERVICES LTD T/A HALL & KAY FIRE ENGINEERING","5211559","http://opencorporates.com/companies/gb/5211559","199888505"
"London Borough of Redbridge","http://opendatacommunities.org/doc/london-borough-council/redbridge","1BOTHEROPI&E","Other Operating Income & Expenditure","1CTRADSURDEF","Trading Account Surpluses & Deficits","REV","Revenue","R9551","CLM Maintenance","02-PREMISES","Premises","02A","Repairs, alteration and maintenance of buildings","3026","Minor Maintenance","3677229","202210",29/12/2021 00:00:00,120,"69240","Security Services","REDACTED DATA","HALL & KAY FIRE SERVICES LTD T/A HALL & KAY FIRE ENGINEERING","5211559","http://opencorporates.com/companies/gb/5211559","199888505"
"London Borough of Redbridge","http://opendatacommunities.org/doc/london-borough-council/redbridge","1BOTHEROPI&E","Other Operating Income & Expenditure","1CTRADSURDEF","Trading Account Surpluses & Deficits","REV","Revenue","R9551","CLM Maintenance","02-PREMISES","Premises","02A","Repairs, alteration and maintenance of buildings","3026","Minor Maintenance","3678403","202210",06/01/2022 00:00:00,175,"69240","Security Services","REDACTED DATA","HALL & KAY FIRE SERVICES LTD T/A HALL & KAY FIRE ENGINEERING","5211559","http://opencorporates.com/companies/gb/5211559","199888505"
"London Borough of Redbridge","http://opendatacommunities.org/doc/london-borough-council/redbridge","1BOTHEROPI&E","Other Operating Income & Expenditure","1CTRADSURDEF","Trading Account Surpluses & Deficits","REV","Revenue","R9551","CLM Maintenance","02-PREMISES","Premises","02A","Repairs, alteration and maintenance of buildings","3026","Minor Maintenance","3677230","202210",29/12/2021 00:00:00,120,"69240","Security Services","REDACTED DATA","HALL & KAY FIRE SERVICES LTD T/A HALL & KAY FIRE ENGINEERING","5211559","http://opencorporates.com/companies/gb/5211559","199888505"
"London Borough of Redbridge","http://opendatacommunities.org/doc/london-borough-council/redbridge","1BOTHEROPI&E","Other Operating Income & Expenditure","1CTRADSURDEF","Trading Account Surpluses & Deficits","REV","Revenue","R9551","CLM Maintenance","02-PREMISES","Premises","02A","Repairs, alteration and maintenance of buildings","3026","Minor Maintenance","3677234","202210",25/02/2021 00:00:00,40,"69240","Security Services","REDACTED DATA","HALL & KAY FIRE SERVICES LTD T/A HALL & KAY FIRE ENGINEERING","5211559","http://opencorporates.com/companies/gb/5211559","199888505"
"London Borough of Redbridge","http://opendatacommunities.org/doc/london-borough-council/redbridge","1BOTHEROPI&E","Other Operating Income & Expenditure","1CTRADSURDEF","Trading Account Surpluses & Deficits","REV","Revenue","R9551","CLM Maintenance","02-PREMISES","Premises","02A","Repairs, alteration and maintenance of buildings","3026","Minor Maintenance","3677235","202210",30/12/2021 00:00:00,120,"69240","Security Services","REDACTED DATA","HALL & KAY FIRE SERVICES LTD T/A HALL & KAY FIRE ENGINEERING","5211559","http://opencorporates.com/companies/gb/5211559","199888505"
"London Borough of Redbridge","http://opendatacommunities.org/doc/london-borough-council/redbridge","1BOTHEROPI&E","Other Operating Income & Expenditure","1CTRADSURDEF","Trading Account Surpluses & Deficits","REV","Revenue","R9551","CLM Maintenance","02-PREMISES","Premises","02A","Repairs, alteration and maintenance of buildings","3026","Minor Maintenance","3678404","202210",06/01/2022 00:00:00,50,"69240","Security Services","REDACTED DATA","HALL & KAY FIRE SERVICES LTD T/A HALL & KAY FIRE ENGINEERING","5211559","http://opencorporates.com/companies/gb/5211559","199888505"
"London Borough of Redbridge","http://opendatacommunities.org/doc/london-borough-council/redbridge","1BOTHEROPI&E","Other Operating Income & Expenditure","1CTRADSURDEF","Trading Account Surpluses & Deficits","REV","Revenue","R9551","CLM Maintenance","02-PREMISES","Premises","02A","Repairs, alteration and maintenance of buildings","3026","Minor Maintenance","3677963","202210",04/01/2022 00:00:00,377.88,"69240","Security Services","REDACTED DATA","HALL & KAY FIRE SERVICES LTD T/A HALL & KAY FIRE ENGINEERING","5211559","http://opencorporates.com/companies/gb/5211559","199888505"
"London Borough of Redbridge","http://opendatacommunities.org/doc/london-borough-council/redbridge","1BOTHEROPI&E","Other Operating Income & Expenditure","1CTRADSURDEF","Trading Account Surpluses & Deficits","REV","Revenue","R9551","CLM Maintenance","02-PREMISES","Premises","02A","Repairs, alteration and maintenance of buildings","3026","Minor Maintenance","3677959","202210",03/09/2021 00:00:00,120,"69240","Security Services","REDACTED DATA","HALL & KAY FIRE SERVICES LTD T/A HALL & KAY FIRE ENGINEERING","5211559","http://opencorporates.com/companies/gb/5211559","199888505"
"London Borough of Redbridge","http://opendatacommunities.org/doc/london-borough-council/redbridge","1BOTHEROPI&E","Other Operating Income & Expenditure","1CTRADSURDEF","Trading Account Surpluses & Deficits","REV","Revenue","R9551","CLM Maintenance","02-PREMISES","Premises","02A","Repairs, alteration and maintenance of buildings","3026","Minor Maintenance","3678405","202210",06/01/2022 00:00:00,50,"69240","Security Services","REDACTED DATA","HALL & KAY FIRE SERVICES LTD T/A HALL & KAY FIRE ENGINEERING","5211559","http://opencorporates.com/companies/gb/5211559","199888505"
"London Borough of Redbridge","http://opendatacommunities.org/doc/london-borough-council/redbridge","1BOTHEROPI&E","Other Operating Income & Expenditure","1CTRADSURDEF","Trading Account Surpluses & Deficits","REV","Revenue","R9551","CLM Maintenance","02-PREMISES","Premises","02A","Repairs, alteration and maintenance of buildings","3026","Minor Maintenance","3677876","202210",21/07/2021 00:00:00,160,"30045","Electrical Engineers","REDACTED DATA","COUNTY ELECTRICAL SOLUTIONS LTD","6476990","http://opencorporates.com/companies/gb/6476990","924889474"
"London Borough of Redbridge","http://opendatacommunities.org/doc/london-borough-council/redbridge","1BOTHEROPI&E","Other Operating Income & Expenditure","1CTRADSURDEF","Trading Account Surpluses & Deficits","REV","Revenue","R9551","CLM Maintenance","02-PREMISES","Premises","02A","Repairs, alteration and maintenance of buildings","3026","Minor Maintenance","3677876","202210",21/07/2021 00:00:00,47.5,"30045","Electrical Engineers","REDACTED DATA","COUNTY ELECTRICAL SOLUTIONS LTD","6476990","http://opencorporates.com/companies/gb/6476990","924889474"
"London Borough of Redbridge","http://opendatacommunities.org/doc/london-borough-council/redbridge","1BOTHEROPI&E","Other Operating Income & Expenditure","1CTRADSURDEF","Trading Account Surpluses & Deficits","REV","Revenue","R9551","CLM Maintenance","02-PREMISES","Premises","02A","Repairs, alteration and maintenance of buildings","3026","Minor Maintenance","3680053","202210",21/01/2022 00:00:00,105,"30045","Electrical Engineers","REDACTED DATA","COUNTY ELECTRICAL SOLUTIONS LTD","6476990","http://opencorporates.com/companies/gb/6476990","924889474"
"London Borough of Redbridge","http://opendatacommunities.org/doc/london-borough-council/redbridge","1BOTHEROPI&E","Other Operating Income & Expenditure","1CTRADSURDEF","Trading Account Surpluses & Deficits","REV","Revenue","R9551","CLM Maintenance","02-PREMISES","Premises","02A","Repairs, alteration and maintenance of buildings","3026","Minor Maintenance","3680054","202210",21/01/2022 00:00:00,120,"30045","Electrical Engineers","REDACTED DATA","COUNTY ELECTRICAL SOLUTIONS LTD","6476990","http://opencorporates.com/companies/gb/6476990","924889474"
"London Borough of Redbridge","http://opendatacommunities.org/doc/london-borough-council/redbridge","1BOTHEROPI&E","Other Operating Income & Expenditure","1CTRADSURDEF","Trading Account Surpluses & Deficits","REV","Revenue","R9551","CLM Maintenance","02-PREMISES","Premises","02A","Repairs, alteration and maintenance of buildings","3026","Minor Maintenance","3680054","202210",21/01/2022 00:00:00,12.5,"30045","Electrical Engineers","REDACTED DATA","COUNTY ELECTRICAL SOLUTIONS LTD","6476990","http://opencorporates.com/companies/gb/6476990","924889474"
"London Borough of Redbridge","http://opendatacommunities.org/doc/london-borough-council/redbridge","1BOTHEROPI&E","Other Operating Income & Expenditure","1CTRADSURDEF","Trading Account Surpluses & Deficits","REV","Revenue","R9551","CLM Maintenance","02-PREMISES","Premises","02A","Repairs, alteration and maintenance of buildings","3026","Minor Maintenance","3677252","202210",03/01/2022 00:00:00,124.6,"16710","Central Heating - Installation and Servicing","REDACTED DATA","J R ASHWORTH PLMBING & HTG LTD","",,""
"London Borough of Redbridge","http://opendatacommunities.org/doc/london-borough-council/redbridge","1BOTHEROPI&E","Other Operating Income & Expenditure","1CTRADSURDEF","Trading Account Surpluses & Deficits","REV","Revenue","R9551","CLM Maintenance","02-PREMISES","Premises","02A","Repairs, alteration and maintenance of buildings","3026","Minor Maintenance","3677253","202210",03/01/2022 00:00:00,140,"16710","Central Heating - Installation and Servicing","REDACTED DATA","J R ASHWORTH PLMBING & HTG LTD","",,""
"London Borough of Redbridge","http://opendatacommunities.org/doc/london-borough-council/redbridge","1BOTHEROPI&E","Other Operating Income & Expenditure","1CTRADSURDEF","Trading Account Surpluses & Deficits","REV","Revenue","R9551","CLM Maintenance","02-PREMISES","Premises","02A","Repairs, alteration and maintenance of buildings","3026","Minor Maintenance","3677255","202210",03/01/2022 00:00:00,121.2,"16710","Central Heating - Installation and Servicing","REDACTED DATA","J R ASHWORTH PLMBING & HTG LTD","",,""
"London Borough of Redbridge","http://opendatacommunities.org/doc/london-borough-council/redbridge","1BOTHEROPI&E","Other Operating Income & Expenditure","1CTRADSURDEF","Trading Account Surpluses & Deficits","REV","Revenue","R9551","CLM Maintenance","02-PREMISES","Premises","02A","Repairs, alteration and maintenance of buildings","3026","Minor Maintenance","3680064","202210",25/01/2022 00:00:00,200,"30045","Electrical Engineers","REDACTED DATA","COUNTY ELECTRICAL SOLUTIONS LTD","6476990","http://opencorporates.com/companies/gb/6476990","924889474"
"London Borough of Redbridge","http://opendatacommunities.org/doc/london-borough-council/redbridge","1BOTHEROPI&E","Other Operating Income & Expenditure","1CTRADSURDEF","Trading Account Surpluses & Deficits","REV","Revenue","R9551","CLM Maintenance","02-PREMISES","Premises","02A","Repairs, alteration and maintenance of buildings","3026","Minor Maintenance","3680064","202210",25/01/2022 00:00:00,0,"30045","Electrical Engineers","REDACTED DATA","COUNTY ELECTRICAL SOLUTIONS LTD","6476990","http://opencorporates.com/companies/gb/6476990","924889474"
"London Borough of Redbridge","http://opendatacommunities.org/doc/london-borough-council/redbridge","1BOTHEROPI&E","Other Operating Income & Expenditure","1CTRADSURDEF","Trading Account Surpluses & Deficits","REV","Revenue","R9551","CLM Maintenance","02-PREMISES","Premises","02A","Repairs, alteration and maintenance of buildings","3026","Minor Maintenance","3680065","202210",25/01/2022 00:00:00,90,"30045","Electrical Engineers","REDACTED DATA","COUNTY ELECTRICAL SOLUTIONS LTD","6476990","http://opencorporates.com/companies/gb/6476990","924889474"
"London Borough of Redbridge","http://opendatacommunities.org/doc/london-borough-council/redbridge","1BOTHEROPI&E","Other Operating Income & Expenditure","1CTRADSURDEF","Trading Account Surpluses & Deficits","REV","Revenue","R9551","CLM Maintenance","02-PREMISES","Premises","02A","Repairs, alteration and maintenance of buildings","3026","Minor Maintenance","3680065","202210",25/01/2022 00:00:00,75.25,"30045","Electrical Engineers","REDACTED DATA","COUNTY ELECTRICAL SOLUTIONS LTD","6476990","http://opencorporates.com/companies/gb/6476990","924889474"
"London Borough of Redbridge","http://opendatacommunities.org/doc/london-borough-council/redbridge","1BOTHEROPI&E","Other Operating Income & Expenditure","1CTRADSURDEF","Trading Account Surpluses & Deficits","REV","Revenue","R9551","CLM Maintenance","02-PREMISES","Premises","02A","Repairs, alteration and maintenance of buildings","3026","Minor Maintenance","3680066","202210",25/01/2022 00:00:00,90,"30045","Electrical Engineers","REDACTED DATA","COUNTY ELECTRICAL SOLUTIONS LTD","6476990","http://opencorporates.com/companies/gb/6476990","924889474"
"London Borough of Redbridge","http://opendatacommunities.org/doc/london-borough-council/redbridge","1BOTHEROPI&E","Other Operating Income & Expenditure","1CTRADSURDEF","Trading Account Surpluses & Deficits","REV","Revenue","R9551","CLM Maintenance","02-PREMISES","Premises","02A","Repairs, alteration and maintenance of buildings","3026","Minor Maintenance","3680066","202210",25/01/2022 00:00:00,0,"30045","Electrical Engineers","REDACTED DATA","COUNTY ELECTRICAL SOLUTIONS LTD","6476990","http://opencorporates.com/companies/gb/6476990","924889474"
"London Borough of Redbridge","http://opendatacommunities.org/doc/london-borough-council/redbridge","1BOTHEROPI&E","Other Operating Income & Expenditure","1CTRADSURDEF","Trading Account Surpluses & Deficits","REV","Revenue","R9551","CLM Maintenance","02-PREMISES","Premises","02A","Repairs, alteration and maintenance of buildings","3026","Minor Maintenance","3680062","202210",25/01/2022 00:00:00,160,"30045","Electrical Engineers","REDACTED DATA","COUNTY ELECTRICAL SOLUTIONS LTD","6476990","http://opencorporates.com/companies/gb/6476990","924889474"
"London Borough of Redbridge","http://opendatacommunities.org/doc/london-borough-council/redbridge","1BOTHEROPI&E","Other Operating Income & Expenditure","1CTRADSURDEF","Trading Account Surpluses & Deficits","REV","Revenue","R9551","CLM Maintenance","02-PREMISES","Premises","02A","Repairs, alteration and maintenance of buildings","3026","Minor Maintenance","3680062","202210",25/01/2022 00:00:00,80,"30045","Electrical Engineers","REDACTED DATA","COUNTY ELECTRICAL SOLUTIONS LTD","6476990","http://opencorporates.com/companies/gb/6476990","924889474"
"London Borough of Redbridge","http://opendatacommunities.org/doc/london-borough-council/redbridge","1BOTHEROPI&E","Other Operating Income & Expenditure","1CTRADSURDEF","Trading Account Surpluses & Deficits","REV","Revenue","R9551","CLM Maintenance","02-PREMISES","Premises","02A","Repairs, alteration and maintenance of buildings","3026","Minor Maintenance","3680053","202210",21/01/2022 00:00:00,250,"30045","Electrical Engineers","REDACTED DATA","COUNTY ELECTRICAL SOLUTIONS LTD","6476990","http://opencorporates.com/companies/gb/6476990","924889474"
"London Borough of Redbridge","http://opendatacommunities.org/doc/london-borough-council/redbridge","1BOTHEROPI&E","Other Operating Income & Expenditure","1CTRADSURDEF","Trading Account Surpluses & Deficits","REV","Revenue","R9551","CLM Maintenance","02-PREMISES","Premises","02A","Repairs, alteration and maintenance of buildings","3026","Minor Maintenance","3680075","202210",25/01/2022 00:00:00,120,"30045","Electrical Engineers","REDACTED DATA","COUNTY ELECTRICAL SOLUTIONS LTD","6476990","http://opencorporates.com/companies/gb/6476990","924889474"
"London Borough of Redbridge","http://opendatacommunities.org/doc/london-borough-council/redbridge","1BOTHEROPI&E","Other Operating Income & Expenditure","1CTRADSURDEF","Trading Account Surpluses & Deficits","REV","Revenue","R9551","CLM Maintenance","02-PREMISES","Premises","02A","Repairs, alteration and maintenance of buildings","3026","Minor Maintenance","3680075","202210",25/01/2022 00:00:00,0,"30045","Electrical Engineers","REDACTED DATA","COUNTY ELECTRICAL SOLUTIONS LTD","6476990","http://opencorporates.com/companies/gb/6476990","924889474"
"London Borough of Redbridge","http://opendatacommunities.org/doc/london-borough-council/redbridge","1BOTHEROPI&E","Other Operating Income & Expenditure","1CTRADSURDEF","Trading Account Surpluses & Deficits","REV","Revenue","R9551","CLM Maintenance","02-PREMISES","Premises","02A","Repairs, alteration and maintenance of buildings","3026","Minor Maintenance","3680036","202210",13/01/2022 00:00:00,240,"57130","Pest and Vermin Control Products","REDACTED DATA","RAPTOR SERVICES LTD (SOUTH EAST) LTD","6624216","http://opencorporates.com/companies/gb/6624216","650089346"
"London Borough of Redbridge","http://opendatacommunities.org/doc/london-borough-council/redbridge","1BOTHEROPI&E","Other Operating Income & Expenditure","1CTRADSURDEF","Trading Account Surpluses & Deficits","REV","Revenue","R9551","CLM Maintenance","02-PREMISES","Premises","02A","Repairs, alteration and maintenance of buildings","3026","Minor Maintenance","3680060","202210",25/01/2022 00:00:00,90,"30045","Electrical Engineers","REDACTED DATA","COUNTY ELECTRICAL SOLUTIONS LTD","6476990","http://opencorporates.com/companies/gb/6476990","924889474"
"London Borough of Redbridge","http://opendatacommunities.org/doc/london-borough-council/redbridge","1BOTHEROPI&E","Other Operating Income & Expenditure","1CTRADSURDEF","Trading Account Surpluses & Deficits","REV","Revenue","R9551","CLM Maintenance","02-PREMISES","Premises","02A","Repairs, alteration and maintenance of buildings","3026","Minor Maintenance","3680060","202210",25/01/2022 00:00:00,10,"30045","Electrical Engineers","REDACTED DATA","COUNTY ELECTRICAL SOLUTIONS LTD","6476990","http://opencorporates.com/companies/gb/6476990","924889474"
"London Borough of Redbridge","http://opendatacommunities.org/doc/london-borough-council/redbridge","1BOTHEROPI&E","Other Operating Income & Expenditure","1CTRADSURDEF","Trading Account Surpluses & Deficits","REV","Revenue","R9551","CLM Maintenance","02-PREMISES","Premises","02A","Repairs, alteration and maintenance of buildings","3026","Minor Maintenance","3680061","202210",25/01/2022 00:00:00,130,"30045","Electrical Engineers","REDACTED DATA","COUNTY ELECTRICAL SOLUTIONS LTD","6476990","http://opencorporates.com/companies/gb/6476990","924889474"
"London Borough of Redbridge","http://opendatacommunities.org/doc/london-borough-council/redbridge","1BOTHEROPI&E","Other Operating Income & Expenditure","1CTRADSURDEF","Trading Account Surpluses & Deficits","REV","Revenue","R9551","CLM Maintenance","02-PREMISES","Premises","02A","Repairs, alteration and maintenance of buildings","3026","Minor Maintenance","3680055","202210",21/01/2022 00:00:00,140,"30045","Electrical Engineers","REDACTED DATA","COUNTY ELECTRICAL SOLUTIONS LTD","6476990","http://opencorporates.com/companies/gb/6476990","924889474"
"London Borough of Redbridge","http://opendatacommunities.org/doc/london-borough-council/redbridge","1BOTHEROPI&E","Other Operating Income & Expenditure","1CTRADSURDEF","Trading Account Surpluses & Deficits","REV","Revenue","R9551","CLM Maintenance","02-PREMISES","Premises","02A","Repairs, alteration and maintenance of buildings","3026","Minor Maintenance","3680055","202210",21/01/2022 00:00:00,0,"30045","Electrical Engineers","REDACTED DATA","COUNTY ELECTRICAL SOLUTIONS LTD","6476990","http://opencorporates.com/companies/gb/6476990","924889474"
"London Borough of Redbridge","http://opendatacommunities.org/doc/london-borough-council/redbridge","1BOTHEROPI&E","Other Operating Income & Expenditure","1CTRADSURDEF","Trading Account Surpluses & Deficits","REV","Revenue","R9551","CLM Maintenance","02-PREMISES","Premises","02A","Repairs, alteration and maintenance of buildings","3026","Minor Maintenance","3680056","202210",21/01/2022 00:00:00,250,"30045","Electrical Engineers","REDACTED DATA","COUNTY ELECTRICAL SOLUTIONS LTD","6476990","http://opencorporates.com/companies/gb/6476990","924889474"
"London Borough of Redbridge","http://opendatacommunities.org/doc/london-borough-council/redbridge","1BOTHEROPI&E","Other Operating Income & Expenditure","1CTRADSURDEF","Trading Account Surpluses & Deficits","REV","Revenue","R9551","CLM Maintenance","02-PREMISES","Premises","02A","Repairs, alteration and maintenance of buildings","3026","Minor Maintenance","3680056","202210",21/01/2022 00:00:00,105,"30045","Electrical Engineers","REDACTED DATA","COUNTY ELECTRICAL SOLUTIONS LTD","6476990","http://opencorporates.com/companies/gb/6476990","924889474"
"London Borough of Redbridge","http://opendatacommunities.org/doc/london-borough-council/redbridge","1BOTHEROPI&E","Other Operating Income & Expenditure","1CTRADSURDEF","Trading Account Surpluses & Deficits","REV","Revenue","R9551","CLM Maintenance","02-PREMISES","Premises","02A","Repairs, alteration and maintenance of buildings","3026","Minor Maintenance","3680059","202210",25/01/2022 00:00:00,0,"30045","Electrical Engineers","REDACTED DATA","COUNTY ELECTRICAL SOLUTIONS LTD","6476990","http://opencorporates.com/companies/gb/6476990","924889474"
"London Borough of Redbridge","http://opendatacommunities.org/doc/london-borough-council/redbridge","1BOTHEROPI&E","Other Operating Income & Expenditure","1CTRADSURDEF","Trading Account Surpluses & Deficits","REV","Revenue","R9551","CLM Maintenance","02-PREMISES","Premises","02A","Repairs, alteration and maintenance of buildings","3026","Minor Maintenance","3680061","202210",25/01/2022 00:00:00,25.5,"30045","Electrical Engineers","REDACTED DATA","COUNTY ELECTRICAL SOLUTIONS LTD","6476990","http://opencorporates.com/companies/gb/6476990","924889474"
"London Borough of Redbridge","http://opendatacommunities.org/doc/london-borough-council/redbridge","1BOTHEROPI&E","Other Operating Income & Expenditure","1CTRADSURDEF","Trading Account Surpluses & Deficits","REV","Revenue","R9551","CLM Maintenance","02-PREMISES","Premises","02A","Repairs, alteration and maintenance of buildings","3026","Minor Maintenance","3680033","202210",12/01/2022 00:00:00,120,"57130","Pest and Vermin Control Products","REDACTED DATA","RAPTOR SERVICES LTD (SOUTH EAST) LTD","6624216","http://opencorporates.com/companies/gb/6624216","650089346"
"London Borough of Redbridge","http://opendatacommunities.org/doc/london-borough-council/redbridge","1BOTHEROPI&E","Other Operating Income & Expenditure","1CTRADSURDEF","Trading Account Surpluses & Deficits","REV","Revenue","R9551","CLM Maintenance","02-PREMISES","Premises","02A","Repairs, alteration and maintenance of buildings","3026","Minor Maintenance","3680069","202210",25/01/2022 00:00:00,160,"30045","Electrical Engineers","REDACTED DATA","COUNTY ELECTRICAL SOLUTIONS LTD","6476990","http://opencorporates.com/companies/gb/6476990","924889474"
"London Borough of Redbridge","http://opendatacommunities.org/doc/london-borough-council/redbridge","1BOTHEROPI&E","Other Operating Income & Expenditure","1CTRADSURDEF","Trading Account Surpluses & Deficits","REV","Revenue","R9551","CLM Maintenance","02-PREMISES","Premises","02A","Repairs, alteration and maintenance of buildings","3026","Minor Maintenance","3680069","202210",25/01/2022 00:00:00,17.5,"30045","Electrical Engineers","REDACTED DATA","COUNTY ELECTRICAL SOLUTIONS LTD","6476990","http://opencorporates.com/companies/gb/6476990","924889474"
"London Borough of Redbridge","http://opendatacommunities.org/doc/london-borough-council/redbridge","1BOTHEROPI&E","Other Operating Income & Expenditure","1CTRADSURDEF","Trading Account Surpluses & Deficits","REV","Revenue","R9551","CLM Maintenance","02-PREMISES","Premises","02A","Repairs, alteration and maintenance of buildings","3026","Minor Maintenance","3680059","202210",25/01/2022 00:00:00,90,"30045","Electrical Engineers","REDACTED DATA","COUNTY ELECTRICAL SOLUTIONS LTD","6476990","http://opencorporates.com/companies/gb/6476990","924889474"
"London Borough of Redbridge","http://opendatacommunities.org/doc/london-borough-council/redbridge","1BOTHEROPI&E","Other Operating Income & Expenditure","1CTRADSURDEF","Trading Account Surpluses & Deficits","REV","Revenue","R9551","CLM Maintenance","02-PREMISES","Premises","02A","Repairs, alteration and maintenance of buildings","3026","Minor Maintenance","3677991","202210",03/01/2022 00:00:00,105,"16710","Central Heating - Installation and Servicing","REDACTED DATA","J R ASHWORTH PLMBING & HTG LTD","",,""
"London Borough of Redbridge","http://opendatacommunities.org/doc/london-borough-council/redbridge","1BOTHEROPI&E","Other Operating Income & Expenditure","1CTRADSURDEF","Trading Account Surpluses & Deficits","REV","Revenue","R9551","CLM Maintenance","02-PREMISES","Premises","02A","Repairs, alteration and maintenance of buildings","3026","Minor Maintenance","3677233","202210",21/07/2021 00:00:00,160,"30045","Electrical Engineers","REDACTED DATA","COUNTY ELECTRICAL SOLUTIONS LTD","6476990","http://opencorporates.com/companies/gb/6476990","924889474"
"London Borough of Redbridge","http://opendatacommunities.org/doc/london-borough-council/redbridge","1BOTHEROPI&E","Other Operating Income & Expenditure","1CTRADSURDEF","Trading Account Surpluses & Deficits","REV","Revenue","R9551","CLM Maintenance","02-PREMISES","Premises","02A","Repairs, alteration and maintenance of buildings","3026","Minor Maintenance","3677233","202210",21/07/2021 00:00:00,47.5,"30045","Electrical Engineers","REDACTED DATA","COUNTY ELECTRICAL SOLUTIONS LTD","6476990","http://opencorporates.com/companies/gb/6476990","924889474"
"London Borough of Redbridge","http://opendatacommunities.org/doc/london-borough-council/redbridge","1BOTHEROPI&E","Other Operating Income & Expenditure","1CTRADSURDEF","Trading Account Surpluses & Deficits","REV","Revenue","R9551","CLM Maintenance","02-PREMISES","Premises","02A","Repairs, alteration and maintenance of buildings","3026","Minor Maintenance","3677973","202210",03/01/2022 00:00:00,107.8,"16710","Central Heating - Installation and Servicing","REDACTED DATA","J R ASHWORTH PLMBING & HTG LTD","",,""
"London Borough of Redbridge","http://opendatacommunities.org/doc/london-borough-council/redbridge","1BOTHEROPI&E","Other Operating Income & Expenditure","1CTRADSURDEF","Trading Account Surpluses & Deficits","REV","Revenue","R9551","CLM Maintenance","02-PREMISES","Premises","02A","Repairs, alteration and maintenance of buildings","3026","Minor Maintenance","3677975","202210",03/01/2022 00:00:00,193.8,"16710","Central Heating - Installation and Servicing","REDACTED DATA","J R ASHWORTH PLMBING & HTG LTD","",,""
"London Borough of Redbridge","http://opendatacommunities.org/doc/london-borough-council/redbridge","1BOTHEROPI&E","Other Operating Income & Expenditure","1CTRADSURDEF","Trading Account Surpluses & Deficits","REV","Revenue","R9551","CLM Maintenance","02-PREMISES","Premises","02A","Repairs, alteration and maintenance of buildings","3026","Minor Maintenance","3677977","202210",03/01/2022 00:00:00,123.8,"16710","Central Heating - Installation and Servicing","REDACTED DATA","J R ASHWORTH PLMBING & HTG LTD","",,""
"London Borough of Redbridge","http://opendatacommunities.org/doc/london-borough-council/redbridge","1BOTHEROPI&E","Other Operating Income & Expenditure","1CTRADSURDEF","Trading Account Surpluses & Deficits","REV","Revenue","R9551","CLM Maintenance","02-PREMISES","Premises","02A","Repairs, alteration and maintenance of buildings","3026","Minor Maintenance","3677241","202210",22/12/2021 00:00:00,365,"21555","Construction Contractors - General","REDACTED DATA","Longley Group Ltd","7633349","http://opencorporates.com/companies/gb/7633349","165771972"
"London Borough of Redbridge","http://opendatacommunities.org/doc/london-borough-council/redbridge","1BOTHEROPI&E","Other Operating Income & Expenditure","1CTRADSURDEF","Trading Account Surpluses & Deficits","REV","Revenue","R9551","CLM Maintenance","02-PREMISES","Premises","02A","Repairs, alteration and maintenance of buildings","3026","Minor Maintenance","3677238","202210",22/12/2021 00:00:00,187,"21555","Construction Contractors - General","REDACTED DATA","Longley Group Ltd","7633349","http://opencorporates.com/companies/gb/7633349","165771972"
"London Borough of Redbridge","http://opendatacommunities.org/doc/london-borough-council/redbridge","1BOTHEROPI&E","Other Operating Income & Expenditure","1CTRADSURDEF","Trading Account Surpluses & Deficits","REV","Revenue","R9551","CLM Maintenance","02-PREMISES","Premises","02A","Repairs, alteration and maintenance of buildings","3026","Minor Maintenance","3677239","202210",22/12/2021 00:00:00,245,"21555","Construction Contractors - General","REDACTED DATA","Longley Group Ltd","7633349","http://opencorporates.com/companies/gb/7633349","165771972"
"London Borough of Redbridge","http://opendatacommunities.org/doc/london-borough-council/redbridge","1BOTHEROPI&E","Other Operating Income & Expenditure","1CTRADSURDEF","Trading Account Surpluses & Deficits","REV","Revenue","R9551","CLM Maintenance","02-PREMISES","Premises","02A","Repairs, alteration and maintenance of buildings","3026","Minor Maintenance","3677245","202210",31/12/2021 00:00:00,0,"46040","Joinery Manufacturers","REDACTED DATA","DRS DOORS LTD","9608644","http://opencorporates.com/companies/gb/9608644","164467489"
"London Borough of Redbridge","http://opendatacommunities.org/doc/london-borough-council/redbridge","1BOTHEROPI&E","Other Operating Income & Expenditure","1CTRADSURDEF","Trading Account Surpluses & Deficits","REV","Revenue","R9551","CLM Maintenance","02-PREMISES","Premises","02A","Repairs, alteration and maintenance of buildings","3026","Minor Maintenance","3677245","202210",31/12/2021 00:00:00,135,"46040","Joinery Manufacturers","REDACTED DATA","DRS DOORS LTD","9608644","http://opencorporates.com/companies/gb/9608644","164467489"
"London Borough of Redbridge","http://opendatacommunities.org/doc/london-borough-council/redbridge","1BOTHEROPI&E","Other Operating Income & Expenditure","1CTRADSURDEF","Trading Account Surpluses & Deficits","REV","Revenue","R9551","CLM Maintenance","02-PREMISES","Premises","02A","Repairs, alteration and maintenance of buildings","3026","Minor Maintenance","3679955","202210",29/12/2021 00:00:00,0,"64710","Residential Care Homes","REDACTED DATA","CARETECH UK LTD","",,"722771536"
"London Borough of Redbridge","http://opendatacommunities.org/doc/london-borough-council/redbridge","1BOTHEROPI&E","Other Operating Income & Expenditure","1CTRADSURDEF","Trading Account Surpluses & Deficits","REV","Revenue","R9551","CLM Maintenance","02-PREMISES","Premises","02A","Repairs, alteration and maintenance of buildings","3026","Minor Maintenance","3679955","202210",29/12/2021 00:00:00,48,"64710","Residential Care Homes","REDACTED DATA","CARETECH UK LTD","",,"722771536"
"London Borough of Redbridge","http://opendatacommunities.org/doc/london-borough-council/redbridge","1BOTHEROPI&E","Other Operating Income & Expenditure","1CTRADSURDEF","Trading Account Surpluses & Deficits","REV","Revenue","R9551","CLM Maintenance","02-PREMISES","Premises","02A","Repairs, alteration and maintenance of buildings","3037","Service Contracts","3678421","202210",13/12/2020 00:00:00,98,"16710","Central Heating - Installation and Servicing","REDACTED DATA","R EDWARDS(FIRE APPLIANCES)LTD","",,""
"London Borough of Redbridge","http://opendatacommunities.org/doc/london-borough-council/redbridge","1BOTHEROPI&E","Other Operating Income & Expenditure","1CTRADSURDEF","Trading Account Surpluses & Deficits","REV","Revenue","R9551","CLM Maintenance","02-PREMISES","Premises","02A","Repairs, alteration and maintenance of buildings","3037","Service Contracts","3678416","202210",19/12/2021 00:00:00,65,"16710","Central Heating - Installation and Servicing","REDACTED DATA","R EDWARDS(FIRE APPLIANCES)LTD","",,""
"London Borough of Redbridge","http://opendatacommunities.org/doc/london-borough-council/redbridge","1BOTHEROPI&E","Other Operating Income & Expenditure","1CTRADSURDEF","Trading Account Surpluses & Deficits","REV","Revenue","R9551","CLM Maintenance","02-PREMISES","Premises","02A","Repairs, alteration and maintenance of buildings","3037","Service Contracts","3678422","202210",16/06/2021 00:00:00,232,"16710","Central Heating - Installation and Servicing","REDACTED DATA","R EDWARDS(FIRE APPLIANCES)LTD","",,""
"London Borough of Redbridge","http://opendatacommunities.org/doc/london-borough-council/redbridge","1BOTHEROPI&E","Other Operating Income & Expenditure","1CTRADSURDEF","Trading Account Surpluses & Deficits","REV","Revenue","R9551","CLM Maintenance","02-PREMISES","Premises","02A","Repairs, alteration and maintenance of buildings","3037","Service Contracts","3678430","202210",04/01/2022 00:00:00,106,"16111","Catering Equipment","REDACTED DATA","J SCOTT & SONS  LTD","",,"354241082"
"London Borough of Redbridge","http://opendatacommunities.org/doc/london-borough-council/redbridge","1BOTHEROPI&E","Other Operating Income & Expenditure","1CTRADSURDEF","Trading Account Surpluses & Deficits","REV","Revenue","R9551","CLM Maintenance","02-PREMISES","Premises","02A","Repairs, alteration and maintenance of buildings","3037","Service Contracts","3678025","202210",22/12/2021 00:00:00,30,"35290","Fire Alarm Systems","REDACTED DATA","R & M CLARKSON LTD","1176505","http://opencorporates.com/companies/gb/1176505","2594005516"
"London Borough of Redbridge","http://opendatacommunities.org/doc/london-borough-council/redbridge","1BOTHEROPI&E","Other Operating Income & Expenditure","1CTRADSURDEF","Trading Account Surpluses & Deficits","REV","Revenue","R9551","CLM Maintenance","02-PREMISES","Premises","02A","Repairs, alteration and maintenance of buildings","3037","Service Contracts","3678026","202210",22/12/2021 00:00:00,30,"35290","Fire Alarm Systems","REDACTED DATA","R & M CLARKSON LTD","1176505","http://opencorporates.com/companies/gb/1176505","2594005516"
"London Borough of Redbridge","http://opendatacommunities.org/doc/london-borough-council/redbridge","1BOTHEROPI&E","Other Operating Income & Expenditure","1CTRADSURDEF","Trading Account Surpluses & Deficits","REV","Revenue","R9551","CLM Maintenance","02-PREMISES","Premises","02A","Repairs, alteration and maintenance of buildings","3037","Service Contracts","3678433","202210",06/01/2022 00:00:00,200,"36555","Fire Training","REDACTED DATA","MY FIRE SAFETY LTD","8031387","http://opencorporates.com/companies/gb/8031387","136128821"
"London Borough of Redbridge","http://opendatacommunities.org/doc/london-borough-council/redbridge","1BOTHEROPI&E","Other Operating Income & Expenditure","1CTRADSURDEF","Trading Account Surpluses & Deficits","REV","Revenue","R9551","CLM Maintenance","02-PREMISES","Premises","02A","Repairs, alteration and maintenance of buildings","3037","Service Contracts","3678434","202210",11/01/2022 00:00:00,200,"36555","Fire Training","REDACTED DATA","MY FIRE SAFETY LTD","8031387","http://opencorporates.com/companies/gb/8031387","136128821"
"London Borough of Redbridge","http://opendatacommunities.org/doc/london-borough-council/redbridge","1BOTHEROPI&E","Other Operating Income & Expenditure","1CTRADSURDEF","Trading Account Surpluses & Deficits","REV","Revenue","R9551","CLM Maintenance","02-PREMISES","Premises","02A","Repairs, alteration and maintenance of buildings","3037","Service Contracts","3678027","202210",22/12/2021 00:00:00,30,"35290","Fire Alarm Systems","REDACTED DATA","R & M CLARKSON LTD","1176505","http://opencorporates.com/companies/gb/1176505","2594005516"
"London Borough of Redbridge","http://opendatacommunities.org/doc/london-borough-council/redbridge","1BOTHEROPI&E","Other Operating Income & Expenditure","1CTRADSURDEF","Trading Account Surpluses & Deficits","REV","Revenue","R9551","CLM Maintenance","02-PREMISES","Premises","02A","Repairs, alteration and maintenance of buildings","3037","Service Contracts","3678030","202210",22/12/2021 00:00:00,30,"35290","Fire Alarm Systems","REDACTED DATA","R & M CLARKSON LTD","1176505","http://opencorporates.com/companies/gb/1176505","2594005516"
"London Borough of Redbridge","http://opendatacommunities.org/doc/london-borough-council/redbridge","1BOTHEROPI&E","Other Operating Income & Expenditure","1CTRADSURDEF","Trading Account Surpluses & Deficits","REV","Revenue","R9551","CLM Maintenance","02-PREMISES","Premises","02A","Repairs, alteration and maintenance of buildings","3037","Service Contracts","3678031","202210",22/12/2021 00:00:00,30,"35290","Fire Alarm Systems","REDACTED DATA","R & M CLARKSON LTD","1176505","http://opencorporates.com/companies/gb/1176505","2594005516"
"London Borough of Redbridge","http://opendatacommunities.org/doc/london-borough-council/redbridge","1BOTHEROPI&E","Other Operating Income & Expenditure","1CTRADSURDEF","Trading Account Surpluses & Deficits","REV","Revenue","R9551","CLM Maintenance","02-PREMISES","Premises","02A","Repairs, alteration and maintenance of buildings","3037","Service Contracts","3678425","202210",22/12/2021 00:00:00,31.5,"35290","Fire Alarm Systems","REDACTED DATA","R & M CLARKSON LTD","1176505","http://opencorporates.com/companies/gb/1176505","2594005516"
"London Borough of Redbridge","http://opendatacommunities.org/doc/london-borough-council/redbridge","1BOTHEROPI&E","Other Operating Income & Expenditure","1CTRADSURDEF","Trading Account Surpluses & Deficits","REV","Revenue","R9551","CLM Maintenance","02-PREMISES","Premises","02A","Repairs, alteration and maintenance of buildings","3037","Service Contracts","3678415","202210",22/12/2021 00:00:00,374,"30580","Electricians and Electrical Contractors","REDACTED DATA","AJS LTD","2944618","http://opencorporates.com/companies/gb/2944618","646135834"
"London Borough of Redbridge","http://opendatacommunities.org/doc/london-borough-council/redbridge","1BOTHEROPI&E","Other Operating Income & Expenditure","1CTRADSURDEF","Trading Account Surpluses & Deficits","REV","Revenue","R9551","CLM Maintenance","02-PREMISES","Premises","02A","Repairs, alteration and maintenance of buildings","3037","Service Contracts","3678000","202210",17/12/2021 00:00:00,36.34,"61961","Property Maintenance and Repairs","REDACTED DATA","Integrated Water Services Ltd","5283349","http://opencorporates.com/companies/gb/5283349","918 455 404"
"London Borough of Redbridge","http://opendatacommunities.org/doc/london-borough-council/redbridge","1BOTHEROPI&E","Other Operating Income & Expenditure","1CTRADSURDEF","Trading Account Surpluses & Deficits","REV","Revenue","R9551","CLM Maintenance","02-PREMISES","Premises","02A","Repairs, alteration and maintenance of buildings","3037","Service Contracts","3678020","202210",31/12/2021 00:00:00,33.17,"61961","Property Maintenance and Repairs","REDACTED DATA","Integrated Water Services Ltd","5283349","http://opencorporates.com/companies/gb/5283349","918 455 404"
"London Borough of Redbridge","http://opendatacommunities.org/doc/london-borough-council/redbridge","1BOTHEROPI&E","Other Operating Income & Expenditure","1CTRADSURDEF","Trading Account Surpluses & Deficits","REV","Revenue","R9551","CLM Maintenance","02-PREMISES","Premises","02A","Repairs, alteration and maintenance of buildings","3037","Service Contracts","3678021","202210",31/12/2021 00:00:00,40.59,"61961","Property Maintenance and Repairs","REDACTED DATA","Integrated Water Services Ltd","5283349","http://opencorporates.com/companies/gb/5283349","918 455 404"
"London Borough of Redbridge","http://opendatacommunities.org/doc/london-borough-council/redbridge","1BOTHEROPI&E","Other Operating Income & Expenditure","1CTRADSURDEF","Trading Account Surpluses & Deficits","REV","Revenue","R9551","CLM Maintenance","02-PREMISES","Premises","02A","Repairs, alteration and maintenance of buildings","3037","Service Contracts","3678023","202210",31/12/2021 00:00:00,82.44,"61961","Property Maintenance and Repairs","REDACTED DATA","Integrated Water Services Ltd","5283349","http://opencorporates.com/companies/gb/5283349","918 455 404"
"London Borough of Redbridge","http://opendatacommunities.org/doc/london-borough-council/redbridge","1BOTHEROPI&E","Other Operating Income & Expenditure","1CTRADSURDEF","Trading Account Surpluses & Deficits","REV","Revenue","R9551","CLM Maintenance","02-PREMISES","Premises","02A","Repairs, alteration and maintenance of buildings","3037","Service Contracts","3678010","202210",24/12/2021 00:00:00,42.68,"61961","Property Maintenance and Repairs","REDACTED DATA","Integrated Water Services Ltd","5283349","http://opencorporates.com/companies/gb/5283349","918 455 404"
"London Borough of Redbridge","http://opendatacommunities.org/doc/london-borough-council/redbridge","1BOTHEROPI&E","Other Operating Income & Expenditure","1CTRADSURDEF","Trading Account Surpluses & Deficits","REV","Revenue","R9551","CLM Maintenance","02-PREMISES","Premises","02A","Repairs, alteration and maintenance of buildings","3037","Service Contracts","3678009","202210",24/12/2021 00:00:00,36.34,"61961","Property Maintenance and Repairs","REDACTED DATA","Integrated Water Services Ltd","5283349","http://opencorporates.com/companies/gb/5283349","918 455 404"
"London Borough of Redbridge","http://opendatacommunities.org/doc/london-borough-council/redbridge","1BOTHEROPI&E","Other Operating Income & Expenditure","1CTRADSURDEF","Trading Account Surpluses & Deficits","REV","Revenue","R9551","CLM Maintenance","02-PREMISES","Premises","02A","Repairs, alteration and maintenance of buildings","3037","Service Contracts","3678002","202210",17/12/2021 00:00:00,277.68,"61961","Property Maintenance and Repairs","REDACTED DATA","Integrated Water Services Ltd","5283349","http://opencorporates.com/companies/gb/5283349","918 455 404"
"London Borough of Redbridge","http://opendatacommunities.org/doc/london-borough-council/redbridge","1BOTHEROPI&E","Other Operating Income & Expenditure","1CTRADSURDEF","Trading Account Surpluses & Deficits","REV","Revenue","R9551","CLM Maintenance","02-PREMISES","Premises","02A","Repairs, alteration and maintenance of buildings","3037","Service Contracts","3678003","202210",20/12/2021 00:00:00,280,"61961","Property Maintenance and Repairs","REDACTED DATA","Integrated Water Services Ltd","5283349","http://opencorporates.com/companies/gb/5283349","918 455 404"
"London Borough of Redbridge","http://opendatacommunities.org/doc/london-borough-council/redbridge","1BOTHEROPI&E","Other Operating Income & Expenditure","1CTRADSURDEF","Trading Account Surpluses & Deficits","REV","Revenue","R9551","CLM Maintenance","02-PREMISES","Premises","02A","Repairs, alteration and maintenance of buildings","3037","Service Contracts","3678005","202210",24/12/2021 00:00:00,33.17,"61961","Property Maintenance and Repairs","REDACTED DATA","Integrated Water Services Ltd","5283349","http://opencorporates.com/companies/gb/5283349","918 455 404"
"London Borough of Redbridge","http://opendatacommunities.org/doc/london-borough-council/redbridge","1BOTHEROPI&E","Other Operating Income & Expenditure","1CTRADSURDEF","Trading Account Surpluses & Deficits","REV","Revenue","R9551","CLM Maintenance","02-PREMISES","Premises","02A","Repairs, alteration and maintenance of buildings","3037","Service Contracts","3678007","202210",24/12/2021 00:00:00,33.17,"61961","Property Maintenance and Repairs","REDACTED DATA","Integrated Water Services Ltd","5283349","http://opencorporates.com/companies/gb/5283349","918 455 404"
"London Borough of Redbridge","http://opendatacommunities.org/doc/london-borough-council/redbridge","1BOTHEROPI&E","Other Operating Income & Expenditure","1CTRADSURDEF","Trading Account Surpluses & Deficits","REV","Revenue","R9551","CLM Maintenance","02-PREMISES","Premises","02A","Repairs, alteration and maintenance of buildings","3037","Service Contracts","3678011","202210",24/12/2021 00:00:00,33.17,"61961","Property Maintenance and Repairs","REDACTED DATA","Integrated Water Services Ltd","5283349","http://opencorporates.com/companies/gb/5283349","918 455 404"
"London Borough of Redbridge","http://opendatacommunities.org/doc/london-borough-council/redbridge","1BOTHEROPI&E","Other Operating Income & Expenditure","1CTRADSURDEF","Trading Account Surpluses & Deficits","REV","Revenue","R9551","CLM Maintenance","02-PREMISES","Premises","02A","Repairs, alteration and maintenance of buildings","3037","Service Contracts","3678436","202210",11/01/2022 00:00:00,33.17,"61961","Property Maintenance and Repairs","REDACTED DATA","Integrated Water Services Ltd","5283349","http://opencorporates.com/companies/gb/5283349","918 455 404"
"London Borough of Redbridge","http://opendatacommunities.org/doc/london-borough-council/redbridge","1BOTHEROPI&E","Other Operating Income & Expenditure","1CTRADSURDEF","Trading Account Surpluses & Deficits","REV","Revenue","R9551","CLM Maintenance","02-PREMISES","Premises","02A","Repairs, alteration and maintenance of buildings","3037","Service Contracts","3678439","202210",11/01/2022 00:00:00,55.36,"61961","Property Maintenance and Repairs","REDACTED DATA","Integrated Water Services Ltd","5283349","http://opencorporates.com/companies/gb/5283349","918 455 404"
"London Borough of Redbridge","http://opendatacommunities.org/doc/london-borough-council/redbridge","1BOTHEROPI&E","Other Operating Income & Expenditure","1CTRADSURDEF","Trading Account Surpluses & Deficits","REV","Revenue","R9551","CLM Maintenance","02-PREMISES","Premises","02A","Repairs, alteration and maintenance of buildings","3037","Service Contracts","3678440","202210",11/01/2022 00:00:00,33.17,"61961","Property Maintenance and Repairs","REDACTED DATA","Integrated Water Services Ltd","5283349","http://opencorporates.com/companies/gb/5283349","918 455 404"
"London Borough of Redbridge","http://opendatacommunities.org/doc/london-borough-council/redbridge","1BOTHEROPI&E","Other Operating Income & Expenditure","1CTRADSURDEF","Trading Account Surpluses & Deficits","REV","Revenue","R9551","CLM Maintenance","02-PREMISES","Premises","02A","Repairs, alteration and maintenance of buildings","3037","Service Contracts","3678443","202210",11/01/2022 00:00:00,58.53,"61961","Property Maintenance and Repairs","REDACTED DATA","Integrated Water Services Ltd","5283349","http://opencorporates.com/companies/gb/5283349","918 455 404"
"London Borough of Redbridge","http://opendatacommunities.org/doc/london-borough-council/redbridge","1BOTHEROPI&E","Other Operating Income & Expenditure","1CTRADSURDEF","Trading Account Surpluses & Deficits","REV","Revenue","R9551","CLM Maintenance","02-PREMISES","Premises","02A","Repairs, alteration and maintenance of buildings","3037","Service Contracts","3678444","202210",11/01/2022 00:00:00,33.17,"61961","Property Maintenance and Repairs","REDACTED DATA","Integrated Water Services Ltd","5283349","http://opencorporates.com/companies/gb/5283349","918 455 404"
"London Borough of Redbridge","http://opendatacommunities.org/doc/london-borough-council/redbridge","1BOTHEROPI&E","Other Operating Income & Expenditure","1CTRADSURDEF","Trading Account Surpluses & Deficits","REV","Revenue","R9551","CLM Maintenance","02-PREMISES","Premises","02A","Repairs, alteration and maintenance of buildings","3037","Service Contracts","3678447","202210",11/01/2022 00:00:00,36.34,"61961","Property Maintenance and Repairs","REDACTED DATA","Integrated Water Services Ltd","5283349","http://opencorporates.com/companies/gb/5283349","918 455 404"
"London Borough of Redbridge","http://opendatacommunities.org/doc/london-borough-council/redbridge","1BOTHEROPI&E","Other Operating Income & Expenditure","1CTRADSURDEF","Trading Account Surpluses & Deficits","REV","Revenue","R9551","CLM Maintenance","02-PREMISES","Premises","02A","Repairs, alteration and maintenance of buildings","3037","Service Contracts","3678450","202210",11/01/2022 00:00:00,71.21,"61961","Property Maintenance and Repairs","REDACTED DATA","Integrated Water Services Ltd","5283349","http://opencorporates.com/companies/gb/5283349","918 455 404"
"London Borough of Redbridge","http://opendatacommunities.org/doc/london-borough-council/redbridge","1BOTHEROPI&E","Other Operating Income & Expenditure","1CTRADSURDEF","Trading Account Surpluses & Deficits","REV","Revenue","R9551","CLM Maintenance","02-PREMISES","Premises","02A","Repairs, alteration and maintenance of buildings","3037","Service Contracts","3678423","202210",04/01/2022 00:00:00,33.17,"61961","Property Maintenance and Repairs","REDACTED DATA","Integrated Water Services Ltd","5283349","http://opencorporates.com/companies/gb/5283349","918 455 404"
"London Borough of Redbridge","http://opendatacommunities.org/doc/london-borough-council/redbridge","1BOTHEROPI&E","Other Operating Income & Expenditure","1CTRADSURDEF","Trading Account Surpluses & Deficits","REV","Revenue","R9551","CLM Maintenance","02-PREMISES","Premises","02A","Repairs, alteration and maintenance of buildings","3037","Service Contracts","3678424","202210",31/12/2021 00:00:00,280,"61961","Property Maintenance and Repairs","REDACTED DATA","Integrated Water Services Ltd","5283349","http://opencorporates.com/companies/gb/5283349","918 455 404"
"London Borough of Redbridge","http://opendatacommunities.org/doc/london-borough-council/redbridge","1BOTHEROPI&E","Other Operating Income & Expenditure","1CTRADSURDEF","Trading Account Surpluses & Deficits","REV","Revenue","R9551","CLM Maintenance","02-PREMISES","Premises","02A","Repairs, alteration and maintenance of buildings","3037","Service Contracts","3678448","202210",11/01/2022 00:00:00,39.51,"61961","Property Maintenance and Repairs","REDACTED DATA","Integrated Water Services Ltd","5283349","http://opencorporates.com/companies/gb/5283349","918 455 404"
"London Borough of Redbridge","http://opendatacommunities.org/doc/london-borough-council/redbridge","1BOTHEROPI&E","Other Operating Income & Expenditure","1CTRADSURDEF","Trading Account Surpluses & Deficits","REV","Revenue","R9551","CLM Maintenance","02-PREMISES","Premises","02A","Repairs, alteration and maintenance of buildings","3037","Service Contracts","3678449","202210",11/01/2022 00:00:00,33.17,"61961","Property Maintenance and Repairs","REDACTED DATA","Integrated Water Services Ltd","5283349","http://opencorporates.com/companies/gb/5283349","918 455 404"
"London Borough of Redbridge","http://opendatacommunities.org/doc/london-borough-council/redbridge","1BOTHEROPI&E","Other Operating Income & Expenditure","1CTRADSURDEF","Trading Account Surpluses & Deficits","REV","Revenue","R9551","CLM Maintenance","02-PREMISES","Premises","02A","Repairs, alteration and maintenance of buildings","3037","Service Contracts","3677257","202210",26/05/2021 00:00:00,125,"69240","Security Services","REDACTED DATA","HALL & KAY FIRE SERVICES LTD T/A HALL & KAY FIRE ENGINEERING","5211559","http://opencorporates.com/companies/gb/5211559","199888505"
"London Borough of Redbridge","http://opendatacommunities.org/doc/london-borough-council/redbridge","1BOTHEROPI&E","Other Operating Income & Expenditure","1CTRADSURDEF","Trading Account Surpluses & Deficits","REV","Revenue","R9551","CLM Maintenance","02-PREMISES","Premises","02A","Repairs, alteration and maintenance of buildings","3037","Service Contracts","3677993","202210",10/01/2022 00:00:00,319,"30045","Electrical Engineers","REDACTED DATA","COUNTY ELECTRICAL SOLUTIONS LTD","6476990","http://opencorporates.com/companies/gb/6476990","924889474"
"London Borough of Redbridge","http://opendatacommunities.org/doc/london-borough-council/redbridge","1BOTHEROPI&E","Other Operating Income & Expenditure","1CTRADSURDEF","Trading Account Surpluses & Deficits","REV","Revenue","R9551","CLM Maintenance","02-PREMISES","Premises","02A","Repairs, alteration and maintenance of buildings","3037","Service Contracts","3677993","202210",10/01/2022 00:00:00,0,"30045","Electrical Engineers","REDACTED DATA","COUNTY ELECTRICAL SOLUTIONS LTD","6476990","http://opencorporates.com/companies/gb/6476990","924889474"
"London Borough of Redbridge","http://opendatacommunities.org/doc/london-borough-council/redbridge","1BOTHEROPI&E","Other Operating Income & Expenditure","1CTRADSURDEF","Trading Account Surpluses & Deficits","REV","Revenue","R9551","CLM Maintenance","02-PREMISES","Premises","02A","Repairs, alteration and maintenance of buildings","3037","Service Contracts","3680081","202210",31/12/2021 00:00:00,0,"64710","Residential Care Homes","REDACTED DATA","CARETECH UK LTD","",,"722771536"
"London Borough of Redbridge","http://opendatacommunities.org/doc/london-borough-council/redbridge","1BOTHEROPI&E","Other Operating Income & Expenditure","1CTRADSURDEF","Trading Account Surpluses & Deficits","REV","Revenue","R9551","CLM Maintenance","02-PREMISES","Premises","02A","Repairs, alteration and maintenance of buildings","3037","Service Contracts","3680081","202210",31/12/2021 00:00:00,135,"64710","Residential Care Homes","REDACTED DATA","CARETECH UK LTD","",,"722771536"
"London Borough of Redbridge","http://opendatacommunities.org/doc/london-borough-council/redbridge","1BOTHEROPI&E","Other Operating Income & Expenditure","1CTRADSURDEF","Trading Account Surpluses & Deficits","REV","Revenue","R9551","CLM Maintenance","02-PREMISES","Premises","02I","Grounds maintenance costs","4750","Grounds Maintenance","3679958","202210",10/12/2021 00:00:00,0,"64550","Removals - Business and Industrial","REDACTED DATA","SONNY WHITE","",,"887526960"
"London Borough of Redbridge","http://opendatacommunities.org/doc/london-borough-council/redbridge","1BOTHEROPI&E","Other Operating Income & Expenditure","1CTRADSURDEF","Trading Account Surpluses & Deficits","REV","Revenue","R9551","CLM Maintenance","02-PREMISES","Premises","02I","Grounds maintenance costs","4750","Grounds Maintenance","3679958","202210",10/12/2021 00:00:00,350,"64550","Removals - Business and Industrial","REDACTED DATA","SONNY WHITE","",,"887526960"
"London Borough of Redbridge","http://opendatacommunities.org/doc/london-borough-council/redbridge","1BOTHEROPI&E","Other Operating Income & Expenditure","1CTRADSURDEF","Trading Account Surpluses & Deficits","REV","Revenue","R9556","CLM Cleaning","02-PREMISES","Premises","02H","Cleaning and domestic supplies","4620","Cleaning Contract Payments","3677985","202210",29/12/2021 00:00:00,60,"15269","Cleaning Services - Commercial","REDACTED DATA","Q3 Services Group Limited","11143750","http://opencorporates.com/companies/gb/11143750","291402028"
"London Borough of Redbridge","http://opendatacommunities.org/doc/london-borough-council/redbridge","1BOTHEROPI&E","Other Operating Income & Expenditure","1CTRADSURDEF","Trading Account Surpluses & Deficits","REV","Revenue","R9556","CLM Cleaning","02-PREMISES","Premises","02H","Cleaning and domestic supplies","4620","Cleaning Contract Payments","3677962","202210",20/12/2021 00:00:00,60,"15269","Cleaning Services - Commercial","REDACTED DATA","Q3 Services Group Limited","11143750","http://opencorporates.com/companies/gb/11143750","291402028"
"London Borough of Redbridge","http://opendatacommunities.org/doc/london-borough-council/redbridge","1BOTHEROPI&E","Other Operating Income & Expenditure","1CTRADSURDEF","Trading Account Surpluses & Deficits","REV","Revenue","R9557","CLM Utilities","02-PREMISES","Premises","02B","Energy costs","4000","Electricity","70122100","202210",15/12/2021 00:00:00,35.9,"39564","Gas Companies","REDACTED DATA","KENT COUNTY COUNCIL (GAS & ELECTRIC)","",,"204269191"
"London Borough of Redbridge","http://opendatacommunities.org/doc/london-borough-council/redbridge","1BOTHEROPI&E","Other Operating Income & Expenditure","1CTRADSURDEF","Trading Account Surpluses & Deficits","REV","Revenue","R9557","CLM Utilities","02-PREMISES","Premises","02B","Energy costs","4002","Gas","80041334","202210",13/01/2022 00:00:00,310.51,"39564","Gas Companies","REDACTED DATA","KENT COUNTY COUNCIL (GAS & ELECTRIC)","",,"204269191"
"London Borough of Redbridge","http://opendatacommunities.org/doc/london-borough-council/redbridge","1BOTHEROPI&E","Other Operating Income & Expenditure","1CTRADSURDEF","Trading Account Surpluses & Deficits","REV","Revenue","R9557","CLM Utilities","02-PREMISES","Premises","02B","Energy costs","4002","Gas","80041336","202210",13/01/2022 00:00:00,375.55,"39564","Gas Companies","REDACTED DATA","KENT COUNTY COUNCIL (GAS & ELECTRIC)","",,"204269191"
"London Borough of Redbridge","http://opendatacommunities.org/doc/london-borough-council/redbridge","1BOTHEROPI&E","Other Operating Income & Expenditure","1CTRADSURDEF","Trading Account Surpluses & Deficits","REV","Revenue","R9557","CLM Utilities","02-PREMISES","Premises","02B","Energy costs","4002","Gas","80041342","202210",13/01/2022 00:00:00,213.48,"39564","Gas Companies","REDACTED DATA","KENT COUNTY COUNCIL (GAS & ELECTRIC)","",,"204269191"
"London Borough of Redbridge","http://opendatacommunities.org/doc/london-borough-council/redbridge","1BOTHEROPI&E","Other Operating Income & Expenditure","1CTRADSURDEF","Trading Account Surpluses & Deficits","REV","Revenue","R9557","CLM Utilities","02-PREMISES","Premises","02B","Energy costs","4002","Gas","80041343","202210",13/01/2022 00:00:00,288.9,"39564","Gas Companies","REDACTED DATA","KENT COUNTY COUNCIL (GAS & ELECTRIC)","",,"204269191"
"London Borough of Redbridge","http://opendatacommunities.org/doc/london-borough-council/redbridge","1BOTHEROPI&E","Other Operating Income & Expenditure","1CTRADSURDEF","Trading Account Surpluses & Deficits","REV","Revenue","R9557","CLM Utilities","02-PREMISES","Premises","02B","Energy costs","4002","Gas","80041357","202210",13/01/2022 00:00:00,360.1,"39564","Gas Companies","REDACTED DATA","KENT COUNTY COUNCIL (GAS & ELECTRIC)","",,"204269191"
"London Borough of Redbridge","http://opendatacommunities.org/doc/london-borough-council/redbridge","1BOTHEROPI&E","Other Operating Income & Expenditure","1CTRADSURDEF","Trading Account Surpluses & Deficits","REV","Revenue","R9557","CLM Utilities","02-PREMISES","Premises","02B","Energy costs","4002","Gas","80041360","202210",13/01/2022 00:00:00,379.59,"39564","Gas Companies","REDACTED DATA","KENT COUNTY COUNCIL (GAS & ELECTRIC)","",,"204269191"
"London Borough of Redbridge","http://opendatacommunities.org/doc/london-borough-council/redbridge","1BOTHEROPI&E","Other Operating Income & Expenditure","1CTRADSURDEF","Trading Account Surpluses & Deficits","REV","Revenue","R9557","CLM Utilities","02-PREMISES","Premises","02B","Energy costs","4002","Gas","80041362","202210",13/01/2022 00:00:00,227.93,"39564","Gas Companies","REDACTED DATA","KENT COUNTY COUNCIL (GAS & ELECTRIC)","",,"204269191"
"London Borough of Redbridge","http://opendatacommunities.org/doc/london-borough-council/redbridge","1BOTHEROPI&E","Other Operating Income & Expenditure","1CTRADSURDEF","Trading Account Surpluses & Deficits","REV","Revenue","R9557","CLM Utilities","02-PREMISES","Premises","02B","Energy costs","4002","Gas","70122099","202210",10/12/2021 00:00:00,80.48,"39564","Gas Companies","REDACTED DATA","KENT COUNTY COUNCIL (GAS & ELECTRIC)","",,"204269191"
"London Borough of Redbridge","http://opendatacommunities.org/doc/london-borough-council/redbridge","1BOTHEROPI&E","Other Operating Income & Expenditure","1CTRADSURDEF","Trading Account Surpluses & Deficits","REV","Revenue","R9557","CLM Utilities","02-PREMISES","Premises","02B","Energy costs","4002","Gas","70122099","202210",10/12/2021 00:00:00,141.22,"39564","Gas Companies","REDACTED DATA","KENT COUNTY COUNCIL (GAS & ELECTRIC)","",,"204269191"
"London Borough of Redbridge","http://opendatacommunities.org/doc/london-borough-council/redbridge","1BOTHEROPI&E","Other Operating Income & Expenditure","1CTRADSURDEF","Trading Account Surpluses & Deficits","REV","Revenue","R9558","CLM Security","02-PREMISES","Premises","02F","Fixtures and fittings","4420","Security","3680050","202210",31/12/2021 00:00:00,38,"69240","Security Services","REDACTED DATA","CHARTER SECURITY PLC","1530957","http://opencorporates.com/companies/gb/1530957","342117968"
"London Borough of Redbridge","http://opendatacommunities.org/doc/london-borough-council/redbridge","1BOTHEROPI&E","Other Operating Income & Expenditure","1CTRADSURDEF","Trading Account Surpluses & Deficits","REV","Revenue","R9565","Estates Team Staffing","04-SUPPLIES","Supplies And Services","04H","Grants and subscriptions","5954","Professional Fees","60478099","202210",04/01/2022 00:00:00,90,"74700","Surveyors and Valuers","REDACTED DATA","P G ASHTON & SONS","",,"649745389"
"London Borough of Redbridge","http://opendatacommunities.org/doc/london-borough-council/redbridge","1BOTHEROPI&E","Other Operating Income & Expenditure","1CTRADSURDEF","Trading Account Surpluses & Deficits","REV","Revenue","R9565","Estates Team Staffing","04-SUPPLIES","Supplies And Services","04H","Grants and subscriptions","5954","Professional Fees","60478100","202210",04/01/2022 00:00:00,130,"74700","Surveyors and Valuers","REDACTED DATA","P G ASHTON & SONS","",,"649745389"
"London Borough of Redbridge","http://opendatacommunities.org/doc/london-borough-council/redbridge","1BOTHEROPI&E","Other Operating Income & Expenditure","1CTRADSURDEF","Trading Account Surpluses & Deficits","REV","Revenue","R9565","Estates Team Staffing","04-SUPPLIES","Supplies And Services","04H","Grants and subscriptions","5954","Professional Fees","60479499","202210",01/12/2021 00:00:00,130,"74700","Surveyors and Valuers","REDACTED DATA","P G ASHTON & SONS","",,"649745389"
"London Borough of Redbridge","http://opendatacommunities.org/doc/london-borough-council/redbridge","1BOTHEROPI&E","Other Operating Income & Expenditure","1CTRADSURDEF","Trading Account Surpluses & Deficits","REV","Revenue","R9565","Estates Team Staffing","04-SUPPLIES","Supplies And Services","04H","Grants and subscriptions","5954","Professional Fees","60479854","202210",25/01/2022 00:00:00,300,"61896","Property and Estate Management","REDACTED DATA","RONA ILFORD","",,"246779318"
"London Borough of Redbridge","http://opendatacommunities.org/doc/london-borough-council/redbridge","1BOTHEROPI&E","Other Operating Income & Expenditure","1CTRADSURDEF","Trading Account Surpluses & Deficits","REV","Revenue","R9565","Estates Team Staffing","04-SUPPLIES","Supplies And Services","04H","Grants and subscriptions","5954","Professional Fees","60479894","202210",05/10/2021 00:00:00,300,"61896","Property and Estate Management","REDACTED DATA","RONA ILFORD","",,"246779318"
"London Borough of Redbridge","http://opendatacommunities.org/doc/london-borough-council/redbridge","1BOTHEROPI&E","Other Operating Income & Expenditure","1CTRADSURDEF","Trading Account Surpluses & Deficits","REV","Revenue","R9565","Estates Team Staffing","04-SUPPLIES","Supplies And Services","04H","Grants and subscriptions","5954","Professional Fees","60479594","202210",21/01/2022 00:00:00,300,"61896","Property and Estate Management","REDACTED DATA","RONA ILFORD","",,"246779318"
"London Borough of Redbridge","http://opendatacommunities.org/doc/london-borough-council/redbridge","1BOTHEROPI&E","Other Operating Income & Expenditure","1CTRADSURDEF","Trading Account Surpluses & Deficits","REV","Revenue","R9565","Estates Team Staffing","04-SUPPLIES","Supplies And Services","04H","Grants and subscriptions","5954","Professional Fees","60479595","202210",21/01/2022 00:00:00,300,"61896","Property and Estate Management","REDACTED DATA","RONA ILFORD","",,"246779318"
"London Borough of Redbridge","http://opendatacommunities.org/doc/london-borough-council/redbridge","1BOTHEROPI&E","Other Operating Income & Expenditure","1CTRADSURDEF","Trading Account Surpluses & Deficits","REV","Revenue","R9565","Estates Team Staffing","04-SUPPLIES","Supplies And Services","04H","Grants and subscriptions","5954","Professional Fees","60479597","202210",21/01/2022 00:00:00,300,"61896","Property and Estate Management","REDACTED DATA","RONA ILFORD","",,"246779318"
"London Borough of Redbridge","http://opendatacommunities.org/doc/london-borough-council/redbridge","1BOTHEROPI&E","Other Operating Income & Expenditure","1CTRADSURDEF","Trading Account Surpluses & Deficits","REV","Revenue","R9565","Estates Team Staffing","04-SUPPLIES","Supplies And Services","04H","Grants and subscriptions","5954","Professional Fees","60479598","202210",21/01/2022 00:00:00,300,"61896","Property and Estate Management","REDACTED DATA","RONA ILFORD","",,"246779318"
"London Borough of Redbridge","http://opendatacommunities.org/doc/london-borough-council/redbridge","1BOTHEROPI&E","Other Operating Income & Expenditure","1CTRADSURDEF","Trading Account Surpluses & Deficits","REV","Revenue","R9565","Estates Team Staffing","04-SUPPLIES","Supplies And Services","04H","Grants and subscriptions","5954","Professional Fees","60479599","202210",21/01/2022 00:00:00,300,"61896","Property and Estate Management","REDACTED DATA","RONA ILFORD","",,"246779318"
"London Borough of Redbridge","http://opendatacommunities.org/doc/london-borough-council/redbridge","1BOTHEROPI&E","Other Operating Income & Expenditure","1CTRADSURDEF","Trading Account Surpluses & Deficits","REV","Revenue","R9565","Estates Team Staffing","04-SUPPLIES","Supplies And Services","04H","Grants and subscriptions","5954","Professional Fees","60479604","202210",21/01/2022 00:00:00,300,"61896","Property and Estate Management","REDACTED DATA","RONA ILFORD","",,"246779318"
"London Borough of Redbridge","http://opendatacommunities.org/doc/london-borough-council/redbridge","1BOTHEROPI&E","Other Operating Income & Expenditure","1CTRADSURDEF","Trading Account Surpluses & Deficits","REV","Revenue","R9575","Ilford Chambers Service Charge Account","02-PREMISES","Premises","02A","Repairs, alteration and maintenance of buildings","3026","Minor Maintenance","3679994","202210",29/12/2021 00:00:00,182,"11040","Builders","REDACTED DATA","M & G CONSTRUCTION LTD.","1918880","http://opencorporates.com/companies/gb/1918880","406392853"
"London Borough of Redbridge","http://opendatacommunities.org/doc/london-borough-council/redbridge","1BOTHEROPI&E","Other Operating Income & Expenditure","1CTRADSURDEF","Trading Account Surpluses & Deficits","REV","Revenue","R9575","Ilford Chambers Service Charge Account","02-PREMISES","Premises","02A","Repairs, alteration and maintenance of buildings","3026","Minor Maintenance","3677989","202210",03/01/2022 00:00:00,129.36,"16710","Central Heating - Installation and Servicing","REDACTED DATA","J R ASHWORTH PLMBING & HTG LTD","",,""
"London Borough of Redbridge","http://opendatacommunities.org/doc/london-borough-council/redbridge","1BOTHEROPI&E","Other Operating Income & Expenditure","1CTRADSURDEF","Trading Account Surpluses & Deficits","REV","Revenue","R9575","Ilford Chambers Service Charge Account","02-PREMISES","Premises","02A","Repairs, alteration and maintenance of buildings","3026","Minor Maintenance","3677972","202210",03/01/2022 00:00:00,140,"16710","Central Heating - Installation and Servicing","REDACTED DATA","J R ASHWORTH PLMBING & HTG LTD","",,""
"London Borough of Redbridge","http://opendatacommunities.org/doc/london-borough-council/redbridge","1BOTHEROPI&E","Other Operating Income & Expenditure","1CTRADSURDEF","Trading Account Surpluses & Deficits","REV","Revenue","R9575","Ilford Chambers Service Charge Account","02-PREMISES","Premises","02A","Repairs, alteration and maintenance of buildings","3037","Service Contracts","3678417","202210",19/12/2021 00:00:00,65,"16710","Central Heating - Installation and Servicing","REDACTED DATA","R EDWARDS(FIRE APPLIANCES)LTD","",,""
"London Borough of Redbridge","http://opendatacommunities.org/doc/london-borough-council/redbridge","1BOTHEROPI&E","Other Operating Income & Expenditure","1CTRADSURDEF","Trading Account Surpluses & Deficits","REV","Revenue","R9575","Ilford Chambers Service Charge Account","02-PREMISES","Premises","02A","Repairs, alteration and maintenance of buildings","3037","Service Contracts","3678419","202210",16/06/2021 00:00:00,220,"16710","Central Heating - Installation and Servicing","REDACTED DATA","R EDWARDS(FIRE APPLIANCES)LTD","",,""
"London Borough of Redbridge","http://opendatacommunities.org/doc/london-borough-council/redbridge","1BOTHEROPI&E","Other Operating Income & Expenditure","1CTRADSURDEF","Trading Account Surpluses & Deficits","REV","Revenue","R9575","Ilford Chambers Service Charge Account","02-PREMISES","Premises","02A","Repairs, alteration and maintenance of buildings","3037","Service Contracts","3678420","202210",13/12/2021 00:00:00,98,"16710","Central Heating - Installation and Servicing","REDACTED DATA","R EDWARDS(FIRE APPLIANCES)LTD","",,""
"London Borough of Redbridge","http://opendatacommunities.org/doc/london-borough-council/redbridge","1BOTHEROPI&E","Other Operating Income & Expenditure","1CTRADSURDEF","Trading Account Surpluses & Deficits","REV","Revenue","R9575","Ilford Chambers Service Charge Account","02-PREMISES","Premises","02A","Repairs, alteration and maintenance of buildings","3037","Service Contracts","3678453","202210",18/01/2022 00:00:00,20,"30580","Electricians and Electrical Contractors","REDACTED DATA","AJS LTD","2944618","http://opencorporates.com/companies/gb/2944618","646135834"
"London Borough of Redbridge","http://opendatacommunities.org/doc/london-borough-council/redbridge","1BOTHEROPI&E","Other Operating Income & Expenditure","1CTRADSURDEF","Trading Account Surpluses & Deficits","REV","Revenue","R9575","Ilford Chambers Service Charge Account","02-PREMISES","Premises","02A","Repairs, alteration and maintenance of buildings","3037","Service Contracts","3678013","202210",24/12/2021 00:00:00,36.34,"61961","Property Maintenance and Repairs","REDACTED DATA","Integrated Water Services Ltd","5283349","http://opencorporates.com/companies/gb/5283349","918 455 404"
"London Borough of Redbridge","http://opendatacommunities.org/doc/london-borough-council/redbridge","1BOTHEROPI&E","Other Operating Income & Expenditure","1CTRADSURDEF","Trading Account Surpluses & Deficits","REV","Revenue","R9575","Ilford Chambers Service Charge Account","02-PREMISES","Premises","02A","Repairs, alteration and maintenance of buildings","3037","Service Contracts","3678019","202210",31/12/2021 00:00:00,36.34,"61961","Property Maintenance and Repairs","REDACTED DATA","Integrated Water Services Ltd","5283349","http://opencorporates.com/companies/gb/5283349","918 455 404"
"London Borough of Redbridge","http://opendatacommunities.org/doc/london-borough-council/redbridge","1BOTHEROPI&E","Other Operating Income & Expenditure","1CTRADSURDEF","Trading Account Surpluses & Deficits","REV","Revenue","R9575","Ilford Chambers Service Charge Account","02-PREMISES","Premises","02A","Repairs, alteration and maintenance of buildings","3037","Service Contracts","60478797","202210",01/01/2022 00:00:00,392.08,"35290","Fire Alarm Systems","REDACTED DATA","METRO SAFETY GROUP LTD","9301473","http://opencorporates.com/companies/gb/9301473","927563595"
"London Borough of Redbridge","http://opendatacommunities.org/doc/london-borough-council/redbridge","1BOTHEROPI&E","Other Operating Income & Expenditure","1CTRADSURDEF","Trading Account Surpluses & Deficits","REV","Revenue","R9575","Ilford Chambers Service Charge Account","02-PREMISES","Premises","02B","Energy costs","4000","Electricity","60478844","202210",22/12/2021 00:00:00,358.03,"30586","Electricity Companies","REDACTED DATA","SSE ENERGY SERVICES (DOMESTIC SUPPLY)","2716495","http://opencorporates.com/companies/gb/2716495","553769603"
"London Borough of Redbridge","http://opendatacommunities.org/doc/london-borough-council/redbridge","1BOTHEROPI&E","Other Operating Income & Expenditure","1CTRADSURDEF","Trading Account Surpluses & Deficits","REV","Revenue","R9575","Ilford Chambers Service Charge Account","02-PREMISES","Premises","02B","Energy costs","4002","Gas","80041344","202210",13/01/2022 00:00:00,182.79,"39564","Gas Companies","REDACTED DATA","KENT COUNTY COUNCIL (GAS & ELECTRIC)","",,"204269191"
"London Borough of Redbridge","http://opendatacommunities.org/doc/london-borough-council/redbridge","1BOTHEROPI&E","Other Operating Income & Expenditure","1CTRADSURDEF","Trading Account Surpluses & Deficits","REV","Revenue","R9576","Broadway Chambers Service Charge Account","02-PREMISES","Premises","02A","Repairs, alteration and maintenance of buildings","3037","Service Contracts","60478268","202210",01/01/2022 00:00:00,107.63,"57130","Pest and Vermin Control Products","REDACTED DATA","TERMINEX LTD","3024848","http://opencorporates.com/companies/gb/3024848","639963776"
"London Borough of Redbridge","http://opendatacommunities.org/doc/london-borough-council/redbridge","1BOTHEROPI&E","Other Operating Income & Expenditure","1CTRADSURDEF","Trading Account Surpluses & Deficits","REV","Revenue","R9576","Broadway Chambers Service Charge Account","04-SUPPLIES","Supplies And Services","04H","Grants and subscriptions","5954","Professional Fees","60479233","202210",17/01/2022 00:00:00,320,"61896","Property and Estate Management","REDACTED DATA","SPENCER CRAIG PARTNERSHIP","5500269","http://opencorporates.com/companies/gb/5500269","863664200"
"London Borough of Redbridge","http://opendatacommunities.org/doc/london-borough-council/redbridge","1BOTHEROPI&E","Other Operating Income & Expenditure","1CTRADSURDEF","Trading Account Surpluses & Deficits","REV","Revenue","R9577","Broadmead Ind. Units Service Charge Account","02-PREMISES","Premises","02A","Repairs, alteration and maintenance of buildings","3026","Minor Maintenance","60478070","202210",04/01/2022 00:00:00,300,"61896","Property and Estate Management","REDACTED DATA","SPENCER CRAIG PARTNERSHIP","5500269","http://opencorporates.com/companies/gb/5500269","863664200"
"London Borough of Redbridge","http://opendatacommunities.org/doc/london-borough-council/redbridge","1BOTHEROPI&E","Other Operating Income & Expenditure","1CTRADSURDEF","Trading Account Surpluses & Deficits","REV","Revenue","R9578","Misc Properties","02-PREMISES","Premises","02A","Repairs, alteration and maintenance of buildings","3026","Minor Maintenance","3679965","202210",29/12/2021 00:00:00,92,"11040","Builders","REDACTED DATA","M & G CONSTRUCTION LTD.","1918880","http://opencorporates.com/companies/gb/1918880","406392853"
"London Borough of Redbridge","http://opendatacommunities.org/doc/london-borough-council/redbridge","1BOTHEROPI&E","Other Operating Income & Expenditure","1CTRADSURDEF","Trading Account Surpluses & Deficits","REV","Revenue","R9578","Misc Properties","02-PREMISES","Premises","02A","Repairs, alteration and maintenance of buildings","3037","Service Contracts","3678426","202210",22/12/2021 00:00:00,30,"35290","Fire Alarm Systems","REDACTED DATA","R & M CLARKSON LTD","1176505","http://opencorporates.com/companies/gb/1176505","2594005516"
"London Borough of Redbridge","http://opendatacommunities.org/doc/london-borough-council/redbridge","1BOTHEROPI&E","Other Operating Income & Expenditure","1CTRADSURDEF","Trading Account Surpluses & Deficits","REV","Revenue","R9578","Misc Properties","04-SUPPLIES","Supplies And Services","04K","Miscellaneous expenses","6258","Security Patrol Services","60479176","202210",17/01/2022 00:00:00,48.71,"61896","Property and Estate Management","REDACTED DATA","SPENCER CRAIG PARTNERSHIP","5500269","http://opencorporates.com/companies/gb/5500269","863664200"
"London Borough of Redbridge","http://opendatacommunities.org/doc/london-borough-council/redbridge","1BOTHEROPI&E","Other Operating Income & Expenditure","1CTRADSURDEF","Trading Account Surpluses & Deficits","REV","Revenue","R9578","Misc Properties","04-SUPPLIES","Supplies And Services","04K","Miscellaneous expenses","6258","Security Patrol Services","60479177","202210",17/01/2022 00:00:00,381.8,"61896","Property and Estate Management","REDACTED DATA","SPENCER CRAIG PARTNERSHIP","5500269","http://opencorporates.com/companies/gb/5500269","863664200"
"London Borough of Redbridge","http://opendatacommunities.org/doc/london-borough-council/redbridge","1BOTHEROPI&E","Other Operating Income & Expenditure","1CTRADSURDEF","Trading Account Surpluses & Deficits","REV","Revenue","R9578","Misc Properties","04-SUPPLIES","Supplies And Services","04K","Miscellaneous expenses","6258","Security Patrol Services","60479235","202210",17/01/2022 00:00:00,314.24,"61896","Property and Estate Management","REDACTED DATA","SPENCER CRAIG PARTNERSHIP","5500269","http://opencorporates.com/companies/gb/5500269","863664200"
"London Borough of Redbridge","http://opendatacommunities.org/doc/london-borough-council/redbridge","1BOTHEROPI&E","Other Operating Income & Expenditure","1CTRADSURDEF","Trading Account Surpluses & Deficits","REV","Revenue","R9578","Misc Properties","04-SUPPLIES","Supplies And Services","04K","Miscellaneous expenses","6258","Security Patrol Services","60478071","202210",04/01/2022 00:00:00,47.14,"61896","Property and Estate Management","REDACTED DATA","SPENCER CRAIG PARTNERSHIP","5500269","http://opencorporates.com/companies/gb/5500269","863664200"
"London Borough of Redbridge","http://opendatacommunities.org/doc/london-borough-council/redbridge","1BOTHEROPI&E","Other Operating Income & Expenditure","1CTRADSURDEF","Trading Account Surpluses & Deficits","REV","Revenue","R9578","Misc Properties","04-SUPPLIES","Supplies And Services","04K","Miscellaneous expenses","6258","Security Patrol Services","60478072","202210",04/01/2022 00:00:00,369.2,"61896","Property and Estate Management","REDACTED DATA","SPENCER CRAIG PARTNERSHIP","5500269","http://opencorporates.com/companies/gb/5500269","863664200"
"London Borough of Redbridge","http://opendatacommunities.org/doc/london-borough-council/redbridge","1BOTHEROPI&E","Other Operating Income & Expenditure","1CTRADSURDEF","Trading Account Surpluses & Deficits","REV","Revenue","R9578","Misc Properties","04-SUPPLIES","Supplies And Services","04K","Miscellaneous expenses","6258","Security Patrol Services","60478073","202210",04/01/2022 00:00:00,304.16,"61896","Property and Estate Management","REDACTED DATA","SPENCER CRAIG PARTNERSHIP","5500269","http://opencorporates.com/companies/gb/5500269","863664200"
"London Borough of Redbridge","http://opendatacommunities.org/doc/london-borough-council/redbridge","1BOTHEROPI&E","Other Operating Income & Expenditure","1CTRADSURDEF","Trading Account Surpluses & Deficits","REV","Revenue","R9802","Administrative Service","04-SUPPLIES","Supplies And Services","04D","Printing, stationery and general office expenses","5710","Stationery","60479053","202210",31/12/2021 00:00:00,52.8,"61820","Printers' Services and Supplies","REDACTED DATA","FINANCIAL DATA MANAGEMENT PLC","2827644","http://opencorporates.com/companies/gb/2827644","690659887"
"London Borough of Redbridge","http://opendatacommunities.org/doc/london-borough-council/redbridge","1BOTHEROPI&E","Other Operating Income & Expenditure","1CTRADSURDEF","Trading Account Surpluses & Deficits","REV","Revenue","R9802","Administrative Service","04-SUPPLIES","Supplies And Services","04D","Printing, stationery and general office expenses","5710","Stationery","60479082","202210",31/12/2021 00:00:00,296,"61820","Printers' Services and Supplies","REDACTED DATA","FINANCIAL DATA MANAGEMENT PLC","2827644","http://opencorporates.com/companies/gb/2827644","690659887"
"London Borough of Redbridge","http://opendatacommunities.org/doc/london-borough-council/redbridge","1BOTHEROPI&E","Other Operating Income & Expenditure","1CTRADSURDEF","Trading Account Surpluses & Deficits","REV","Revenue","R9833","Print Buying","04-SUPPLIES","Supplies And Services","04D","Printing, stationery and general office expenses","5709","Expenditure Framework","60479341","202210",30/06/2019 00:00:00,172,"61820","Printers' Services and Supplies","REDACTED DATA","Radclyffe Culross & Sproston LTD","391378","http://opencorporates.com/companies/gb/391378","232832087"
"London Borough of Redbridge","http://opendatacommunities.org/doc/london-borough-council/redbridge","2BBUSISUP","Business Support","","","REV","Revenue","R6534","P & BC General Services","04-SUPPLIES","Supplies And Services","04D","Printing, stationery and general office expenses","5707","Advertising & publications non promotional","60478736","202210",13/11/2021 00:00:00,400,"52860","Newspaper and Magazine Publishers","REDACTED DATA","ARCHANT COMMUNITY MEDIA LIMITED","19300","http://opencorporates.com/companies/gb/19300","711518562"
"London Borough of Redbridge","http://opendatacommunities.org/doc/london-borough-council/redbridge","2BBUSISUP","Business Support","","","REV","Revenue","R6534","P & BC General Services","04-SUPPLIES","Supplies And Services","04D","Printing, stationery and general office expenses","5707","Advertising & publications non promotional","60478747","202210",27/11/2021 00:00:00,300,"52860","Newspaper and Magazine Publishers","REDACTED DATA","ARCHANT COMMUNITY MEDIA LIMITED","19300","http://opencorporates.com/companies/gb/19300","711518562"
"London Borough of Redbridge","http://opendatacommunities.org/doc/london-borough-council/redbridge","2BDEVCON","Development Control","","","REV","Revenue","R6510","Development Management","01-EMPLOYEES","Employees","01B","Indirect employee expenses","2418","Compensation Payments","3681025","202210",29/12/2021 00:00:00,200,"58895","Planning Supervisors","REDACTED DATA","PORTALPLANQUEST LTD","9400439","http://opencorporates.com/companies/gb/9400439","207403052"
"London Borough of Redbridge","http://opendatacommunities.org/doc/london-borough-council/redbridge","2BDEVCON","Development Control","","","REV","Revenue","R6510","Development Management","01-EMPLOYEES","Employees","01B","Indirect employee expenses","2418","Compensation Payments","3681026","202210",22/11/2021 00:00:00,206,"58895","Planning Supervisors","REDACTED DATA","PORTALPLANQUEST LTD","9400439","http://opencorporates.com/companies/gb/9400439","207403052"
"London Borough of Redbridge","http://opendatacommunities.org/doc/london-borough-council/redbridge","2BDEVCON","Development Control","","","REV","Revenue","R6510","Development Management","01-EMPLOYEES","Employees","01B","Indirect employee expenses","2418","Compensation Payments","3681027","202210",21/10/2021 00:00:00,146,"58895","Planning Supervisors","REDACTED DATA","PORTALPLANQUEST LTD","9400439","http://opencorporates.com/companies/gb/9400439","207403052"
"London Borough of Redbridge","http://opendatacommunities.org/doc/london-borough-council/redbridge","2BDEVCON","Development Control","","","REV","Revenue","R6510","Development Management","01-EMPLOYEES","Employees","01B","Indirect employee expenses","2418","Compensation Payments","3677865","202210",08/11/2021 00:00:00,234,"58895","Planning Supervisors","REDACTED DATA","PORTALPLANQUEST LTD","9400439","http://opencorporates.com/companies/gb/9400439","207403052"
"London Borough of Redbridge","http://opendatacommunities.org/doc/london-borough-council/redbridge","2BDEVCON","Development Control","","","REV","Revenue","R6510","Development Management","01-EMPLOYEES","Employees","01B","Indirect employee expenses","2418","Compensation Payments","3677867","202210",19/11/2021 00:00:00,206,"58895","Planning Supervisors","REDACTED DATA","PORTALPLANQUEST LTD","9400439","http://opencorporates.com/companies/gb/9400439","207403052"
"London Borough of Redbridge","http://opendatacommunities.org/doc/london-borough-council/redbridge","2BDEVCON","Development Control","","","REV","Revenue","R6510","Development Management","01-EMPLOYEES","Employees","01B","Indirect employee expenses","2418","Compensation Payments","3677868","202210",29/11/2021 00:00:00,462,"58895","Planning Supervisors","REDACTED DATA","PORTALPLANQUEST LTD","9400439","http://opencorporates.com/companies/gb/9400439","207403052"
"London Borough of Redbridge","http://opendatacommunities.org/doc/london-borough-council/redbridge","2BDEVCON","Development Control","","","REV","Revenue","R6510","Development Management","01-EMPLOYEES","Employees","01B","Indirect employee expenses","2418","Compensation Payments","3677869","202210",08/12/2021 00:00:00,206,"58895","Planning Supervisors","REDACTED DATA","PORTALPLANQUEST LTD","9400439","http://opencorporates.com/companies/gb/9400439","207403052"
"London Borough of Redbridge","http://opendatacommunities.org/doc/london-borough-council/redbridge","2BDEVCON","Development Control","","","REV","Revenue","R6510","Development Management","01-EMPLOYEES","Employees","01B","Indirect employee expenses","2418","Compensation Payments","3677870","202210",14/12/2021 00:00:00,28,"58895","Planning Supervisors","REDACTED DATA","PORTALPLANQUEST LTD","9400439","http://opencorporates.com/companies/gb/9400439","207403052"
"London Borough of Redbridge","http://opendatacommunities.org/doc/london-borough-council/redbridge","2BECODEV","Economic Development","","","REV","Revenue","R9870","School planned & reactive works","02-PREMISES","Premises","02A","Repairs, alteration and maintenance of buildings","3026","Minor Maintenance","3679966","202210",29/12/2021 00:00:00,280,"11040","Builders","REDACTED DATA","M & G CONSTRUCTION LTD.","1918880","http://opencorporates.com/companies/gb/1918880","406392853"
"London Borough of Redbridge","http://opendatacommunities.org/doc/london-borough-council/redbridge","2BECODEV","Economic Development","","","REV","Revenue","R9870","School planned & reactive works","02-PREMISES","Premises","02A","Repairs, alteration and maintenance of buildings","3026","Minor Maintenance","3679957","202210",07/10/2021 00:00:00,250,"4970","Asbestos Surveys and Removals","REDACTED DATA","LIFE ENVIRONMENTAL SERVICES LTD","3053057","http://opencorporates.com/companies/gb/3053057","656342920"
"London Borough of Redbridge","http://opendatacommunities.org/doc/london-borough-council/redbridge","2BECODEV","Economic Development","","","REV","Revenue","R9870","School planned & reactive works","02-PREMISES","Premises","02A","Repairs, alteration and maintenance of buildings","3026","Minor Maintenance","3678399","202210",04/01/2022 00:00:00,90,"16111","Catering Equipment","REDACTED DATA","J SCOTT & SONS  LTD","",,"354241082"
"London Borough of Redbridge","http://opendatacommunities.org/doc/london-borough-council/redbridge","2BECODEV","Economic Development","","","REV","Revenue","R9870","School planned & reactive works","02-PREMISES","Premises","02A","Repairs, alteration and maintenance of buildings","3026","Minor Maintenance","3677969","202210",04/01/2022 00:00:00,90,"16111","Catering Equipment","REDACTED DATA","J SCOTT & SONS  LTD","",,"354241082"
"London Borough of Redbridge","http://opendatacommunities.org/doc/london-borough-council/redbridge","2BECODEV","Economic Development","","","REV","Revenue","R9870","School planned & reactive works","02-PREMISES","Premises","02A","Repairs, alteration and maintenance of buildings","3026","Minor Maintenance","3677966","202210",04/01/2022 00:00:00,90,"16111","Catering Equipment","REDACTED DATA","J SCOTT & SONS  LTD","",,"354241082"
"London Borough of Redbridge","http://opendatacommunities.org/doc/london-borough-council/redbridge","2BECODEV","Economic Development","","","REV","Revenue","R9870","School planned & reactive works","02-PREMISES","Premises","02A","Repairs, alteration and maintenance of buildings","3026","Minor Maintenance","3677967","202210",04/01/2022 00:00:00,135.4,"16111","Catering Equipment","REDACTED DATA","J SCOTT & SONS  LTD","",,"354241082"
"London Borough of Redbridge","http://opendatacommunities.org/doc/london-borough-council/redbridge","2BECODEV","Economic Development","","","REV","Revenue","R9870","School planned & reactive works","02-PREMISES","Premises","02A","Repairs, alteration and maintenance of buildings","3026","Minor Maintenance","3677968","202210",04/01/2022 00:00:00,90,"16111","Catering Equipment","REDACTED DATA","J SCOTT & SONS  LTD","",,"354241082"
"London Borough of Redbridge","http://opendatacommunities.org/doc/london-borough-council/redbridge","2BECODEV","Economic Development","","","REV","Revenue","R9870","School planned & reactive works","02-PREMISES","Premises","02A","Repairs, alteration and maintenance of buildings","3026","Minor Maintenance","3677965","202210",04/01/2022 00:00:00,180,"69240","Security Services","REDACTED DATA","HALL & KAY FIRE SERVICES LTD T/A HALL & KAY FIRE ENGINEERING","5211559","http://opencorporates.com/companies/gb/5211559","199888505"
"London Borough of Redbridge","http://opendatacommunities.org/doc/london-borough-council/redbridge","2BECODEV","Economic Development","","","REV","Revenue","R9870","School planned & reactive works","02-PREMISES","Premises","02A","Repairs, alteration and maintenance of buildings","3026","Minor Maintenance","3678401","202210",05/01/2022 00:00:00,120,"69240","Security Services","REDACTED DATA","HALL & KAY FIRE SERVICES LTD T/A HALL & KAY FIRE ENGINEERING","5211559","http://opencorporates.com/companies/gb/5211559","199888505"
"London Borough of Redbridge","http://opendatacommunities.org/doc/london-borough-council/redbridge","2BECODEV","Economic Development","","","REV","Revenue","R9870","School planned & reactive works","02-PREMISES","Premises","02A","Repairs, alteration and maintenance of buildings","3026","Minor Maintenance","3678411","202210",10/01/2022 00:00:00,60,"69240","Security Services","REDACTED DATA","HALL & KAY FIRE SERVICES LTD T/A HALL & KAY FIRE ENGINEERING","5211559","http://opencorporates.com/companies/gb/5211559","199888505"
"London Borough of Redbridge","http://opendatacommunities.org/doc/london-borough-council/redbridge","2BECODEV","Economic Development","","","REV","Revenue","R9870","School planned & reactive works","02-PREMISES","Premises","02A","Repairs, alteration and maintenance of buildings","3026","Minor Maintenance","3677236","202210",30/12/2021 00:00:00,60,"69240","Security Services","REDACTED DATA","HALL & KAY FIRE SERVICES LTD T/A HALL & KAY FIRE ENGINEERING","5211559","http://opencorporates.com/companies/gb/5211559","199888505"
"London Borough of Redbridge","http://opendatacommunities.org/doc/london-borough-council/redbridge","2BECODEV","Economic Development","","","REV","Revenue","R9870","School planned & reactive works","02-PREMISES","Premises","02A","Repairs, alteration and maintenance of buildings","3026","Minor Maintenance","3677970","202210",03/01/2022 00:00:00,260.64,"16710","Central Heating - Installation and Servicing","REDACTED DATA","J R ASHWORTH PLMBING & HTG LTD","",,""
"London Borough of Redbridge","http://opendatacommunities.org/doc/london-borough-council/redbridge","2BECODEV","Economic Development","","","REV","Revenue","R9870","School planned & reactive works","02-PREMISES","Premises","02A","Repairs, alteration and maintenance of buildings","3026","Minor Maintenance","3677976","202210",03/01/2022 00:00:00,72.6,"16710","Central Heating - Installation and Servicing","REDACTED DATA","J R ASHWORTH PLMBING & HTG LTD","",,""
"London Borough of Redbridge","http://opendatacommunities.org/doc/london-borough-council/redbridge","2BECODEV","Economic Development","","","REV","Revenue","R9870","School planned & reactive works","02-PREMISES","Premises","02A","Repairs, alteration and maintenance of buildings","3026","Minor Maintenance","3677987","202210",03/01/2022 00:00:00,365,"16710","Central Heating - Installation and Servicing","REDACTED DATA","J R ASHWORTH PLMBING & HTG LTD","",,""
"London Borough of Redbridge","http://opendatacommunities.org/doc/london-borough-council/redbridge","2BECODEV","Economic Development","","","REV","Revenue","R9870","School planned & reactive works","02-PREMISES","Premises","02A","Repairs, alteration and maintenance of buildings","3026","Minor Maintenance","3677875","202210",09/01/2018 00:00:00,75,"30045","Electrical Engineers","REDACTED DATA","COUNTY ELECTRICAL SOLUTIONS LTD","6476990","http://opencorporates.com/companies/gb/6476990","924889474"
"London Borough of Redbridge","http://opendatacommunities.org/doc/london-borough-council/redbridge","2BECODEV","Economic Development","","","REV","Revenue","R9870","School planned & reactive works","02-PREMISES","Premises","02A","Repairs, alteration and maintenance of buildings","3026","Minor Maintenance","3677875","202210",09/01/2018 00:00:00,6.5,"30045","Electrical Engineers","REDACTED DATA","COUNTY ELECTRICAL SOLUTIONS LTD","6476990","http://opencorporates.com/companies/gb/6476990","924889474"
"London Borough of Redbridge","http://opendatacommunities.org/doc/london-borough-council/redbridge","2BECODEV","Economic Development","","","REV","Revenue","R9870","School planned & reactive works","02-PREMISES","Premises","02A","Repairs, alteration and maintenance of buildings","3026","Minor Maintenance","3680071","202210",25/01/2022 00:00:00,90,"30045","Electrical Engineers","REDACTED DATA","COUNTY ELECTRICAL SOLUTIONS LTD","6476990","http://opencorporates.com/companies/gb/6476990","924889474"
"London Borough of Redbridge","http://opendatacommunities.org/doc/london-borough-council/redbridge","2BECODEV","Economic Development","","","REV","Revenue","R9870","School planned & reactive works","02-PREMISES","Premises","02A","Repairs, alteration and maintenance of buildings","3026","Minor Maintenance","3677224","202210",09/01/2018 00:00:00,75,"30045","Electrical Engineers","REDACTED DATA","COUNTY ELECTRICAL SOLUTIONS LTD","6476990","http://opencorporates.com/companies/gb/6476990","924889474"
"London Borough of Redbridge","http://opendatacommunities.org/doc/london-borough-council/redbridge","2BECODEV","Economic Development","","","REV","Revenue","R9870","School planned & reactive works","02-PREMISES","Premises","02A","Repairs, alteration and maintenance of buildings","3026","Minor Maintenance","3677224","202210",09/01/2018 00:00:00,6.5,"30045","Electrical Engineers","REDACTED DATA","COUNTY ELECTRICAL SOLUTIONS LTD","6476990","http://opencorporates.com/companies/gb/6476990","924889474"
"London Borough of Redbridge","http://opendatacommunities.org/doc/london-borough-council/redbridge","2BECODEV","Economic Development","","","REV","Revenue","R9870","School planned & reactive works","02-PREMISES","Premises","02A","Repairs, alteration and maintenance of buildings","3026","Minor Maintenance","3677246","202210",03/01/2022 00:00:00,146.68,"16710","Central Heating - Installation and Servicing","REDACTED DATA","J R ASHWORTH PLMBING & HTG LTD","",,""
"London Borough of Redbridge","http://opendatacommunities.org/doc/london-borough-council/redbridge","2BECODEV","Economic Development","","","REV","Revenue","R9870","School planned & reactive works","02-PREMISES","Premises","02A","Repairs, alteration and maintenance of buildings","3026","Minor Maintenance","3677248","202210",03/01/2022 00:00:00,70,"16710","Central Heating - Installation and Servicing","REDACTED DATA","J R ASHWORTH PLMBING & HTG LTD","",,""
"London Borough of Redbridge","http://opendatacommunities.org/doc/london-borough-council/redbridge","2BECODEV","Economic Development","","","REV","Revenue","R9870","School planned & reactive works","02-PREMISES","Premises","02A","Repairs, alteration and maintenance of buildings","3026","Minor Maintenance","3680071","202210",25/01/2022 00:00:00,0,"30045","Electrical Engineers","REDACTED DATA","COUNTY ELECTRICAL SOLUTIONS LTD","6476990","http://opencorporates.com/companies/gb/6476990","924889474"
"London Borough of Redbridge","http://opendatacommunities.org/doc/london-borough-council/redbridge","2BECODEV","Economic Development","","","REV","Revenue","R9870","School planned & reactive works","02-PREMISES","Premises","02A","Repairs, alteration and maintenance of buildings","3026","Minor Maintenance","3677242","202210",23/12/2021 00:00:00,310,"65451","Roller Shutter Mnfrs","REDACTED DATA","ELLIOTT SECURITIES LONDON LTD T/A EXPRESS SHUTTERS & GOSPORT ENGINEERING","8417405","http://opencorporates.com/companies/gb/8417405","835715613"
"London Borough of Redbridge","http://opendatacommunities.org/doc/london-borough-council/redbridge","2BECODEV","Economic Development","","","REV","Revenue","R9870","School planned & reactive works","02-PREMISES","Premises","02A","Repairs, alteration and maintenance of buildings","3026","Minor Maintenance","3680058","202210",21/01/2022 00:00:00,52,"65451","Roller Shutter Mnfrs","REDACTED DATA","ELLIOTT SECURITIES LONDON LTD T/A EXPRESS SHUTTERS & GOSPORT ENGINEERING","8417405","http://opencorporates.com/companies/gb/8417405","835715613"
"London Borough of Redbridge","http://opendatacommunities.org/doc/london-borough-council/redbridge","2BECODEV","Economic Development","","","REV","Revenue","R9870","School planned & reactive works","02-PREMISES","Premises","02A","Repairs, alteration and maintenance of buildings","3026","Minor Maintenance","3677997","202210",31/12/2021 00:00:00,295,"27660","Drain and Sewer Clearance","REDACTED DATA","DRAIN AID LTD","3500245","http://opencorporates.com/companies/gb/3500245","710447956"
"London Borough of Redbridge","http://opendatacommunities.org/doc/london-borough-council/redbridge","2BECODEV","Economic Development","","","REV","Revenue","R9870","School planned & reactive works","02-PREMISES","Premises","02A","Repairs, alteration and maintenance of buildings","3026","Minor Maintenance","3678410","202210",06/01/2022 00:00:00,110,"46040","Joinery Manufacturers","REDACTED DATA","DRS DOORS LTD","9608644","http://opencorporates.com/companies/gb/9608644","164467489"
"London Borough of Redbridge","http://opendatacommunities.org/doc/london-borough-council/redbridge","2BECODEV","Economic Development","","","REV","Revenue","R9870","School planned & reactive works","02-PREMISES","Premises","02A","Repairs, alteration and maintenance of buildings","3026","Minor Maintenance","3678410","202210",06/01/2022 00:00:00,173.5,"46040","Joinery Manufacturers","REDACTED DATA","DRS DOORS LTD","9608644","http://opencorporates.com/companies/gb/9608644","164467489"
"London Borough of Redbridge","http://opendatacommunities.org/doc/london-borough-council/redbridge","2BECODEV","Economic Development","","","REV","Revenue","R9870","School planned & reactive works","02-PREMISES","Premises","02A","Repairs, alteration and maintenance of buildings","3026","Minor Maintenance","3677999","202210",01/01/2022 00:00:00,151.25,"48586","Locksmiths","REDACTED DATA","MARTIN LOCK & SAFE","",,"248118853"
"London Borough of Redbridge","http://opendatacommunities.org/doc/london-borough-council/redbridge","2BECODEV","Economic Development","","","REV","Revenue","R9870","School planned & reactive works","02-PREMISES","Premises","02A","Repairs, alteration and maintenance of buildings","3037","Service Contracts","3678032","202210",22/12/2021 00:00:00,30,"35290","Fire Alarm Systems","REDACTED DATA","R & M CLARKSON LTD","1176505","http://opencorporates.com/companies/gb/1176505","2594005516"
"London Borough of Redbridge","http://opendatacommunities.org/doc/london-borough-council/redbridge","2BECODEV","Economic Development","","","REV","Revenue","R9870","School planned & reactive works","02-PREMISES","Premises","02A","Repairs, alteration and maintenance of buildings","3037","Service Contracts","3678012","202210",24/12/2021 00:00:00,39.51,"61961","Property Maintenance and Repairs","REDACTED DATA","Integrated Water Services Ltd","5283349","http://opencorporates.com/companies/gb/5283349","918 455 404"
"London Borough of Redbridge","http://opendatacommunities.org/doc/london-borough-council/redbridge","2BECODEV","Economic Development","","","REV","Revenue","R9870","School planned & reactive works","02-PREMISES","Premises","02A","Repairs, alteration and maintenance of buildings","3037","Service Contracts","3678014","202210",29/12/2021 00:00:00,120,"61961","Property Maintenance and Repairs","REDACTED DATA","Integrated Water Services Ltd","5283349","http://opencorporates.com/companies/gb/5283349","918 455 404"
"London Borough of Redbridge","http://opendatacommunities.org/doc/london-borough-council/redbridge","2BECODEV","Economic Development","","","REV","Revenue","R9870","School planned & reactive works","02-PREMISES","Premises","02A","Repairs, alteration and maintenance of buildings","3037","Service Contracts","3678015","202210",29/12/2021 00:00:00,120,"61961","Property Maintenance and Repairs","REDACTED DATA","Integrated Water Services Ltd","5283349","http://opencorporates.com/companies/gb/5283349","918 455 404"
"London Borough of Redbridge","http://opendatacommunities.org/doc/london-borough-council/redbridge","2BECODEV","Economic Development","","","REV","Revenue","R9870","School planned & reactive works","02-PREMISES","Premises","02A","Repairs, alteration and maintenance of buildings","3037","Service Contracts","3678018","202210",31/12/2021 00:00:00,94.55,"61961","Property Maintenance and Repairs","REDACTED DATA","Integrated Water Services Ltd","5283349","http://opencorporates.com/companies/gb/5283349","918 455 404"
"London Borough of Redbridge","http://opendatacommunities.org/doc/london-borough-council/redbridge","2BECODEV","Economic Development","","","REV","Revenue","R9870","School planned & reactive works","02-PREMISES","Premises","02A","Repairs, alteration and maintenance of buildings","3037","Service Contracts","3678008","202210",24/12/2021 00:00:00,36.34,"61961","Property Maintenance and Repairs","REDACTED DATA","Integrated Water Services Ltd","5283349","http://opencorporates.com/companies/gb/5283349","918 455 404"
"London Borough of Redbridge","http://opendatacommunities.org/doc/london-borough-council/redbridge","2BECODEV","Economic Development","","","REV","Revenue","R9870","School planned & reactive works","02-PREMISES","Premises","02A","Repairs, alteration and maintenance of buildings","3037","Service Contracts","3678001","202210",17/12/2021 00:00:00,93.4,"61961","Property Maintenance and Repairs","REDACTED DATA","Integrated Water Services Ltd","5283349","http://opencorporates.com/companies/gb/5283349","918 455 404"
"London Borough of Redbridge","http://opendatacommunities.org/doc/london-borough-council/redbridge","2BECODEV","Economic Development","","","REV","Revenue","R9870","School planned & reactive works","02-PREMISES","Premises","02A","Repairs, alteration and maintenance of buildings","3037","Service Contracts","3678004","202210",24/12/2021 00:00:00,49.02,"61961","Property Maintenance and Repairs","REDACTED DATA","Integrated Water Services Ltd","5283349","http://opencorporates.com/companies/gb/5283349","918 455 404"
"London Borough of Redbridge","http://opendatacommunities.org/doc/london-borough-council/redbridge","2BECODEV","Economic Development","","","REV","Revenue","R9870","School planned & reactive works","02-PREMISES","Premises","02A","Repairs, alteration and maintenance of buildings","3037","Service Contracts","3678006","202210",24/12/2021 00:00:00,49.02,"61961","Property Maintenance and Repairs","REDACTED DATA","Integrated Water Services Ltd","5283349","http://opencorporates.com/companies/gb/5283349","918 455 404"
"London Borough of Redbridge","http://opendatacommunities.org/doc/london-borough-council/redbridge","2BECODEV","Economic Development","","","REV","Revenue","R9870","School planned & reactive works","02-PREMISES","Premises","02A","Repairs, alteration and maintenance of buildings","3037","Service Contracts","3678437","202210",11/01/2022 00:00:00,36.34,"61961","Property Maintenance and Repairs","REDACTED DATA","Integrated Water Services Ltd","5283349","http://opencorporates.com/companies/gb/5283349","918 455 404"
"London Borough of Redbridge","http://opendatacommunities.org/doc/london-borough-council/redbridge","2BECODEV","Economic Development","","","REV","Revenue","R9870","School planned & reactive works","02-PREMISES","Premises","02A","Repairs, alteration and maintenance of buildings","3037","Service Contracts","3678438","202210",11/01/2022 00:00:00,49.02,"61961","Property Maintenance and Repairs","REDACTED DATA","Integrated Water Services Ltd","5283349","http://opencorporates.com/companies/gb/5283349","918 455 404"
"London Borough of Redbridge","http://opendatacommunities.org/doc/london-borough-council/redbridge","2BECODEV","Economic Development","","","REV","Revenue","R9870","School planned & reactive works","02-PREMISES","Premises","02A","Repairs, alteration and maintenance of buildings","3037","Service Contracts","3678435","202210",11/01/2022 00:00:00,39.51,"61961","Property Maintenance and Repairs","REDACTED DATA","Integrated Water Services Ltd","5283349","http://opencorporates.com/companies/gb/5283349","918 455 404"
"London Borough of Redbridge","http://opendatacommunities.org/doc/london-borough-council/redbridge","2BECODEV","Economic Development","","","REV","Revenue","R9870","School planned & reactive works","02-PREMISES","Premises","02A","Repairs, alteration and maintenance of buildings","3037","Service Contracts","3678441","202210",11/01/2022 00:00:00,55.36,"61961","Property Maintenance and Repairs","REDACTED DATA","Integrated Water Services Ltd","5283349","http://opencorporates.com/companies/gb/5283349","918 455 404"
"London Borough of Redbridge","http://opendatacommunities.org/doc/london-borough-council/redbridge","2BECODEV","Economic Development","","","REV","Revenue","R9870","School planned & reactive works","02-PREMISES","Premises","02A","Repairs, alteration and maintenance of buildings","3037","Service Contracts","3678442","202210",11/01/2022 00:00:00,33.17,"61961","Property Maintenance and Repairs","REDACTED DATA","Integrated Water Services Ltd","5283349","http://opencorporates.com/companies/gb/5283349","918 455 404"
"London Borough of Redbridge","http://opendatacommunities.org/doc/london-borough-council/redbridge","2BECODEV","Economic Development","","","REV","Revenue","R9870","School planned & reactive works","02-PREMISES","Premises","02A","Repairs, alteration and maintenance of buildings","3037","Service Contracts","3678446","202210",11/01/2022 00:00:00,68.04,"61961","Property Maintenance and Repairs","REDACTED DATA","Integrated Water Services Ltd","5283349","http://opencorporates.com/companies/gb/5283349","918 455 404"
"London Borough of Redbridge","http://opendatacommunities.org/doc/london-borough-council/redbridge","2BECODEV","Economic Development","","","REV","Revenue","R9870","School planned & reactive works","02-PREMISES","Premises","02A","Repairs, alteration and maintenance of buildings","3037","Service Contracts","3677256","202210",26/05/2021 00:00:00,241,"69240","Security Services","REDACTED DATA","HALL & KAY FIRE SERVICES LTD T/A HALL & KAY FIRE ENGINEERING","5211559","http://opencorporates.com/companies/gb/5211559","199888505"
"London Borough of Redbridge","http://opendatacommunities.org/doc/london-borough-council/redbridge","2BECODEV","Economic Development","","","REV","Revenue","R9870","School planned & reactive works","02-PREMISES","Premises","02A","Repairs, alteration and maintenance of buildings","3037","Service Contracts","3678414","202210",20/12/2021 00:00:00,327.47,"74840","Swimming Pool Contractors, Repairers and Service","REDACTED DATA","HYDROSPEC LTD","2319035","http://opencorporates.com/companies/gb/2319035","506475349"
"London Borough of Redbridge","http://opendatacommunities.org/doc/london-borough-council/redbridge","2BECODEV","Economic Development","","","REV","Revenue","R9870","School planned & reactive works","02-PREMISES","Premises","02A","Repairs, alteration and maintenance of buildings","3037","Service Contracts","3678431","202210",10/01/2022 00:00:00,134.7,"48500","Lightning Conductors","REDACTED DATA","HORIZON SPECIALIST CONTRACTING LTD T/A HORIZON INTERNATIONAL","2827337","http://opencorporates.com/companies/gb/2827337","610613488"
"London Borough of Redbridge","http://opendatacommunities.org/doc/london-borough-council/redbridge","2BECODEV","Economic Development","","","REV","Revenue","R9870","School planned & reactive works","02-PREMISES","Premises","02A","Repairs, alteration and maintenance of buildings","3037","Service Contracts","3678432","202210",10/01/2022 00:00:00,80.82,"48500","Lightning Conductors","REDACTED DATA","HORIZON SPECIALIST CONTRACTING LTD T/A HORIZON INTERNATIONAL","2827337","http://opencorporates.com/companies/gb/2827337","610613488"
"London Borough of Redbridge","http://opendatacommunities.org/doc/london-borough-council/redbridge","2BENVIRONMEN","Environmental Services","2CCEMCREMMOR","Cemetery, Cremation & Mortuary Services","REV","Revenue","R6768","Bereavement Services (Client)","05-THIRD","Third Party Payments","05C","Other local authorities","6650","Other Local Authorities","60478064","202210",05/01/2022 00:00:00,275.63,"42200","Health Authorities","REDACTED DATA","BARKING HAVERING & REDBRIDGE NHS TRUST","",,"654924414"
"London Borough of Redbridge","http://opendatacommunities.org/doc/london-borough-council/redbridge","2BENVIRONMEN","Environmental Services","2CCOMSAFCRIM","Community Safety (Crime Reduction)","REV","Revenue","R6753","CCTV","04-SUPPLIES","Supplies And Services","04A","Equipment, furniture and materials","5502","Equipment Purchase","80041347","202210",17/01/2022 00:00:00,287.95,"39564","Gas Companies","REDACTED DATA","KENT COUNTY COUNCIL (GAS & ELECTRIC)","",,"204269191"
"London Borough of Redbridge","http://opendatacommunities.org/doc/london-borough-council/redbridge","2BENVIRONMEN","Environmental Services","2CCOMSAFCRIM","Community Safety (Crime Reduction)","REV","Revenue","R9880","Prevent","04-SUPPLIES","Supplies And Services","04K","Miscellaneous expenses","6263","Supportive Activities","60476835","202210",30/11/2021 00:00:00,-28000,"28465","Drug Misuse - Advice and Counselling","REDACTED DATA","ST GILES TRUST","2175146","http://opencorporates.com/companies/gb/2175146",""
"London Borough of Redbridge","http://opendatacommunities.org/doc/london-borough-council/redbridge","2BENVIRONMEN","Environmental Services","2CCONSPROT","Consumer Protection","REV","Revenue","R6752","Food Safety","04-SUPPLIES","Supplies And Services","04A","Equipment, furniture and materials","5502","Equipment Purchase","60479856","202210",25/01/2022 00:00:00,562.23,"16111","Catering Equipment","REDACTED DATA","NISBETS PLC","1693112","http://opencorporates.com/companies/gb/1693112","974803000"
"London Borough of Redbridge","http://opendatacommunities.org/doc/london-borough-council/redbridge","2BENVIRONMEN","Environmental Services","2CSTCLEANS","Street Cleansing (not chargeable to Highways)","REV","Revenue","R6140","Gatehouse","01-EMPLOYEES","Employees","01A","Direct employee expenses","4","Agency Staff - Pay","60479306","202210",31/05/2021 00:00:00,105,"69240","Security Services","REDACTED DATA","CHARTER SECURITY PLC","1530957","http://opencorporates.com/companies/gb/1530957","342117968"
"London Borough of Redbridge","http://opendatacommunities.org/doc/london-borough-council/redbridge","2BENVIRONMEN","Environmental Services","2CSTCLEANS","Street Cleansing (not chargeable to Highways)","REV","Revenue","R6140","Gatehouse","01-EMPLOYEES","Employees","01A","Direct employee expenses","4","Agency Staff - Pay","60479307","202210",31/05/2021 00:00:00,148,"69240","Security Services","REDACTED DATA","CHARTER SECURITY PLC","1530957","http://opencorporates.com/companies/gb/1530957","342117968"
"London Borough of Redbridge","http://opendatacommunities.org/doc/london-borough-council/redbridge","2BENVIRONMEN","Environmental Services","2CWASTECOLLN","Waste Collection","REV","Revenue","R6152","Commercial Waste","04-SUPPLIES","Supplies And Services","04A","Equipment, furniture and materials","5508","General Consumables","60477087","202210",14/12/2021 00:00:00,288,"83380","Waste Disposal Services","REDACTED DATA","REDBRIDGE CIVIC SERVICES LTD","11841636","http://opencorporates.com/companies/gb/11841636","325311735"
"London Borough of Redbridge","http://opendatacommunities.org/doc/london-borough-council/redbridge","3BINDSCHFUND","Individual School Funds","3CDELPRIMARY","Delegated Individual Primary School Budgets","REV","Revenue","S1011","CHRISTCHURCH : Cleaning & Caretaking","02-PREMISES","Premises","02H","Cleaning and domestic supplies","4622","Cleaning Equipment & Materials","60479239","202210",28/04/2021 00:00:00,22.9,"16111","Catering Equipment","REDACTED DATA","NISBETS PLC","1693112","http://opencorporates.com/companies/gb/1693112","974803000"
"London Borough of Redbridge","http://opendatacommunities.org/doc/london-borough-council/redbridge","3BINDSCHFUND","Individual School Funds","3CDELPRIMARY","Delegated Individual Primary School Budgets","REV","Revenue","S1013","CHRISTCHURCH : Energy","02-PREMISES","Premises","02B","Energy costs","4000","Electricity","60479478","202210",11/08/2021 00:00:00,331.22,"39564","Gas Companies","REDACTED DATA","KENT COUNTY COUNCIL (GAS & ELECTRIC)","",,"204269191"
"London Borough of Redbridge","http://opendatacommunities.org/doc/london-borough-council/redbridge","3BINDSCHFUND","Individual School Funds","3CDELPRIMARY","Delegated Individual Primary School Budgets","REV","Revenue","S1013","CHRISTCHURCH : Energy","02-PREMISES","Premises","02B","Energy costs","4002","Gas","60479480","202210",10/08/2021 00:00:00,160.27,"39564","Gas Companies","REDACTED DATA","KENT COUNTY COUNCIL (GAS & ELECTRIC)","",,"204269191"
"London Borough of Redbridge","http://opendatacommunities.org/doc/london-borough-council/redbridge","3BINDSCHFUND","Individual School Funds","3CDELPRIMARY","Delegated Individual Primary School Budgets","REV","Revenue","S1013","CHRISTCHURCH : Energy","02-PREMISES","Premises","02B","Energy costs","4002","Gas","60479479","202210",11/08/2021 00:00:00,302.84,"39564","Gas Companies","REDACTED DATA","KENT COUNTY COUNCIL (GAS & ELECTRIC)","",,"204269191"
"London Borough of Redbridge","http://opendatacommunities.org/doc/london-borough-council/redbridge","3BINDSCHFUND","Individual School Funds","3CDELPRIMARY","Delegated Individual Primary School Budgets","REV","Revenue","S1013","CHRISTCHURCH : Energy","02-PREMISES","Premises","02B","Energy costs","4002","Gas","60479692","202210",13/10/2021 00:00:00,342.87,"39564","Gas Companies","REDACTED DATA","KENT COUNTY COUNCIL (GAS & ELECTRIC)","",,"204269191"
"London Borough of Redbridge","http://opendatacommunities.org/doc/london-borough-council/redbridge","3BINDSCHFUND","Individual School Funds","3CDELPRIMARY","Delegated Individual Primary School Budgets","REV","Revenue","S1013","CHRISTCHURCH : Energy","02-PREMISES","Premises","02B","Energy costs","4002","Gas","60479694","202210",13/01/2022 00:00:00,393.07,"39564","Gas Companies","REDACTED DATA","KENT COUNTY COUNCIL (GAS & ELECTRIC)","",,"204269191"
"London Borough of Redbridge","http://opendatacommunities.org/doc/london-borough-council/redbridge","3BINDSCHFUND","Individual School Funds","3CDELPRIMARY","Delegated Individual Primary School Budgets","REV","Revenue","S1017","CHRISTCHURCH : Art & Design Technology","04-SUPPLIES","Supplies And Services","04F","Communications and computing","5864","Teaching Materials","60478886","202210",15/12/2021 00:00:00,377.93,"29340","Educational Equipment and Supplies","REDACTED DATA","HOPE EDUCATION","1135827","http://opencorporates.com/companies/gb/1135827","125688644"
"London Borough of Redbridge","http://opendatacommunities.org/doc/london-borough-council/redbridge","3BINDSCHFUND","Individual School Funds","3CDELPRIMARY","Delegated Individual Primary School Budgets","REV","Revenue","S1017","CHRISTCHURCH : Art & Design Technology","04-SUPPLIES","Supplies And Services","04F","Communications and computing","5864","Teaching Materials","60477081","202210",15/12/2021 00:00:00,110.83,"29340","Educational Equipment and Supplies","REDACTED DATA","GLS EDUCATIONAL SUPPLIES LTD","",,"765934584"
"London Borough of Redbridge","http://opendatacommunities.org/doc/london-borough-council/redbridge","3BINDSCHFUND","Individual School Funds","3CDELPRIMARY","Delegated Individual Primary School Budgets","REV","Revenue","S1017","CHRISTCHURCH : Art & Design Technology","04-SUPPLIES","Supplies And Services","04F","Communications and computing","5864","Teaching Materials","60479510","202210",19/01/2022 00:00:00,383.54,"29340","Educational Equipment and Supplies","REDACTED DATA","TTS GROUP LIMITED(TECHNOLOGY TEACHING SYSTEMS)","4373761","http://opencorporates.com/companies/gb/4373761","789963047"
"London Borough of Redbridge","http://opendatacommunities.org/doc/london-borough-council/redbridge","3BINDSCHFUND","Individual School Funds","3CDELPRIMARY","Delegated Individual Primary School Budgets","REV","Revenue","S1024","CHRISTCHURCH : Early Years","04-SUPPLIES","Supplies And Services","04A","Equipment, furniture and materials","5502","Equipment Purchase","60479173","202210",11/01/2022 00:00:00,115.94,"29340","Educational Equipment and Supplies","REDACTED DATA","COLLABORATE AND INNOVATE LTD T/A COSY","7483416","http://opencorporates.com/companies/gb/7483416","107483420"
"London Borough of Redbridge","http://opendatacommunities.org/doc/london-borough-council/redbridge","3BINDSCHFUND","Individual School Funds","3CDELPRIMARY","Delegated Individual Primary School Budgets","REV","Revenue","S1024","CHRISTCHURCH : Early Years","04-SUPPLIES","Supplies And Services","04F","Communications and computing","5864","Teaching Materials","60479670","202210",22/01/2022 00:00:00,93.97,"29340","Educational Equipment and Supplies","REDACTED DATA","TTS GROUP LIMITED(TECHNOLOGY TEACHING SYSTEMS)","4373761","http://opencorporates.com/companies/gb/4373761","789963047"
"London Borough of Redbridge","http://opendatacommunities.org/doc/london-borough-council/redbridge","3BINDSCHFUND","Individual School Funds","3CDELPRIMARY","Delegated Individual Primary School Budgets","REV","Revenue","S1024","CHRISTCHURCH : Early Years","04-SUPPLIES","Supplies And Services","04F","Communications and computing","5864","Teaching Materials","60479949","202210",25/01/2022 00:00:00,84.99,"29340","Educational Equipment and Supplies","REDACTED DATA","TTS GROUP LIMITED(TECHNOLOGY TEACHING SYSTEMS)","4373761","http://opencorporates.com/companies/gb/4373761","789963047"
"London Borough of Redbridge","http://opendatacommunities.org/doc/london-borough-council/redbridge","3BINDSCHFUND","Individual School Funds","3CDELPRIMARY","Delegated Individual Primary School Budgets","REV","Revenue","S1029","CHRISTCHURCH : Library","04-SUPPLIES","Supplies And Services","04D","Printing, stationery and general office expenses","5700","Books","60479250","202210",17/01/2022 00:00:00,26.69,"9849","Booksellers","REDACTED DATA","PETERS LTD","2452340","http://opencorporates.com/companies/gb/2452340","559124236"
"London Borough of Redbridge","http://opendatacommunities.org/doc/london-borough-council/redbridge","3BINDSCHFUND","Individual School Funds","3CDELPRIMARY","Delegated Individual Primary School Budgets","REV","Revenue","S1041","CHRISTCHURCH - History","04-SUPPLIES","Supplies And Services","04F","Communications and computing","5864","Teaching Materials","60477409","202210",20/12/2021 00:00:00,188.85,"29340","Educational Equipment and Supplies","REDACTED DATA","TTS GROUP LIMITED(TECHNOLOGY TEACHING SYSTEMS)","4373761","http://opencorporates.com/companies/gb/4373761","789963047"
"London Borough of Redbridge","http://opendatacommunities.org/doc/london-borough-council/redbridge","3BINDSCHFUND","Individual School Funds","3CDELPRIMARY","Delegated Individual Primary School Budgets","REV","Revenue","S1048","CHRISTCHURCH : Adminstrative Supplies","04-SUPPLIES","Supplies And Services","04A","Equipment, furniture and materials","5506","Furniture & Fittings - Purchase","60478367","202210",05/01/2022 00:00:00,237.5,"29340","Educational Equipment and Supplies","REDACTED DATA","GLS EDUCATIONAL SUPPLIES LTD","",,"765934584"
"London Borough of Redbridge","http://opendatacommunities.org/doc/london-borough-council/redbridge","3BINDSCHFUND","Individual School Funds","3CDELPRIMARY","Delegated Individual Primary School Budgets","REV","Revenue","S2308","GROVE : ASSESSMENT","04-SUPPLIES","Supplies And Services","04A","Equipment, furniture and materials","5502","Equipment Purchase","60478865","202210",07/01/2022 00:00:00,106,"26450","Distribution Services","REDACTED DATA","Hachette UK Distribution Limited","3541391","http://opencorporates.com/companies/gb/3541391","205505305"
"London Borough of Redbridge","http://opendatacommunities.org/doc/london-borough-council/redbridge","3BINDSCHFUND","Individual School Funds","3CDELPRIMARY","Delegated Individual Primary School Budgets","REV","Revenue","S2308","GROVE : ASSESSMENT","04-SUPPLIES","Supplies And Services","04A","Equipment, furniture and materials","5502","Equipment Purchase","60479971","202210",19/01/2022 00:00:00,82.5,"26450","Distribution Services","REDACTED DATA","Hachette UK Distribution Limited","3541391","http://opencorporates.com/companies/gb/3541391","205505305"
"London Borough of Redbridge","http://opendatacommunities.org/doc/london-borough-council/redbridge","3BINDSCHFUND","Individual School Funds","3CDELPRIMARY","Delegated Individual Primary School Budgets","REV","Revenue","S2311","GROVE : ENGLISH","04-SUPPLIES","Supplies And Services","04A","Equipment, furniture and materials","5502","Equipment Purchase","60479972","202210",10/01/2022 00:00:00,250,"62450","Publishers","REDACTED DATA","OXFORD UNIVERSITY PRESS","",,"125506730"
"London Borough of Redbridge","http://opendatacommunities.org/doc/london-borough-council/redbridge","3BINDSCHFUND","Individual School Funds","3CDELPRIMARY","Delegated Individual Primary School Budgets","REV","Revenue","S2311","GROVE : ENGLISH","04-SUPPLIES","Supplies And Services","04A","Equipment, furniture and materials","5502","Equipment Purchase","60479973","202210",10/01/2022 00:00:00,198,"62450","Publishers","REDACTED DATA","OXFORD UNIVERSITY PRESS","",,"125506730"
"London Borough of Redbridge","http://opendatacommunities.org/doc/london-borough-council/redbridge","3BINDSCHFUND","Individual School Funds","3CDELPRIMARY","Delegated Individual Primary School Budgets","REV","Revenue","S2311","GROVE : ENGLISH","04-SUPPLIES","Supplies And Services","04A","Equipment, furniture and materials","5502","Equipment Purchase","60479976","202210",24/01/2022 00:00:00,96,"62450","Publishers","REDACTED DATA","OXFORD UNIVERSITY PRESS","",,"125506730"
"London Borough of Redbridge","http://opendatacommunities.org/doc/london-borough-council/redbridge","3BINDSCHFUND","Individual School Funds","3CDELPRIMARY","Delegated Individual Primary School Budgets","REV","Revenue","S2311","GROVE : ENGLISH","04-SUPPLIES","Supplies And Services","04A","Equipment, furniture and materials","5502","Equipment Purchase","60479960","202210",19/01/2022 00:00:00,369.07,"62450","Publishers","REDACTED DATA","OXFORD UNIVERSITY PRESS","",,"125506730"
"London Borough of Redbridge","http://opendatacommunities.org/doc/london-borough-council/redbridge","3BINDSCHFUND","Individual School Funds","3CDELPRIMARY","Delegated Individual Primary School Budgets","REV","Revenue","S2311","GROVE : ENGLISH","04-SUPPLIES","Supplies And Services","04A","Equipment, furniture and materials","5502","Equipment Purchase","60479427","202210",17/01/2022 00:00:00,278.77,"62450","Publishers","REDACTED DATA","OXFORD UNIVERSITY PRESS","",,"125506730"
"London Borough of Redbridge","http://opendatacommunities.org/doc/london-borough-council/redbridge","3BINDSCHFUND","Individual School Funds","3CDELPRIMARY","Delegated Individual Primary School Budgets","REV","Revenue","S2311","GROVE : ENGLISH","04-SUPPLIES","Supplies And Services","04A","Equipment, furniture and materials","5502","Equipment Purchase","60479426","202210",12/01/2022 00:00:00,344.4,"62450","Publishers","REDACTED DATA","OXFORD UNIVERSITY PRESS","",,"125506730"
"London Borough of Redbridge","http://opendatacommunities.org/doc/london-borough-council/redbridge","3BINDSCHFUND","Individual School Funds","3CDELPRIMARY","Delegated Individual Primary School Budgets","REV","Revenue","S2315","GROVE : COMPUTER","04-SUPPLIES","Supplies And Services","04F","Communications and computing","5863","Curriculum Hardware","60478829","202210",27/12/2021 00:00:00,94,"20620","Computer Consultants","REDACTED DATA","Mcats IT Ltd","12563513","http://opencorporates.com/companies/gb/12563513","346887447"
"London Borough of Redbridge","http://opendatacommunities.org/doc/london-borough-council/redbridge","3BINDSCHFUND","Individual School Funds","3CDELPRIMARY","Delegated Individual Primary School Budgets","REV","Revenue","S2315","GROVE : COMPUTER","04-SUPPLIES","Supplies And Services","04F","Communications and computing","5863","Curriculum Hardware","60478830","202210",27/12/2021 00:00:00,69,"20620","Computer Consultants","REDACTED DATA","Mcats IT Ltd","12563513","http://opencorporates.com/companies/gb/12563513","346887447"
"London Borough of Redbridge","http://opendatacommunities.org/doc/london-borough-council/redbridge","3BINDSCHFUND","Individual School Funds","3CDELPRIMARY","Delegated Individual Primary School Budgets","REV","Revenue","S2316","GROVE : DESIGN AND TECHNOLOGY","04-SUPPLIES","Supplies And Services","04A","Equipment, furniture and materials","5502","Equipment Purchase","60479281","202210",12/01/2022 00:00:00,16.33,"49150","Mail Order and Catalogue Shopping","REDACTED DATA","YPO","",,"642720651"
"London Borough of Redbridge","http://opendatacommunities.org/doc/london-borough-council/redbridge","3BINDSCHFUND","Individual School Funds","3CDELPRIMARY","Delegated Individual Primary School Budgets","REV","Revenue","S2316","GROVE : DESIGN AND TECHNOLOGY","04-SUPPLIES","Supplies And Services","04A","Equipment, furniture and materials","5502","Equipment Purchase","60478872","202210",17/12/2021 00:00:00,5.99,"29340","Educational Equipment and Supplies","REDACTED DATA","TTS GROUP LIMITED(TECHNOLOGY TEACHING SYSTEMS)","4373761","http://opencorporates.com/companies/gb/4373761","789963047"
"London Borough of Redbridge","http://opendatacommunities.org/doc/london-borough-council/redbridge","3BINDSCHFUND","Individual School Funds","3CDELPRIMARY","Delegated Individual Primary School Budgets","REV","Revenue","S2330","GROVE : BUY BACK NON CURRICULUM SUPPORT SERVICE","05-THIRD","Third Party Payments","05A","Independent units within the council","6504","Clerking Of Governing Bodies","60479969","202210",24/01/2022 00:00:00,307.5,"48583","Local Government","REDACTED DATA","LONDON BOROUGH OF HAVERING","",,"246347944"
"London Borough of Redbridge","http://opendatacommunities.org/doc/london-borough-council/redbridge","3BINDSCHFUND","Individual School Funds","3CDELPRIMARY","Delegated Individual Primary School Budgets","REV","Revenue","S2331","GROVE : BUY BACK CURRICULUM","04-SUPPLIES","Supplies And Services","04H","Grants and subscriptions","5954","Professional Fees","60479415","202210",28/09/2021 00:00:00,476.25,"42200","Health Authorities","REDACTED DATA","NORTH EAST LONDON NHS FOUNDATION TRUST","",,"654404447"
"London Borough of Redbridge","http://opendatacommunities.org/doc/london-borough-council/redbridge","3BINDSCHFUND","Individual School Funds","3CDELPRIMARY","Delegated Individual Primary School Budgets","REV","Revenue","S2333","GROVE : MAINTENANCE CONTRACTS","02-PREMISES","Premises","02A","Repairs, alteration and maintenance of buildings","3037","Service Contracts","60478868","202210",06/01/2022 00:00:00,69.7,"16195","Catering Equipment - Servicing and Repairs","REDACTED DATA","ANTHONY JAMES RANDALL T/A RANDALLS CONTRACT CLEANING SERVICES","1026047754","http://opencorporates.com/companies/gb/1026047754","778284084"
"London Borough of Redbridge","http://opendatacommunities.org/doc/london-borough-council/redbridge","3BINDSCHFUND","Individual School Funds","3CDELPRIMARY","Delegated Individual Primary School Budgets","REV","Revenue","S2333","GROVE : MAINTENANCE CONTRACTS","02-PREMISES","Premises","02A","Repairs, alteration and maintenance of buildings","3037","Service Contracts","60478871","202210",10/01/2022 00:00:00,110.3,"38590","Furniture Mnfrs - Home and Office","REDACTED DATA","SICO EUROPE LTD","",,""
"London Borough of Redbridge","http://opendatacommunities.org/doc/london-borough-council/redbridge","3BINDSCHFUND","Individual School Funds","3CDELPRIMARY","Delegated Individual Primary School Budgets","REV","Revenue","S2338","GROVE : ENERGY / WATER","02-PREMISES","Premises","02E","Water services","4320","Water Charges & Sewerage","60478870","202210",04/01/2022 00:00:00,469.96,"83682","Water Companies","REDACTED DATA","CASTLE WATER","SC475583","http://opencorporates.com/companies/gb/SC475583","189775040"
"London Borough of Redbridge","http://opendatacommunities.org/doc/london-borough-council/redbridge","3BINDSCHFUND","Individual School Funds","3CDELPRIMARY","Delegated Individual Primary School Budgets","REV","Revenue","S2338","GROVE : ENERGY / WATER","02-PREMISES","Premises","02E","Water services","4320","Water Charges & Sewerage","60478869","202210",05/01/2022 00:00:00,214.07,"83682","Water Companies","REDACTED DATA","CASTLE WATER","SC475583","http://opencorporates.com/companies/gb/SC475583","189775040"
"London Borough of Redbridge","http://opendatacommunities.org/doc/london-borough-council/redbridge","3BINDSCHFUND","Individual School Funds","3CDELPRIMARY","Delegated Individual Primary School Budgets","REV","Revenue","S2339","GROVE : PERSONNEL","01-EMPLOYEES","Employees","01A","Direct employee expenses","9","Agency Staff Sickness Cover","60479283","202210",11/01/2022 00:00:00,290.55,"31230","Employment and Recruitment Agencies","REDACTED DATA","ADECCO UK LIMITED","593232","http://opencorporates.com/companies/gb/593232","232347975"
"London Borough of Redbridge","http://opendatacommunities.org/doc/london-borough-council/redbridge","3BINDSCHFUND","Individual School Funds","3CDELPRIMARY","Delegated Individual Primary School Budgets","REV","Revenue","S2340","GROVE : BUILDING MAINTENANCE","02-PREMISES","Premises","02A","Repairs, alteration and maintenance of buildings","3026","Minor Maintenance","60478864","202210",05/01/2022 00:00:00,385,"36640","Flooring Services","REDACTED DATA","Montague Group Services","11354076","http://opencorporates.com/companies/gb/11354076","294803280"
"London Borough of Redbridge","http://opendatacommunities.org/doc/london-borough-council/redbridge","3BINDSCHFUND","Individual School Funds","3CDELPRIMARY","Delegated Individual Primary School Budgets","REV","Revenue","S2363","GROVE: Printer Leases","04-SUPPLIES","Supplies And Services","04D","Printing, stationery and general office expenses","5706","Printing","60478876","202210",22/12/2021 00:00:00,98.98,"57614","Photocopiers","REDACTED DATA","N-JOY COMMUNICATIONS LTD","3959954","http://opencorporates.com/companies/gb/3959954","995290472"
"London Borough of Redbridge","http://opendatacommunities.org/doc/london-borough-council/redbridge","3BINDSCHFUND","Individual School Funds","3CDELPRIMARY","Delegated Individual Primary School Budgets","REV","Revenue","S2363","GROVE: Printer Leases","04-SUPPLIES","Supplies And Services","04D","Printing, stationery and general office expenses","5706","Printing","60479909","202210",24/01/2022 00:00:00,546.98,"57614","Photocopiers","REDACTED DATA","N-JOY COMMUNICATIONS LTD","3959954","http://opencorporates.com/companies/gb/3959954","995290472"
"London Borough of Redbridge","http://opendatacommunities.org/doc/london-borough-council/redbridge","3BINDSCHFUND","Individual School Funds","3CDELPRIMARY","Delegated Individual Primary School Budgets","REV","Revenue","S2363","GROVE: Printer Leases","04-SUPPLIES","Supplies And Services","04D","Printing, stationery and general office expenses","5706","Printing","60479968","202210",24/01/2022 00:00:00,120.89,"57614","Photocopiers","REDACTED DATA","N-JOY COMMUNICATIONS LTD","3959954","http://opencorporates.com/companies/gb/3959954","995290472"
"London Borough of Redbridge","http://opendatacommunities.org/doc/london-borough-council/redbridge","3BINDSCHFUND","Individual School Funds","3CDELPRIMARY","Delegated Individual Primary School Budgets","REV","Revenue","S2370","GROVE: Telephone","04-SUPPLIES","Supplies And Services","04F","Communications and computing","5858","Phones","60479977","202210",18/01/2022 00:00:00,115,"76510","Telecommunication Services","REDACTED DATA","BT PLC  (BRITISH TELECOMMUNICATIONS PLC)","",,"245719348"
"London Borough of Redbridge","http://opendatacommunities.org/doc/london-borough-council/redbridge","3BINDSCHFUND","Individual School Funds","3CDELPRIMARY","Delegated Individual Primary School Budgets","REV","Revenue","S2371","GROVE: Furniture and Equipment","04-SUPPLIES","Supplies And Services","04A","Equipment, furniture and materials","5506","Furniture & Fittings - Purchase","60479277","202210",11/01/2022 00:00:00,359.9,"29340","Educational Equipment and Supplies","REDACTED DATA","A TO Z SUPPLIES","1135827","http://opencorporates.com/companies/gb/1135827","125688644"
"London Borough of Redbridge","http://opendatacommunities.org/doc/london-borough-council/redbridge","3BINDSCHFUND","Individual School Funds","3CDELPRIMARY","Delegated Individual Primary School Budgets","REV","Revenue","S2371","GROVE: Furniture and Equipment","04-SUPPLIES","Supplies And Services","04A","Equipment, furniture and materials","5506","Furniture & Fittings - Purchase","60479279","202210",11/01/2022 00:00:00,162.73,"29340","Educational Equipment and Supplies","REDACTED DATA","A TO Z SUPPLIES","1135827","http://opencorporates.com/companies/gb/1135827","125688644"
"London Borough of Redbridge","http://opendatacommunities.org/doc/london-borough-council/redbridge","3BINDSCHFUND","Individual School Funds","3CDELPRIMARY","Delegated Individual Primary School Budgets","REV","Revenue","S2371","GROVE: Furniture and Equipment","04-SUPPLIES","Supplies And Services","04A","Equipment, furniture and materials","5506","Furniture & Fittings - Purchase","60479967","202210",19/01/2022 00:00:00,51.97,"29340","Educational Equipment and Supplies","REDACTED DATA","A TO Z SUPPLIES","1135827","http://opencorporates.com/companies/gb/1135827","125688644"
"London Borough of Redbridge","http://opendatacommunities.org/doc/london-borough-council/redbridge","3BINDSCHFUND","Individual School Funds","3CDELPRIMARY","Delegated Individual Primary School Budgets","REV","Revenue","S2374","GROVE: Headteachers Contingency","04-SUPPLIES","Supplies And Services","04A","Equipment, furniture and materials","5508","General Consumables","60478862","202210",25/12/2021 00:00:00,38.95,"84070","Water Suppliers - Bottled","REDACTED DATA","EDEN SPRINGS (UK) LTD (NATURE SPRING)","4063744","http://opencorporates.com/companies/gb/4063744","232160411"
"London Borough of Redbridge","http://opendatacommunities.org/doc/london-borough-council/redbridge","3BINDSCHFUND","Individual School Funds","3CDELPRIMARY","Delegated Individual Primary School Budgets","REV","Revenue","S2374","GROVE: Headteachers Contingency","04-SUPPLIES","Supplies And Services","04A","Equipment, furniture and materials","5508","General Consumables","60478849","202210",06/01/2022 00:00:00,165,"11584","Oocupational Health","REDACTED DATA","MEDIGOLD HEALTH CONSULTANCY LTD","3507491","http://opencorporates.com/companies/gb/3507491","705029661"
"London Borough of Redbridge","http://opendatacommunities.org/doc/london-borough-council/redbridge","3BINDSCHFUND","Individual School Funds","3CDELPRIMARY","Delegated Individual Primary School Budgets","REV","Revenue","S2378","GROVE: Stationery","04-SUPPLIES","Supplies And Services","04D","Printing, stationery and general office expenses","5710","Stationery","60479278","202210",12/01/2022 00:00:00,220.57,"29340","Educational Equipment and Supplies","REDACTED DATA","A TO Z SUPPLIES","1135827","http://opencorporates.com/companies/gb/1135827","125688644"
"London Borough of Redbridge","http://opendatacommunities.org/doc/london-borough-council/redbridge","3BINDSCHFUND","Individual School Funds","3CDELPRIMARY","Delegated Individual Primary School Budgets","REV","Revenue","S2378","GROVE: Stationery","04-SUPPLIES","Supplies And Services","04D","Printing, stationery and general office expenses","5710","Stationery","60479280","202210",11/01/2022 00:00:00,63.96,"29340","Educational Equipment and Supplies","REDACTED DATA","A TO Z SUPPLIES","1135827","http://opencorporates.com/companies/gb/1135827","125688644"
"London Borough of Redbridge","http://opendatacommunities.org/doc/london-borough-council/redbridge","3BINDSCHFUND","Individual School Funds","3CDELPRIMARY","Delegated Individual Primary School Budgets","REV","Revenue","S2378","GROVE: Stationery","04-SUPPLIES","Supplies And Services","04D","Printing, stationery and general office expenses","5710","Stationery","60479966","202210",21/01/2022 00:00:00,197.69,"29340","Educational Equipment and Supplies","REDACTED DATA","A TO Z SUPPLIES","1135827","http://opencorporates.com/companies/gb/1135827","125688644"
"London Borough of Redbridge","http://opendatacommunities.org/doc/london-borough-council/redbridge","3BINDSCHFUND","Individual School Funds","3CDELSECOND","Delegated Individual Secondary School Budgets","REV","Revenue","S2000","TRINITY : Teaching Staff Pay","01-EMPLOYEES","Employees","01B","Indirect employee expenses","2403","External Training","60480052","202210",15/10/2019 00:00:00,45,"1880","Adoption and Fostering","REDACTED DATA","WINCHMORE TUTORS LTD","6751961","http://opencorporates.com/companies/gb/6751961","974550591"
"London Borough of Redbridge","http://opendatacommunities.org/doc/london-borough-council/redbridge","3BINDSCHFUND","Individual School Funds","3CDELSECOND","Delegated Individual Secondary School Budgets","REV","Revenue","S2001","TRINITY : Teachers - Supply","01-EMPLOYEES","Employees","01A","Direct employee expenses","4","Agency Staff - Pay","60478577","202210",10/01/2022 00:00:00,245,"31230","Employment and Recruitment Agencies","REDACTED DATA","VISION TEACHING LTD","6102463","http://opencorporates.com/companies/gb/6102463","906146439"
"London Borough of Redbridge","http://opendatacommunities.org/doc/london-borough-council/redbridge","3BINDSCHFUND","Individual School Funds","3CDELSECOND","Delegated Individual Secondary School Budgets","REV","Revenue","S2001","TRINITY : Teachers - Supply","01-EMPLOYEES","Employees","01A","Direct employee expenses","4","Agency Staff - Pay","60478742","202210",10/01/2022 00:00:00,210,"31230","Employment and Recruitment Agencies","REDACTED DATA","VISION TEACHING LTD","6102463","http://opencorporates.com/companies/gb/6102463","906146439"
"London Borough of Redbridge","http://opendatacommunities.org/doc/london-borough-council/redbridge","3BINDSCHFUND","Individual School Funds","3CDELSECOND","Delegated Individual Secondary School Budgets","REV","Revenue","S2001","TRINITY : Teachers - Supply","01-EMPLOYEES","Employees","01A","Direct employee expenses","4","Agency Staff - Pay","60479689","202210",21/12/2021 00:00:00,240,"31230","Employment and Recruitment Agencies","REDACTED DATA","VISION TEACHING LTD","6102463","http://opencorporates.com/companies/gb/6102463","906146439"
"London Borough of Redbridge","http://opendatacommunities.org/doc/london-borough-council/redbridge","3BINDSCHFUND","Individual School Funds","3CDELSECOND","Delegated Individual Secondary School Budgets","REV","Revenue","S2001","TRINITY : Teachers - Supply","01-EMPLOYEES","Employees","01A","Direct employee expenses","4","Agency Staff - Pay","60479647","202210",24/01/2022 00:00:00,1225,"31230","Employment and Recruitment Agencies","REDACTED DATA","VISION TEACHING LTD","6102463","http://opencorporates.com/companies/gb/6102463","906146439"
"London Borough of Redbridge","http://opendatacommunities.org/doc/london-borough-council/redbridge","3BINDSCHFUND","Individual School Funds","3CDELSECOND","Delegated Individual Secondary School Budgets","REV","Revenue","S2001","TRINITY : Teachers - Supply","01-EMPLOYEES","Employees","01A","Direct employee expenses","4","Agency Staff - Pay","60479646","202210",24/01/2022 00:00:00,1050,"31230","Employment and Recruitment Agencies","REDACTED DATA","VISION TEACHING LTD","6102463","http://opencorporates.com/companies/gb/6102463","906146439"
